﻿Department Family,Entity,Date,Expense Type,Expense Area,Supplier,Transaction Number,Amount,Item Description
BEIS,UKRI - AHRC,01/10/2020,T&S UK - Other Charges,"History, Heritage, Languages and Literature",Unspecified,98826412,333.15,T&S UK - Other Charges
BEIS,UKRI - AHRC,01/10/2020,T&S UK - Public Transport,Public and Stakeholder Engagement,Unspecified,98826413,39.20,T&S UK - Public Transport
BEIS,UKRI - AHRC,01/10/2020,T&S UK - Subsistence,Public and Stakeholder Engagement,Unspecified,98826413,39.98,T&S UK - Subsistence
BEIS,UKRI - AHRC,02/10/2020,T&S UK - Other Charges,Operations,Unspecified,98784474,306.27,T&S UK - Other Charges
BEIS,UKRI - AHRC,02/10/2020,T&S Overseas - Subsistence,International Development and Area Studies,Unspecified,98826117,3.80,T&S Overseas - Subsistence
BEIS,UKRI - AHRC,02/10/2020,T&S UK - Other Charges,International Development and Area Studies,Unspecified,98826117,39.40,T&S UK - Other Charges
BEIS,UKRI - AHRC,02/10/2020,T&S UK - Other Charges,Operations,Unspecified,98826118,71.93,T&S UK - Other Charges
BEIS,UKRI - AHRC,05/10/2020,Other Programme Costs,SMT,Four Communications Group Ltd,98827583,14400.00,Other Programme Costs
BEIS,UKRI - AHRC,05/10/2020,Fees (Including College Members),Executive Office,Unspecified,98827952,1000.00,Fees (Including College Members)
BEIS,UKRI - AHRC,07/10/2020,Health & Safety (inc. Medicals & Opticians),Cultural Value EDI,Unspecified,98829911,12.99,Health & Safety (inc. Medicals & Opticians)
BEIS,UKRI - AHRC,07/10/2020,Unspecified,Funds for International Collaboration (FIC 21 China),"Burns Owens Partnership Ltd, t/a BOP Consulting",98830513,38955.00,Legal & Professional Services
BEIS,UKRI - AHRC,08/10/2020,Recruitment Costs,Operations,Onefix Recruitment Ltd,98827932,150.00,Recruitment Costs
BEIS,UKRI - AHRC,08/10/2020,Fees (Including College Members),GCRF - Programme Delivery,Unspecified,98830713,340.00,Fees (Including College Members)
BEIS,UKRI - AHRC,08/10/2020,Fees (Including College Members),GCRF - Programme Delivery,Unspecified,98830714,580.00,Fees (Including College Members)
BEIS,UKRI - AHRC,08/10/2020,Fees (Including College Members),ISCF- Industrial Strategy Challenge Fund - skills,Unspecified,98830715,340.00,Fees (Including College Members)
BEIS,UKRI - AHRC,08/10/2020,Fees (Including College Members),ISCF- Industrial Strategy Challenge Fund - skills,Unspecified,98830716,340.00,Fees (Including College Members)
BEIS,UKRI - AHRC,08/10/2020,Fees (Including College Members),ISCF- Industrial Strategy Challenge Fund - skills,Unspecified,98830717,340.00,Fees (Including College Members)
BEIS,UKRI - AHRC,08/10/2020,Fees (Including College Members),ISCF- Industrial Strategy Challenge Fund - skills,Unspecified,98830719,340.00,Fees (Including College Members)
BEIS,UKRI - AHRC,08/10/2020,Fees (Including College Members),ISCF- Industrial Strategy Challenge Fund - skills,Unspecified,98830720,460.00,Fees (Including College Members)
BEIS,UKRI - AHRC,08/10/2020,Fees (Including College Members),ISCF- Industrial Strategy Challenge Fund - skills,Unspecified,98830721,340.00,Fees (Including College Members)
BEIS,UKRI - AHRC,08/10/2020,Financial Services,Corporate Services,CCI Credit Management Ltd,98830751,1.32,Financial Services
BEIS,UKRI - AHRC,09/10/2020,Non-staff travel and subsistance,Public and Stakeholder Engagement,Unspecified,98832163,38.80,Non-staff travel and subsistance
BEIS,UKRI - AHRC,09/10/2020,Fees (Including College Members),New Programme Development,Unspecified,98832164,340.00,Fees (Including College Members)
BEIS,UKRI - AHRC,09/10/2020,Fees (Including College Members),ISCF- Industrial Strategy Challenge Fund - skills,Unspecified,98832165,340.00,Fees (Including College Members)
BEIS,UKRI - AHRC,09/10/2020,Fees (Including College Members),New Programme Development,Unspecified,98832166,340.00,Fees (Including College Members)
BEIS,UKRI - AHRC,09/10/2020,Fees (Including College Members),New Programme Development,Unspecified,98832167,340.00,Fees (Including College Members)
BEIS,UKRI - AHRC,09/10/2020,Fees (Including College Members),New Programme Development,Unspecified,98832168,340.00,Fees (Including College Members)
BEIS,UKRI - AHRC,09/10/2020,Fees (Including College Members),New Programme Development,Unspecified,98832169,170.00,Fees (Including College Members)
BEIS,UKRI - AHRC,09/10/2020,Fees (Including College Members),New Programme Development,Unspecified,98832170,340.00,Fees (Including College Members)
BEIS,UKRI - AHRC,09/10/2020,Fees (Including College Members),New Programme Development,Unspecified,98832171,170.00,Fees (Including College Members)
BEIS,UKRI - AHRC,09/10/2020,Fees (Including College Members),Modern Slavery and Human Rights (SPF),Unspecified,98832172,460.00,Fees (Including College Members)
BEIS,UKRI - AHRC,09/10/2020,Fees (Including College Members),New Programme Development,Unspecified,98832173,230.00,Fees (Including College Members)
BEIS,UKRI - AHRC,09/10/2020,Fees (Including College Members),New Programme Development,Unspecified,98832174,170.00,Fees (Including College Members)
BEIS,UKRI - AHRC,12/10/2020,Conferences & Seminars,SMT,Westminster Higher Education Forum,98831464,228.00,Conferences & Seminars
BEIS,UKRI - AHRC,13/10/2020,Research Grant Expenditure,GCRF - Programme Delivery,UKRI - Economic & Social Research Council,98826517,29303.97,Research Grant Expenditure
BEIS,UKRI - AHRC,13/10/2020,Other Programme Costs,Funds for International Collaboration (FIC 20 US),UKRI - Engineering & Physical Sciences Research Council,98830689,-1521.06,Other Programme Costs
BEIS,UKRI - AHRC,13/10/2020,Other Programme Costs,RCUK Other,UKRI - Engineering & Physical Sciences Research Council,98830691,169319.46,Other Programme Costs
BEIS,UKRI - AHRC,13/10/2020,T&S UK - Mileage,Industrial Strategy Challenge Fund (ISCF) - Creative Clusters,Unspecified,98832806,32.40,T&S UK - Mileage
BEIS,UKRI - AHRC,13/10/2020,T&S UK - Parking Tolls Congestion Charges,Industrial Strategy Challenge Fund (ISCF) - Creative Clusters,Unspecified,98832806,13.50,T&S UK - Parking Tolls Congestion Charges
BEIS,UKRI - AHRC,13/10/2020,Health & Safety (inc. Medicals & Opticians),Health and Environmental Humanities,Unspecified,98832807,13.99,Health & Safety (inc. Medicals & Opticians)
BEIS,UKRI - AHRC,14/10/2020,Fees (Including College Members),ISCF- Industrial Strategy Challenge Fund - skills,Unspecified,98830722,339.81,Fees (Including College Members)
BEIS,UKRI - AHRC,14/10/2020,Fees (Including College Members),ISCF- Industrial Strategy Challenge Fund - skills,Unspecified,98830723,339.81,Fees (Including College Members)
BEIS,UKRI - AHRC,14/10/2020,Fees (Including College Members),ISCF- Industrial Strategy Challenge Fund - skills,Unspecified,98830724,339.81,Fees (Including College Members)
BEIS,UKRI - AHRC,14/10/2020,Fees (Including College Members),ISCF- Industrial Strategy Challenge Fund - skills,Unspecified,98831279,339.81,Fees (Including College Members)
BEIS,UKRI - AHRC,14/10/2020,Fees (Including College Members),ISCF- Industrial Strategy Challenge Fund - skills,Unspecified,98831280,339.81,Fees (Including College Members)
BEIS,UKRI - AHRC,14/10/2020,Fees (Including College Members),ISCF- Industrial Strategy Challenge Fund - skills,Unspecified,98831281,339.81,Fees (Including College Members)
BEIS,UKRI - AHRC,14/10/2020,Fees (Including College Members),ISCF- Industrial Strategy Challenge Fund - skills,Unspecified,98831282,339.81,Fees (Including College Members)
BEIS,UKRI - AHRC,14/10/2020,Fees (Including College Members),ISCF- Industrial Strategy Challenge Fund - skills,Unspecified,98831283,339.81,Fees (Including College Members)
BEIS,UKRI - AHRC,14/10/2020,Fees (Including College Members),GCRF - Programme Delivery,Unspecified,98832435,340.00,Fees (Including College Members)
BEIS,UKRI - AHRC,14/10/2020,Fees (Including College Members),ISCF- Industrial Strategy Challenge Fund - skills,Unspecified,98832436,457.56,Fees (Including College Members)
BEIS,UKRI - AHRC,14/10/2020,Unspecified,Public Engagement,Giggabox Ltd,98833016,4999.80,Legal & Professional Services
BEIS,UKRI - AHRC,14/10/2020,Unspecified,Balance Sheet,HM Revenue & Customs,98833447,59628.53,NI Payable Salaries
BEIS,UKRI - AHRC,14/10/2020,Unspecified,Balance Sheet,HM Revenue & Customs,98833448,43217.70,PAYE Payable Salaries
BEIS,UKRI - AHRC,14/10/2020,Unspecified,Balance Sheet,HM Revenue & Customs,98833449,5096.00,Student Loans
BEIS,UKRI - AHRC,14/10/2020,Unspecified,Corporate Services,HM Revenue & Customs,98833450,1570.00,Apprenticeship Levy
BEIS,UKRI - AHRC,14/10/2020,Research Grant Expenditure,Digital Economy,UKRI - Engineering & Physical Sciences Research Council,98834738,-31316.03,Research Grant Expenditure
BEIS,UKRI - AHRC,15/10/2020,Voluntary Deductions,Balance Sheet,Chargive,98833451,570.83,Voluntary Deductions
BEIS,UKRI - AHRC,15/10/2020,Union Deductions,Balance Sheet,PCS Union,98833453,67.43,Union Deductions
BEIS,UKRI - AHRC,15/10/2020,Unspecified,Balance Sheet,Unspecified,98833454,10232.21,Ees Pension Deductions - JSS
BEIS,UKRI - AHRC,15/10/2020,Unspecified,Balance Sheet,Unspecified,98833455,47503.93,Ers Pension Deductions - JSS
BEIS,UKRI - AHRC,15/10/2020,Unspecified,Balance Sheet,Scottish Widows,98833456,376.28,Partnership Pension Deductions
BEIS,UKRI - AHRC,15/10/2020,Unspecified,Balance Sheet,Cabinet Office RM Shared Services,98833457,13.06,Ers Pension Deductions - JSS
BEIS,UKRI - AHRC,15/10/2020,Unspecified,Balance Sheet,Cabinet Office RM Shared Services,98833458,7479.59,Ees Pension Deductions - MyCSP
BEIS,UKRI - AHRC,15/10/2020,Unspecified,Balance Sheet,Cabinet Office RM Shared Services,98833459,37661.95,Ers Pension Deductions - MyCSP
BEIS,UKRI - AHRC,15/10/2020,Ees Pension Deductions - MRC,Balance Sheet,UKRI - Medical Research Council,98833460,136.75,Ees Pension Deductions - MRC
BEIS,UKRI - AHRC,15/10/2020,Ers Pension Deductions - MRC,Balance Sheet,UKRI - Medical Research Council,98833461,31559.00,Ers Pension Deductions - MRC
BEIS,UKRI - AHRC,15/10/2020,Nursery Deductions,Balance Sheet,UKRI - Engineering & Physical Sciences Research Council,98833462,600.00,Nursery Deductions
BEIS,UKRI - AHRC,15/10/2020,T&S UK - Other Charges,Strategy and Evidence,Unspecified,98834967,275.37,T&S UK - Other Charges
BEIS,UKRI - AHRC,15/10/2020,Fees (Including College Members),New Programme Development,Unspecified,98835262,340.00,Fees (Including College Members)
BEIS,UKRI - AHRC,15/10/2020,Fees (Including College Members),Public Engagement,Unspecified,98835263,300.00,Fees (Including College Members)
BEIS,UKRI - AHRC,15/10/2020,Fees (Including College Members),New Programme Development,Unspecified,98835264,340.00,Fees (Including College Members)
BEIS,UKRI - AHRC,16/10/2020,Fees (Including College Members),New Programme Development,Unspecified,98835453,170.00,Fees (Including College Members)
BEIS,UKRI - AHRC,16/10/2020,Fees (Including College Members),New Programme Development,Unspecified,98835454,170.00,Fees (Including College Members)
BEIS,UKRI - AHRC,16/10/2020,Fees (Including College Members),New Programme Development,Unspecified,98835455,170.00,Fees (Including College Members)
BEIS,UKRI - AHRC,16/10/2020,Unspecified,Digital Arts and Humanities and Creative Industries,The Edinburgh Television Festival Council,98835618,36540.00,Legal & Professional Services
BEIS,UKRI - AHRC,16/10/2020,Conferences & Seminars,SMT,Partnership Media Group T/A GovNet Communications,98835704,354.00,Conferences & Seminars
BEIS,UKRI - AHRC,19/10/2020,Fees (Including College Members),New Programme Development,Unspecified,98835209,170.00,Fees (Including College Members)
BEIS,UKRI - AHRC,19/10/2020,Fees (Including College Members),New Programme Development,Unspecified,98835210,460.00,Fees (Including College Members)
BEIS,UKRI - AHRC,19/10/2020,Fees (Including College Members),Modern Slavery and Human Rights (SPF),Unspecified,98835211,230.00,Fees (Including College Members)
BEIS,UKRI - AHRC,20/10/2020,Training Awards - Postgraduates,BGP Award,"Royal Holloway, University of London",98829938,299653.60,Training Awards - Postgraduates
BEIS,UKRI - AHRC,20/10/2020,Training Awards - Postgraduates,BGP Award,University of the West of England,98829939,52854.38,Training Awards - Postgraduates
BEIS,UKRI - AHRC,20/10/2020,Training Awards - Postgraduates,BGP Award,University of Hull,98829940,39640.79,Training Awards - Postgraduates
BEIS,UKRI - AHRC,20/10/2020,Training Awards - Postgraduates,BGP Award,University College London,98829941,57339.85,Training Awards - Postgraduates
BEIS,UKRI - AHRC,20/10/2020,Training Awards - Postgraduates,BGP Award,University College London,98829942,418351.50,Training Awards - Postgraduates
BEIS,UKRI - AHRC,20/10/2020,Training Awards - Postgraduates,BGP Award,University of Oxford,98829943,317126.25,Training Awards - Postgraduates
BEIS,UKRI - AHRC,20/10/2020,Training Awards - Postgraduates,BGP Award,University of Glasgow,98829944,317126.25,Training Awards - Postgraduates
BEIS,UKRI - AHRC,20/10/2020,Training Awards - Postgraduates,BGP Award,University of Newcastle Upon Tyne,98829945,245772.85,Training Awards - Postgraduates
BEIS,UKRI - AHRC,20/10/2020,Training Awards - Postgraduates,BGP Award,University of Bristol GRANT,98829946,317126.25,Training Awards - Postgraduates
BEIS,UKRI - AHRC,20/10/2020,Training Awards - Postgraduates,BGP Award,University of Glasgow,98829947,39640.79,Training Awards - Postgraduates
BEIS,UKRI - AHRC,20/10/2020,Training Awards - Postgraduates,BGP Award,Northumbria University,98829948,23784.47,Training Awards - Postgraduates
BEIS,UKRI - AHRC,20/10/2020,Training Awards - Postgraduates,BGP Award,The University of Manchester,98829949,317126.25,Training Awards - Postgraduates
BEIS,UKRI - AHRC,20/10/2020,Training Awards - Postgraduates,BGP Award,University of Cambridge,98829950,317126.25,Training Awards - Postgraduates
BEIS,UKRI - AHRC,20/10/2020,Training Awards - Postgraduates,BGP Award,University of Reading,98829951,48663.56,Training Awards - Postgraduates
BEIS,UKRI - AHRC,20/10/2020,Training Awards - Postgraduates,BGP Award,University of Sussex,98829952,374916.94,Training Awards - Postgraduates
BEIS,UKRI - AHRC,20/10/2020,Training Awards - Postgraduates,BGP Award,University of Nottingham,98829953,325054.41,Training Awards - Postgraduates
BEIS,UKRI - AHRC,20/10/2020,Training Awards - Postgraduates,BGP Award,University of York,98829954,428120.44,Training Awards - Postgraduates
BEIS,UKRI - AHRC,20/10/2020,Training Awards - Postgraduates,BGP Award,Royal College of Art,98829955,52293.94,Training Awards - Postgraduates
BEIS,UKRI - AHRC,20/10/2020,Training Awards - Postgraduates,Collabrative Doctoral Grants - Block Payment,University of Liverpool,98829956,5040.25,Training Awards - Postgraduates
BEIS,UKRI - AHRC,20/10/2020,Training Awards - Postgraduates,Collabrative Doctoral Grants - Block Payment,Coventry University,98829957,2531.97,Training Awards - Postgraduates
BEIS,UKRI - AHRC,20/10/2020,Training Awards - Postgraduates,Collabrative Doctoral Grants - Block Payment,University of Liverpool,98829958,2585.63,Training Awards - Postgraduates
BEIS,UKRI - AHRC,20/10/2020,Training Awards - Postgraduates,Collabrative Doctoral Grants - Block Payment,Courtauld Institute of Art,98829959,2781.97,Training Awards - Postgraduates
BEIS,UKRI - AHRC,20/10/2020,Training Awards - Postgraduates,Collabrative Doctoral Grants - Block Payment,University of Bradford,98829960,2532.01,Training Awards - Postgraduates
BEIS,UKRI - AHRC,20/10/2020,Training Awards - Postgraduates,Collabrative Doctoral Grants - Block Payment,University of Edinburgh,98829961,2599.50,Training Awards - Postgraduates
BEIS,UKRI - AHRC,20/10/2020,Training Awards - Postgraduates,Collabrative Doctoral Grants - Block Payment,University of Oxford,98829962,2580.75,Training Awards - Postgraduates
BEIS,UKRI - AHRC,20/10/2020,Training Awards - Postgraduates,Collabrative Doctoral Grants - Block Payment,Nottingham Trent University,98829963,2580.75,Training Awards - Postgraduates
BEIS,UKRI - AHRC,20/10/2020,Training Awards - Postgraduates,Collabrative Doctoral Grants - Block Payment,"Royal Holloway, University of London",98829964,2830.75,Training Awards - Postgraduates
BEIS,UKRI - AHRC,20/10/2020,Training Awards - Postgraduates,Collabrative Doctoral Grants - Block Payment,Nottingham Trent University,98829965,2580.75,Training Awards - Postgraduates
BEIS,UKRI - AHRC,20/10/2020,Training Awards - Postgraduates,Collabrative Doctoral Grants - Block Payment,University of Sheffield,98829966,2580.75,Training Awards - Postgraduates
BEIS,UKRI - AHRC,20/10/2020,Training Awards - Postgraduates,Collabrative Doctoral Grants - Block Payment,University of Kent,98829967,2580.75,Training Awards - Postgraduates
BEIS,UKRI - AHRC,20/10/2020,Training Awards - Postgraduates,Collabrative Doctoral Grants - Block Payment,Birkbeck College,98829968,2830.75,Training Awards - Postgraduates
BEIS,UKRI - AHRC,20/10/2020,Training Awards - Postgraduates,Collabrative Doctoral Grants - Block Payment,University of Wolverhampton,98829969,2580.75,Training Awards - Postgraduates
BEIS,UKRI - AHRC,20/10/2020,Training Awards - Postgraduates,Collabrative Doctoral Grants - Block Payment,University of Edinburgh,98829970,2580.75,Training Awards - Postgraduates
BEIS,UKRI - AHRC,20/10/2020,Training Awards - Postgraduates,Collabrative Doctoral Grants - Block Payment,University of Bristol GRANT,98829971,2580.75,Training Awards - Postgraduates
BEIS,UKRI - AHRC,20/10/2020,Training Awards - Postgraduates,Collabrative Doctoral Grants - Block Payment,University of Edinburgh,98829972,2580.75,Training Awards - Postgraduates
BEIS,UKRI - AHRC,20/10/2020,Training Awards - Postgraduates,Collabrative Doctoral Grants - Block Payment,University of Durham,98829973,2580.75,Training Awards - Postgraduates
BEIS,UKRI - AHRC,20/10/2020,Training Awards - Postgraduates,Collabrative Doctoral Grants - Block Payment,University of Leeds,98829974,2580.75,Training Awards - Postgraduates
BEIS,UKRI - AHRC,20/10/2020,Training Awards - Postgraduates,Collabrative Doctoral Grants - Block Payment,University of Leicester,98829975,2580.75,Training Awards - Postgraduates
BEIS,UKRI - AHRC,20/10/2020,Training Awards - Postgraduates,Collabrative Doctoral Grants - Block Payment,University of Stirling,98829976,2580.75,Training Awards - Postgraduates
BEIS,UKRI - AHRC,20/10/2020,Training Awards - Postgraduates,Collabrative Doctoral Grants - Block Payment,University of Leeds,98829977,2580.75,Training Awards - Postgraduates
BEIS,UKRI - AHRC,20/10/2020,Training Awards - Postgraduates,Collabrative Doctoral Grants - Block Payment,University of St Andrews,98829978,2580.75,Training Awards - Postgraduates
BEIS,UKRI - AHRC,20/10/2020,Training Awards - Postgraduates,Collabrative Doctoral Grants - Block Payment,University of Leicester,98829979,2580.75,Training Awards - Postgraduates
BEIS,UKRI - AHRC,20/10/2020,Training Awards - Postgraduates,Collabrative Doctoral Grants - Block Payment,University of Central Lancashire,98829980,2580.75,Training Awards - Postgraduates
BEIS,UKRI - AHRC,20/10/2020,Training Awards - Postgraduates,Collabrative Doctoral Grants - Block Payment,University of Sussex,98829981,2580.75,Training Awards - Postgraduates
BEIS,UKRI - AHRC,20/10/2020,Training Awards - Postgraduates,Collabrative Doctoral Grants - Block Payment,University of Exeter,98829982,2580.75,Training Awards - Postgraduates
BEIS,UKRI - AHRC,20/10/2020,Training Awards - Postgraduates,Collabrative Doctoral Grants - Block Payment,University of Edinburgh,98829983,2580.75,Training Awards - Postgraduates
BEIS,UKRI - AHRC,20/10/2020,Training Awards - Postgraduates,Collabrative Doctoral Grants - Block Payment,University of Nottingham,98829984,2580.75,Training Awards - Postgraduates
BEIS,UKRI - AHRC,20/10/2020,Training Awards - Postgraduates,Collabrative Doctoral Grants - Block Payment,University of Glasgow,98829985,2580.75,Training Awards - Postgraduates
BEIS,UKRI - AHRC,20/10/2020,Training Awards - Postgraduates,Collabrative Doctoral Grants - Block Payment,University College London,98829986,2830.75,Training Awards - Postgraduates
BEIS,UKRI - AHRC,20/10/2020,Training Awards - Postgraduates,Collabrative Doctoral Grants - Block Payment,University of Birmingham GRANT,98829987,2580.75,Training Awards - Postgraduates
BEIS,UKRI - AHRC,20/10/2020,Training Awards - Postgraduates,Collabrative Doctoral Grants - Block Payment,Birkbeck College,98829988,2830.75,Training Awards - Postgraduates
BEIS,UKRI - AHRC,20/10/2020,Training Awards - Postgraduates,Collabrative Doctoral Grants - Block Payment,University of Oxford,98829989,2580.75,Training Awards - Postgraduates
BEIS,UKRI - AHRC,20/10/2020,Training Awards - Postgraduates,Collabrative Doctoral Grants - Block Payment,University of London,98829990,2830.75,Training Awards - Postgraduates
BEIS,UKRI - AHRC,20/10/2020,Training Awards - Postgraduates,Collabrative Doctoral Grants - Block Payment,University of Leicester,98829991,2580.75,Training Awards - Postgraduates
BEIS,UKRI - AHRC,20/10/2020,Training Awards - Postgraduates,Collabrative Doctoral Grants - Block Payment,King's College London,98829992,2830.75,Training Awards - Postgraduates
BEIS,UKRI - AHRC,20/10/2020,Training Awards - Postgraduates,Collabrative Doctoral Grants - Block Payment,University of Leeds,98829993,5117.72,Training Awards - Postgraduates
BEIS,UKRI - AHRC,20/10/2020,Training Awards - Postgraduates,Collabrative Doctoral Grants - Block Payment,De Montfort University,98829994,2580.75,Training Awards - Postgraduates
BEIS,UKRI - AHRC,20/10/2020,Training Awards - Postgraduates,Collabrative Doctoral Grants - Block Payment,University of Leicester,98829995,2580.75,Training Awards - Postgraduates
BEIS,UKRI - AHRC,20/10/2020,Training Awards - Postgraduates,Collabrative Doctoral Grants - Block Payment,Birkbeck College,98829996,2830.75,Training Awards - Postgraduates
BEIS,UKRI - AHRC,20/10/2020,Training Awards - Postgraduates,Collabrative Doctoral Grants - Block Payment,University of Reading,98829997,2580.75,Training Awards - Postgraduates
BEIS,UKRI - AHRC,20/10/2020,Training Awards - Postgraduates,Collabrative Doctoral Grants - Block Payment,University of York,98829998,2580.75,Training Awards - Postgraduates
BEIS,UKRI - AHRC,20/10/2020,Training Awards - Postgraduates,Collabrative Doctoral Grants - Block Payment,Courtauld Institute of Art,98829999,2830.75,Training Awards - Postgraduates
BEIS,UKRI - AHRC,20/10/2020,Training Awards - Postgraduates,Collabrative Doctoral Grants - Block Payment,University of York,98830000,2580.75,Training Awards - Postgraduates
BEIS,UKRI - AHRC,20/10/2020,Training Awards - Postgraduates,Collabrative Doctoral Grants - Block Payment,The University of Manchester,98830001,2580.75,Training Awards - Postgraduates
BEIS,UKRI - AHRC,20/10/2020,Training Awards - Postgraduates,Collabrative Doctoral Grants - Block Payment,Cardiff University,98830002,2580.75,Training Awards - Postgraduates
BEIS,UKRI - AHRC,20/10/2020,Training Awards - Postgraduates,Collabrative Doctoral Grants - Block Payment,University of Reading,98830003,2580.75,Training Awards - Postgraduates
BEIS,UKRI - AHRC,20/10/2020,Training Awards - Postgraduates,Collabrative Doctoral Grants - Block Payment,De Montfort University,98830004,2580.75,Training Awards - Postgraduates
BEIS,UKRI - AHRC,20/10/2020,Training Awards - Postgraduates,Collabrative Doctoral Grants - Block Payment,University of Westminster,98830005,2830.75,Training Awards - Postgraduates
BEIS,UKRI - AHRC,20/10/2020,Training Awards - Postgraduates,Collabrative Doctoral Grants - Block Payment,The University of Manchester,98830006,2580.75,Training Awards - Postgraduates
BEIS,UKRI - AHRC,20/10/2020,Training Awards - Postgraduates,Collabrative Doctoral Grants - Block Payment,Royal College of Art,98830007,2830.75,Training Awards - Postgraduates
BEIS,UKRI - AHRC,20/10/2020,Training Awards - Postgraduates,Collabrative Doctoral Grants - Block Payment,Northumbria University,98830008,2580.75,Training Awards - Postgraduates
BEIS,UKRI - AHRC,20/10/2020,Training Awards - Postgraduates,Collabrative Doctoral Grants - Block Payment,Glasgow School of Art,98830009,2580.75,Training Awards - Postgraduates
BEIS,UKRI - AHRC,20/10/2020,Training Awards - Postgraduates,BGP Award,University of Glasgow,98830010,64952.40,Training Awards - Postgraduates
BEIS,UKRI - AHRC,20/10/2020,Training Awards - Postgraduates,BGP Award,University of Newcastle Upon Tyne,98830011,64069.60,Training Awards - Postgraduates
BEIS,UKRI - AHRC,20/10/2020,Training Awards - Postgraduates,BGP Award,The University of Manchester,98830012,64951.40,Training Awards - Postgraduates
BEIS,UKRI - AHRC,20/10/2020,Training Awards - Postgraduates,BGP Award,University of the West of England,98830013,64952.40,Training Awards - Postgraduates
BEIS,UKRI - AHRC,20/10/2020,Training Awards - Postgraduates,BGP Award,University of Nottingham,98830014,54127.00,Training Awards - Postgraduates
BEIS,UKRI - AHRC,20/10/2020,Training Awards - Postgraduates,BGP Award,"Royal Holloway, University of London",98830015,66938.00,Training Awards - Postgraduates
BEIS,UKRI - AHRC,20/10/2020,Training Awards - Postgraduates,Collabrative Doctoral Grants - Block Payment,University of London,98830016,5610.00,Training Awards - Postgraduates
BEIS,UKRI - AHRC,20/10/2020,Training Awards - Postgraduates,Collabrative Doctoral Grants - Block Payment,University of Sheffield,98830017,5110.00,Training Awards - Postgraduates
BEIS,UKRI - AHRC,20/10/2020,Training Awards - Postgraduates,Collabrative Doctoral Grants - Block Payment,University College London,98830018,5610.00,Training Awards - Postgraduates
BEIS,UKRI - AHRC,20/10/2020,Training Awards - Postgraduates,Collabrative Doctoral Grants - Block Payment,University of Sheffield,98830019,5110.00,Training Awards - Postgraduates
BEIS,UKRI - AHRC,20/10/2020,Training Awards - Postgraduates,Collabrative Doctoral Grants - Block Payment,"SOAS, University of London",98830020,5610.00,Training Awards - Postgraduates
BEIS,UKRI - AHRC,20/10/2020,Training Awards - Postgraduates,Collabrative Doctoral Grants - Block Payment,Northumbria University,98830021,5110.00,Training Awards - Postgraduates
BEIS,UKRI - AHRC,20/10/2020,Training Awards - Postgraduates,Collabrative Doctoral Grants - Block Payment,King's College London,98830022,5610.00,Training Awards - Postgraduates
BEIS,UKRI - AHRC,20/10/2020,Training Awards - Postgraduates,Collabrative Doctoral Grants - Block Payment,University of Brighton,98830023,5110.00,Training Awards - Postgraduates
BEIS,UKRI - AHRC,20/10/2020,Training Awards - Postgraduates,Collabrative Doctoral Grants - Block Payment,University of Stirling,98830024,5110.00,Training Awards - Postgraduates
BEIS,UKRI - AHRC,20/10/2020,Training Awards - Postgraduates,Collabrative Doctoral Grants - Block Payment,University of Liverpool,98830025,5110.00,Training Awards - Postgraduates
BEIS,UKRI - AHRC,20/10/2020,Training Awards - Postgraduates,Collabrative Doctoral Grants - Block Payment,Robert Gordon University,98830026,5110.00,Training Awards - Postgraduates
BEIS,UKRI - AHRC,20/10/2020,Training Awards - Postgraduates,Collabrative Doctoral Grants - Block Payment,University of Exeter,98830027,5110.00,Training Awards - Postgraduates
BEIS,UKRI - AHRC,20/10/2020,Training Awards - Postgraduates,Collabrative Doctoral Grants - Block Payment,University of Edinburgh,98830028,5110.00,Training Awards - Postgraduates
BEIS,UKRI - AHRC,20/10/2020,Training Awards - Postgraduates,Collabrative Doctoral Grants - Block Payment,University of Durham,98830029,5110.00,Training Awards - Postgraduates
BEIS,UKRI - AHRC,20/10/2020,Training Awards - Postgraduates,Collabrative Doctoral Grants - Block Payment,"City, University of London",98830030,5523.25,Training Awards - Postgraduates
BEIS,UKRI - AHRC,20/10/2020,Training Awards - Postgraduates,Collabrative Doctoral Grants - Block Payment,University College London,98830031,5610.00,Training Awards - Postgraduates
BEIS,UKRI - AHRC,20/10/2020,Training Awards - Postgraduates,Collabrative Doctoral Grants - Block Payment,University of Leeds,98830032,5110.00,Training Awards - Postgraduates
BEIS,UKRI - AHRC,20/10/2020,Training Awards - Postgraduates,Collabrative Doctoral Grants - Block Payment,University College London,98830033,5610.00,Training Awards - Postgraduates
BEIS,UKRI - AHRC,20/10/2020,Training Awards - Postgraduates,Collabrative Doctoral Grants - Block Payment,King's College London,98830034,5610.00,Training Awards - Postgraduates
BEIS,UKRI - AHRC,20/10/2020,Training Awards - Postgraduates,Collabrative Doctoral Grants - Block Payment,University of Southampton GRANT,98830035,5110.00,Training Awards - Postgraduates
BEIS,UKRI - AHRC,20/10/2020,Training Awards - Postgraduates,Collabrative Doctoral Grants - Block Payment,University of Central Lancashire,98830036,5110.00,Training Awards - Postgraduates
BEIS,UKRI - AHRC,20/10/2020,Training Awards - Postgraduates,Collabrative Doctoral Grants - Block Payment,Birkbeck College,98830037,5610.00,Training Awards - Postgraduates
BEIS,UKRI - AHRC,20/10/2020,Training Awards - Postgraduates,Collabrative Doctoral Grants - Block Payment,University of Glasgow,98830038,5110.00,Training Awards - Postgraduates
BEIS,UKRI - AHRC,20/10/2020,Training Awards - Postgraduates,Collabrative Doctoral Grants - Block Payment,University of Stirling,98830039,5110.00,Training Awards - Postgraduates
BEIS,UKRI - AHRC,20/10/2020,Training Awards - Postgraduates,Collabrative Doctoral Grants - Block Payment,University of Newcastle Upon Tyne,98830040,5110.00,Training Awards - Postgraduates
BEIS,UKRI - AHRC,20/10/2020,Training Awards - Postgraduates,Collabrative Doctoral Grants - Block Payment,University of Leeds,98830041,5110.00,Training Awards - Postgraduates
BEIS,UKRI - AHRC,20/10/2020,Training Awards - Postgraduates,Collabrative Doctoral Grants - Block Payment,University of Oxford,98830042,5110.00,Training Awards - Postgraduates
BEIS,UKRI - AHRC,20/10/2020,Training Awards - Postgraduates,Collabrative Doctoral Grants - Block Payment,University of York,98830043,5110.00,Training Awards - Postgraduates
BEIS,UKRI - AHRC,20/10/2020,Training Awards - Postgraduates,Collabrative Doctoral Grants - Block Payment,University of Kent,98830044,5110.00,Training Awards - Postgraduates
BEIS,UKRI - AHRC,20/10/2020,Training Awards - Postgraduates,Collabrative Doctoral Grants - Block Payment,University of Cambridge,98830045,5110.00,Training Awards - Postgraduates
BEIS,UKRI - AHRC,20/10/2020,Training Awards - Postgraduates,Collabrative Doctoral Grants - Block Payment,Courtauld Institute of Art,98830046,5610.00,Training Awards - Postgraduates
BEIS,UKRI - AHRC,20/10/2020,Training Awards - Postgraduates,Collabrative Doctoral Grants - Block Payment,Queen Mary University of London,98830047,5610.00,Training Awards - Postgraduates
BEIS,UKRI - AHRC,20/10/2020,Training Awards - Postgraduates,Collabrative Doctoral Grants - Block Payment,University of Aberdeen,98830048,5110.00,Training Awards - Postgraduates
BEIS,UKRI - AHRC,20/10/2020,Training Awards - Postgraduates,Collabrative Doctoral Grants - Block Payment,University of Durham,98830049,5110.00,Training Awards - Postgraduates
BEIS,UKRI - AHRC,20/10/2020,Training Awards - Postgraduates,Collabrative Doctoral Grants - Block Payment,University College London,98830050,5610.00,Training Awards - Postgraduates
BEIS,UKRI - AHRC,20/10/2020,Training Awards - Postgraduates,Collabrative Doctoral Grants - Block Payment,University of Kent,98830051,5110.00,Training Awards - Postgraduates
BEIS,UKRI - AHRC,20/10/2020,Training Awards - Postgraduates,Collabrative Doctoral Grants - Block Payment,University of Cambridge,98830052,5110.00,Training Awards - Postgraduates
BEIS,UKRI - AHRC,20/10/2020,Training Awards - Postgraduates,Collabrative Doctoral Grants - Block Payment,University of Cambridge,98830053,5110.00,Training Awards - Postgraduates
BEIS,UKRI - AHRC,20/10/2020,Training Awards - Postgraduates,Collabrative Doctoral Grants - Block Payment,University of Leeds,98830054,5110.00,Training Awards - Postgraduates
BEIS,UKRI - AHRC,20/10/2020,Training Awards - Postgraduates,Collabrative Doctoral Grants - Block Payment,University of Leeds,98830055,5110.00,Training Awards - Postgraduates
BEIS,UKRI - AHRC,20/10/2020,Training Awards - Postgraduates,Collabrative Doctoral Grants - Block Payment,University of Strathclyde,98830056,5110.00,Training Awards - Postgraduates
BEIS,UKRI - AHRC,20/10/2020,Training Awards - Postgraduates,Collabrative Doctoral Grants - Block Payment,University of London,98830057,4342.97,Training Awards - Postgraduates
BEIS,UKRI - AHRC,20/10/2020,Training Awards - Postgraduates,Collabrative Doctoral Grants - Block Payment,Keele University,98830058,5110.00,Training Awards - Postgraduates
BEIS,UKRI - AHRC,20/10/2020,Training Awards - Postgraduates,Collabrative Doctoral Grants - Block Payment,Goldsmiths College University of London,98830059,5610.00,Training Awards - Postgraduates
BEIS,UKRI - AHRC,20/10/2020,Training Awards - Postgraduates,Collabrative Doctoral Grants - Block Payment,De Montfort University,98830060,5110.00,Training Awards - Postgraduates
BEIS,UKRI - AHRC,20/10/2020,Training Awards - Postgraduates,Collabrative Doctoral Grants - Block Payment,Sheffield Hallam University,98830061,5110.00,Training Awards - Postgraduates
BEIS,UKRI - AHRC,20/10/2020,Training Awards - Postgraduates,Collabrative Doctoral Grants - Block Payment,De Montfort University,98830062,5110.00,Training Awards - Postgraduates
BEIS,UKRI - AHRC,20/10/2020,Training Awards - Postgraduates,Collabrative Doctoral Grants - Block Payment,University of the Arts London,98830063,5610.00,Training Awards - Postgraduates
BEIS,UKRI - AHRC,20/10/2020,Training Awards - Postgraduates,Collabrative Doctoral Grants - Block Payment,Royal College of Art,98830064,5610.00,Training Awards - Postgraduates
BEIS,UKRI - AHRC,20/10/2020,Training Awards - Postgraduates,Industrial Strategy Challenge Fund (ISCF) - Skills,The University of Manchester,98830065,19666.12,Training Awards - Postgraduates
BEIS,UKRI - AHRC,20/10/2020,Training Awards - Postgraduates,Industrial Strategy Challenge Fund (ISCF) - Skills,University of Glasgow,98830066,19666.12,Training Awards - Postgraduates
BEIS,UKRI - AHRC,20/10/2020,Training Awards - Postgraduates,Industrial Strategy Challenge Fund (ISCF) - Skills,University of Newcastle Upon Tyne,98830067,19666.12,Training Awards - Postgraduates
BEIS,UKRI - AHRC,20/10/2020,Training Awards - Postgraduates,Industrial Strategy Challenge Fund (ISCF) - Skills,"Royal Holloway, University of London",98830068,21606.87,Training Awards - Postgraduates
BEIS,UKRI - AHRC,20/10/2020,Training Awards - Postgraduates,Industrial Strategy Challenge Fund (ISCF) - Skills,University of Nottingham,98830069,19666.12,Training Awards - Postgraduates
BEIS,UKRI - AHRC,20/10/2020,Training Awards - Postgraduates,Industrial Strategy Challenge Fund (ISCF) - Skills,University of the West of England,98830070,19665.67,Training Awards - Postgraduates
BEIS,UKRI - AHRC,20/10/2020,Training Awards - Postgraduates,BGP Award,University of Nottingham,98830071,488571.41,Training Awards - Postgraduates
BEIS,UKRI - AHRC,20/10/2020,Training Awards - Postgraduates,BGP Award,University of York,98830072,340578.00,Training Awards - Postgraduates
BEIS,UKRI - AHRC,20/10/2020,Training Awards - Postgraduates,BGP Award,University College London,98830073,525538.13,Training Awards - Postgraduates
BEIS,UKRI - AHRC,20/10/2020,Training Awards - Postgraduates,BGP Award,University of Newcastle Upon Tyne,98830074,404985.00,Training Awards - Postgraduates
BEIS,UKRI - AHRC,20/10/2020,Training Awards - Postgraduates,BGP Award,The University of Manchester,98830075,319725.00,Training Awards - Postgraduates
BEIS,UKRI - AHRC,20/10/2020,Training Awards - Postgraduates,BGP Award,University of Oxford,98830076,542796.18,Training Awards - Postgraduates
BEIS,UKRI - AHRC,20/10/2020,Training Awards - Postgraduates,BGP Award,University of Bristol GRANT,98830077,212572.50,Training Awards - Postgraduates
BEIS,UKRI - AHRC,20/10/2020,Training Awards - Postgraduates,BGP Award,University of Glasgow,98830078,404985.00,Training Awards - Postgraduates
BEIS,UKRI - AHRC,20/10/2020,Training Awards - Postgraduates,BGP Award,"Royal Holloway, University of London",98830079,436905.00,Training Awards - Postgraduates
BEIS,UKRI - AHRC,20/10/2020,Training Awards - Postgraduates,BGP Award,University of Sussex,98830080,412684.13,Training Awards - Postgraduates
BEIS,UKRI - AHRC,20/10/2020,Training Awards - Postgraduates,Collabrative Doctoral Grants - Block Payment,Glasgow Caledonian University,98830081,5021.50,Training Awards - Postgraduates
BEIS,UKRI - AHRC,20/10/2020,Training Awards - Postgraduates,Collabrative Doctoral Grants - Block Payment,University of Edinburgh,98830082,5101.75,Training Awards - Postgraduates
BEIS,UKRI - AHRC,20/10/2020,Training Awards - Postgraduates,Collabrative Doctoral Grants - Block Payment,"City, University of London",98830083,5601.75,Training Awards - Postgraduates
BEIS,UKRI - AHRC,20/10/2020,Training Awards - Postgraduates,Collabrative Doctoral Grants - Block Payment,University of York,98830084,5101.75,Training Awards - Postgraduates
BEIS,UKRI - AHRC,20/10/2020,Training Awards - Postgraduates,Collabrative Doctoral Grants - Block Payment,University of Leicester,98830085,5101.75,Training Awards - Postgraduates
BEIS,UKRI - AHRC,20/10/2020,Training Awards - Postgraduates,Collabrative Doctoral Grants - Block Payment,Loughborough University,98830086,5101.75,Training Awards - Postgraduates
BEIS,UKRI - AHRC,20/10/2020,Training Awards - Postgraduates,Collabrative Doctoral Grants - Block Payment,University of Hull,98830087,5101.75,Training Awards - Postgraduates
BEIS,UKRI - AHRC,20/10/2020,Training Awards - Postgraduates,Collabrative Doctoral Grants - Block Payment,University College London,98830088,5601.75,Training Awards - Postgraduates
BEIS,UKRI - AHRC,20/10/2020,Training Awards - Postgraduates,Collabrative Doctoral Grants - Block Payment,University of Brighton,98830089,5101.75,Training Awards - Postgraduates
BEIS,UKRI - AHRC,20/10/2020,Training Awards - Postgraduates,Collabrative Doctoral Grants - Block Payment,University of Glasgow,98830090,5101.75,Training Awards - Postgraduates
BEIS,UKRI - AHRC,20/10/2020,Training Awards - Postgraduates,Collabrative Doctoral Grants - Block Payment,University of East Anglia,98830091,5021.50,Training Awards - Postgraduates
BEIS,UKRI - AHRC,20/10/2020,Training Awards - Postgraduates,Collabrative Doctoral Grants - Block Payment,University of London,98830092,5601.75,Training Awards - Postgraduates
BEIS,UKRI - AHRC,20/10/2020,Training Awards - Postgraduates,Collabrative Doctoral Grants - Block Payment,University of Bristol GRANT,98830093,5101.75,Training Awards - Postgraduates
BEIS,UKRI - AHRC,20/10/2020,Training Awards - Postgraduates,Collabrative Doctoral Grants - Block Payment,Imperial College London,98830094,5601.75,Training Awards - Postgraduates
BEIS,UKRI - AHRC,20/10/2020,Training Awards - Postgraduates,Collabrative Doctoral Grants - Block Payment,University of St Andrews,98830095,5101.75,Training Awards - Postgraduates
BEIS,UKRI - AHRC,20/10/2020,Training Awards - Postgraduates,Collabrative Doctoral Grants - Block Payment,Goldsmiths College University of London,98830096,5601.75,Training Awards - Postgraduates
BEIS,UKRI - AHRC,20/10/2020,Training Awards - Postgraduates,Collabrative Doctoral Grants - Block Payment,University of Leeds,98830097,5101.75,Training Awards - Postgraduates
BEIS,UKRI - AHRC,20/10/2020,Training Awards - Postgraduates,Collabrative Doctoral Grants - Block Payment,University of Hertfordshire,98830098,4487.55,Training Awards - Postgraduates
BEIS,UKRI - AHRC,20/10/2020,Training Awards - Postgraduates,Collabrative Doctoral Grants - Block Payment,De Montfort University,98830099,4487.52,Training Awards - Postgraduates
BEIS,UKRI - AHRC,20/10/2020,Training Awards - Postgraduates,Collabrative Doctoral Grants - Block Payment,University of Edinburgh,98830100,5101.75,Training Awards - Postgraduates
BEIS,UKRI - AHRC,20/10/2020,Training Awards - Postgraduates,Collabrative Doctoral Grants - Block Payment,University of Edinburgh,98830101,5101.75,Training Awards - Postgraduates
BEIS,UKRI - AHRC,20/10/2020,Training Awards - Postgraduates,Collabrative Doctoral Grants - Block Payment,University of Leicester,98830102,5101.75,Training Awards - Postgraduates
BEIS,UKRI - AHRC,20/10/2020,Training Awards - Postgraduates,Collabrative Doctoral Grants - Block Payment,University of York,98830103,5101.75,Training Awards - Postgraduates
BEIS,UKRI - AHRC,20/10/2020,Training Awards - Postgraduates,Collabrative Doctoral Grants - Block Payment,University of Durham,98830104,5101.75,Training Awards - Postgraduates
BEIS,UKRI - AHRC,20/10/2020,Training Awards - Postgraduates,Collabrative Doctoral Grants - Block Payment,University of Warwick,98830105,5101.75,Training Awards - Postgraduates
BEIS,UKRI - AHRC,20/10/2020,Training Awards - Postgraduates,Collabrative Doctoral Grants - Block Payment,University of Brighton,98830106,5101.75,Training Awards - Postgraduates
BEIS,UKRI - AHRC,20/10/2020,Training Awards - Postgraduates,Collabrative Doctoral Grants - Block Payment,University of Southampton GRANT,98830107,5101.75,Training Awards - Postgraduates
BEIS,UKRI - AHRC,20/10/2020,Training Awards - Postgraduates,Collabrative Doctoral Grants - Block Payment,University College London,98830108,5601.75,Training Awards - Postgraduates
BEIS,UKRI - AHRC,20/10/2020,Training Awards - Postgraduates,Collabrative Doctoral Grants - Block Payment,University of East Anglia,98830109,5101.75,Training Awards - Postgraduates
BEIS,UKRI - AHRC,20/10/2020,Training Awards - Postgraduates,Collabrative Doctoral Grants - Block Payment,University of Nottingham,98830110,5101.75,Training Awards - Postgraduates
BEIS,UKRI - AHRC,20/10/2020,Training Awards - Postgraduates,Collabrative Doctoral Grants - Block Payment,University of Leeds,98830111,5101.75,Training Awards - Postgraduates
BEIS,UKRI - AHRC,20/10/2020,Training Awards - Postgraduates,Collabrative Doctoral Grants - Block Payment,University of Bristol GRANT,98830112,5101.75,Training Awards - Postgraduates
BEIS,UKRI - AHRC,20/10/2020,Training Awards - Postgraduates,Collabrative Doctoral Grants - Block Payment,The Open University,98830113,5101.75,Training Awards - Postgraduates
BEIS,UKRI - AHRC,20/10/2020,Training Awards - Postgraduates,Collabrative Doctoral Grants - Block Payment,University of the Arts London,98830114,5601.75,Training Awards - Postgraduates
BEIS,UKRI - AHRC,20/10/2020,Training Awards - Postgraduates,Collabrative Doctoral Grants - Block Payment,University of Strathclyde,98830115,5101.75,Training Awards - Postgraduates
BEIS,UKRI - AHRC,20/10/2020,Training Awards - Postgraduates,Collabrative Doctoral Grants - Block Payment,University of Oxford,98830116,5101.75,Training Awards - Postgraduates
BEIS,UKRI - AHRC,20/10/2020,Training Awards - Postgraduates,Collabrative Doctoral Grants - Block Payment,King's College London,98830117,5601.75,Training Awards - Postgraduates
BEIS,UKRI - AHRC,20/10/2020,Training Awards - Postgraduates,Collabrative Doctoral Grants - Block Payment,Birkbeck College,98830118,5601.75,Training Awards - Postgraduates
BEIS,UKRI - AHRC,20/10/2020,Training Awards - Postgraduates,Collabrative Doctoral Grants - Block Payment,University of Edinburgh,98830119,5101.75,Training Awards - Postgraduates
BEIS,UKRI - AHRC,20/10/2020,Training Awards - Postgraduates,Collabrative Doctoral Grants - Block Payment,University College London,98830120,5601.75,Training Awards - Postgraduates
BEIS,UKRI - AHRC,20/10/2020,Training Awards - Postgraduates,Collabrative Doctoral Grants - Block Payment,University of Leeds,98830121,5101.75,Training Awards - Postgraduates
BEIS,UKRI - AHRC,20/10/2020,Training Awards - Postgraduates,Collabrative Doctoral Grants - Block Payment,University College London,98830122,4987.53,Training Awards - Postgraduates
BEIS,UKRI - AHRC,20/10/2020,Training Awards - Postgraduates,Collabrative Doctoral Grants - Block Payment,Sheffield Hallam University,98830123,5101.75,Training Awards - Postgraduates
BEIS,UKRI - AHRC,20/10/2020,Training Awards - Postgraduates,Collabrative Doctoral Grants - Block Payment,University of Kent,98830124,5101.75,Training Awards - Postgraduates
BEIS,UKRI - AHRC,20/10/2020,Training Awards - Postgraduates,Collabrative Doctoral Grants - Block Payment,University of East Anglia,98830125,5101.75,Training Awards - Postgraduates
BEIS,UKRI - AHRC,20/10/2020,Training Awards - Postgraduates,Collabrative Doctoral Grants - Block Payment,University of the Arts London,98830126,5601.75,Training Awards - Postgraduates
BEIS,UKRI - AHRC,20/10/2020,Training Awards - Postgraduates,Collabrative Doctoral Grants - Block Payment,University College London,98830127,5601.75,Training Awards - Postgraduates
BEIS,UKRI - AHRC,20/10/2020,Training Awards - Postgraduates,Collabrative Doctoral Grants - Block Payment,King's College London,98830128,5601.75,Training Awards - Postgraduates
BEIS,UKRI - AHRC,20/10/2020,Training Awards - Postgraduates,Collabrative Doctoral Grants - Block Payment,Cardiff University,98830129,4487.55,Training Awards - Postgraduates
BEIS,UKRI - AHRC,20/10/2020,Training Awards - Postgraduates,Collabrative Doctoral Grants - Block Payment,University of Brighton,98830130,5021.50,Training Awards - Postgraduates
BEIS,UKRI - AHRC,20/10/2020,Training Awards - Postgraduates,Collabrative Doctoral Grants - Block Payment,University of Exeter,98830131,5435.50,Training Awards - Postgraduates
BEIS,UKRI - AHRC,20/10/2020,Training Awards - Postgraduates,Collabrative Doctoral Grants - Block Payment,London School of Economics and Political Science,98830132,5685.50,Training Awards - Postgraduates
BEIS,UKRI - AHRC,20/10/2020,Training Awards - Postgraduates,Collabrative Doctoral Grants - Block Payment,University of Reading,98830133,5435.50,Training Awards - Postgraduates
BEIS,UKRI - AHRC,20/10/2020,Training Awards - Postgraduates,Collabrative Doctoral Grants - Block Payment,University College London,98830134,5685.50,Training Awards - Postgraduates
BEIS,UKRI - AHRC,20/10/2020,Training Awards - Postgraduates,Collabrative Doctoral Grants - Block Payment,Cardiff University,98830135,5435.50,Training Awards - Postgraduates
BEIS,UKRI - AHRC,20/10/2020,Training Awards - Postgraduates,Collabrative Doctoral Grants - Block Payment,University of Reading,98830136,5435.50,Training Awards - Postgraduates
BEIS,UKRI - AHRC,20/10/2020,Training Awards - Postgraduates,Collabrative Doctoral Grants - Block Payment,University of Edinburgh,98830137,5185.50,Training Awards - Postgraduates
BEIS,UKRI - AHRC,20/10/2020,Training Awards - Postgraduates,Collabrative Doctoral Grants - Block Payment,Canterbury Christ Church University GRANT,98830138,5435.50,Training Awards - Postgraduates
BEIS,UKRI - AHRC,20/10/2020,Training Awards - Postgraduates,Collabrative Doctoral Grants - Block Payment,University of Edinburgh,98830139,5185.50,Training Awards - Postgraduates
BEIS,UKRI - AHRC,20/10/2020,Training Awards - Postgraduates,Collabrative Doctoral Grants - Block Payment,University of Bath,98830140,5185.50,Training Awards - Postgraduates
BEIS,UKRI - AHRC,20/10/2020,Training Awards - Postgraduates,Collabrative Doctoral Grants - Block Payment,University of Exeter,98830141,10035.12,Training Awards - Postgraduates
BEIS,UKRI - AHRC,20/10/2020,Training Awards - Postgraduates,International Placement Scheme,University of York,98830142,4470.00,Training Awards - Postgraduates
BEIS,UKRI - AHRC,20/10/2020,Training Awards - Postgraduates,International Placement Scheme,University of Kent,98830143,4470.00,Training Awards - Postgraduates
BEIS,UKRI - AHRC,20/10/2020,Training Awards - Postgraduates,International Placement Scheme,University of York,98830144,-894.00,Training Awards - Postgraduates
BEIS,UKRI - AHRC,21/10/2020,Conferences & Seminars,SMT,Westminster Forum Projects Ltd,98835929,228.00,Conferences & Seminars
BEIS,UKRI - AHRC,21/10/2020,Health & Safety (inc. Medicals & Opticians),Operations,Unspecified,98837827,12.99,Health & Safety (inc. Medicals & Opticians)
BEIS,UKRI - AHRC,22/10/2020,Conferences & Seminars,SMT,The Hub Events Ltd,98835666,336.00,Conferences & Seminars
BEIS,UKRI - AHRC,22/10/2020,Recruitment Costs,Corporate Services,Agenda Resource Management Ltd,98838491,158.00,Recruitment Costs
BEIS,UKRI - AHRC,22/10/2020,Recruitment Costs,Corporate Services,Agenda Resource Management Ltd,98838491,158.51,Recruitment Costs
BEIS,UKRI - AHRC,23/10/2020,Fees (Including College Members),Executive Office,Unspecified,98838197,170.00,Fees (Including College Members)
BEIS,UKRI - AHRC,23/10/2020,Fees (Including College Members),ISCF- Industrial Strategy Challenge Fund - skills,Unspecified,98838198,340.00,Fees (Including College Members)
BEIS,UKRI - AHRC,26/10/2020,Voluntary Deductions,Balance Sheet,Swindon Office Sports and Social Club,98833452,32.00,Voluntary Deductions
BEIS,UKRI - AHRC,27/10/2020,T&S UK - Other Charges,International Partnership and Engagement,Unspecified,98831445,49.99,T&S UK - Other Charges
BEIS,UKRI - AHRC,29/10/2020,Reward & Recognition Team Advances,Balance Sheet,UKRI - Engineering & Physical Sciences Research Council,98840553,1099.99,Reward & Recognition Team Advances
BEIS,UKRI - AHRC,29/10/2020,Conferences & Seminars,SMT,Via-Vox Ltd T/A Powwownow,98840690,50.18,Conferences & Seminars
BEIS,UKRI - AHRC,29/10/2020,Conferences & Seminars,SMT,Westminster Higher Education Forum,98840712,228.00,Conferences & Seminars
BEIS,UKRI - AHRC,29/10/2020,Recruitment Costs,Corporate Services,Warwick University Services Ltd,98841346,250.00,Recruitment Costs
BEIS,UKRI - AHRC,29/10/2020,T&S UK - Other Charges,Skills Strategy,Unspecified,98841716,464.44,T&S UK - Other Charges
BEIS,UKRI - AHRC,30/10/2020,Recruitment Costs,Corporate Services,Onefix Recruitment Ltd,98840886,630.00,Recruitment Costs
BEIS,UKRI - AHRC,30/10/2020,Recruitment Costs,Corporate Services,Onefix Recruitment Ltd,98840970,798.00,Recruitment Costs
BEIS,UKRI - AHRC,30/10/2020,T&S UK - Other Charges,Digital Arts and Humanities and Creative Industries,Unspecified,98841155,551.81,T&S UK - Other Charges
BEIS,UKRI - BBSRC,01/10/2020,Research Institutes - Capital Grants: Minor Works,Pirbright,The Pirbright Institute,98825372,5760.00,Research Institutes - Capital Grants: Minor Works
BEIS,UKRI - BBSRC,01/10/2020,Fees (Including College Members),Innovation and Skills Group CDSU,Unspecified,98825700,460.00,Fees (Including College Members)
BEIS,UKRI - BBSRC,01/10/2020,Fees (Including College Members),Innovation and Skills Group CDSU,Unspecified,98825701,340.00,Fees (Including College Members)
BEIS,UKRI - BBSRC,01/10/2020,Fees (Including College Members),Innovation and Skills Group CDSU,Unspecified,98825702,340.00,Fees (Including College Members)
BEIS,UKRI - BBSRC,01/10/2020,Fees (Including College Members),Innovation and Skills Group CDSU,Unspecified,98825703,170.00,Fees (Including College Members)
BEIS,UKRI - BBSRC,01/10/2020,Fees (Including College Members),Innovation and Skills Group CDSU,Unspecified,98825704,170.00,Fees (Including College Members)
BEIS,UKRI - BBSRC,01/10/2020,Fees (Including College Members),Innovation and Skills Group CDSU,Unspecified,98825705,340.00,Fees (Including College Members)
BEIS,UKRI - BBSRC,01/10/2020,Fees (Including College Members),Innovation and Skills Group CDSU,Unspecified,98825706,340.00,Fees (Including College Members)
BEIS,UKRI - BBSRC,01/10/2020,Fees (Including College Members),Innovation and Skills Group CDSU,Unspecified,98825707,340.00,Fees (Including College Members)
BEIS,UKRI - BBSRC,01/10/2020,Fees (Including College Members),Innovation and Skills Group CDSU,Unspecified,98825708,170.00,Fees (Including College Members)
BEIS,UKRI - BBSRC,01/10/2020,Fees (Including College Members),Innovation and Skills Group CDSU,Unspecified,98825709,340.00,Fees (Including College Members)
BEIS,UKRI - BBSRC,01/10/2020,T&S UK - Other Charges,Science Group,Unspecified,98826414,116.00,T&S UK - Other Charges
BEIS,UKRI - BBSRC,02/10/2020,Recruitment Costs,PDG - Director,Agenda Resource Management Ltd,98825810,153.91,Recruitment Costs
BEIS,UKRI - BBSRC,02/10/2020,Recruitment Costs,PDG - Director,Agenda Resource Management Ltd,98825812,153.91,Recruitment Costs
BEIS,UKRI - BBSRC,02/10/2020,Recruitment Costs,PDG - Director,Agenda Resource Management Ltd,98825814,155.95,Recruitment Costs
BEIS,UKRI - BBSRC,02/10/2020,Recruitment Costs,PDG - Director,Agenda Resource Management Ltd,98825814,124.16,Recruitment Costs
BEIS,UKRI - BBSRC,02/10/2020,Recruitment Costs,PDG - Director,Agenda Resource Management Ltd,98825817,153.91,Recruitment Costs
BEIS,UKRI - BBSRC,02/10/2020,Staff Training,PDG - Director,Corinium Human Resource Management Ltd,98825942,300.00,Staff Training
BEIS,UKRI - BBSRC,02/10/2020,Unspecified,FG - Estates,Powis Hughes Ltd,98826480,1500.00,Legal & Professional Services
BEIS,UKRI - BBSRC,02/10/2020,T&S UK - Other Charges,Science Group,Unspecified,98826871,108.00,T&S UK - Other Charges
BEIS,UKRI - BBSRC,02/10/2020,T&S UK - Other Charges,Innovation and Skills Group CDSU,Unspecified,98826872,116.97,T&S UK - Other Charges
BEIS,UKRI - BBSRC,02/10/2020,T&S UK - Other Charges,Innovation and Skills Group CDSU,Unspecified,98826873,145.98,T&S UK - Other Charges
BEIS,UKRI - BBSRC,05/10/2020,Recruitment Costs,PDG - Director,Agenda Resource Management Ltd,98825818,153.91,Recruitment Costs
BEIS,UKRI - BBSRC,05/10/2020,T&S UK - Other Charges,Science Group,Unspecified,98827169,247.97,T&S UK - Other Charges
BEIS,UKRI - BBSRC,05/10/2020,Research Grant Expenditure,SPF W1 EMBL EBI,EMBL (European Molecular Biology Laboratory),98827611,7836.85,Research Grant Expenditure
BEIS,UKRI - BBSRC,05/10/2020,Research Grant Expenditure,SPF W1 EMBL EBI,EMBL (European Molecular Biology Laboratory),98827615,39070.65,Research Grant Expenditure
BEIS,UKRI - BBSRC,06/10/2020,Research Institutes - Competitive Strategic Grant,Rothamsted Research,Rothamsted Research Ltd,98811202,3600000.00,Research Institutes - Competitive Strategic Grant
BEIS,UKRI - BBSRC,06/10/2020,Research Grant Expenditure,Science Group,UKRI - Medical Research Council,98825196,11092.30,Research Grant Expenditure
BEIS,UKRI - BBSRC,06/10/2020,Research Grant Expenditure,Science Group,UKRI - Medical Research Council,98825201,31864.32,Research Grant Expenditure
BEIS,UKRI - BBSRC,06/10/2020,Research Grant Expenditure,Science Group,UKRI - Medical Research Council,98826734,20509.92,Research Grant Expenditure
BEIS,UKRI - BBSRC,06/10/2020,Research Grant Expenditure,Research: Responsive,UKRI - Medical Research Council,98826737,2391.62,Research Grant Expenditure
BEIS,UKRI - BBSRC,06/10/2020,Research Grant Expenditure,Research: Responsive,UKRI - Medical Research Council,98826744,2998.37,Research Grant Expenditure
BEIS,UKRI - BBSRC,06/10/2020,Health & Safety (inc. Medicals & Opticians),PDG - Director,Swindon Occupational Medical Services Ltd,98826816,2450.00,Health & Safety (inc. Medicals & Opticians)
BEIS,UKRI - BBSRC,06/10/2020,Research Institutes - Capital Grants: Major Works,Pirbright,The Pirbright Institute,98827084,1060103.23,Research Institutes - Capital Grants: Major Works
BEIS,UKRI - BBSRC,06/10/2020,Research Grant Expenditure,Science Group,UKRI - Engineering & Physical Sciences Research Council,98828005,843494.95,Research Grant Expenditure
BEIS,UKRI - BBSRC,06/10/2020,Research Grant Expenditure,Innovation and Skills Group,UKRI - Engineering & Physical Sciences Research Council,98828006,23719.97,Research Grant Expenditure
BEIS,UKRI - BBSRC,06/10/2020,Research Grant Expenditure,Research: Strategic,UKRI - Engineering & Physical Sciences Research Council,98828008,32412.77,Research Grant Expenditure
BEIS,UKRI - BBSRC,06/10/2020,T&S UK - Other Charges,CE - CPS,Unspecified,98828690,179.00,T&S UK - Other Charges
BEIS,UKRI - BBSRC,07/10/2020,Fees (Including College Members),Innovation and Skills Group CDSU,Unspecified,98826316,337.57,Fees (Including College Members)
BEIS,UKRI - BBSRC,07/10/2020,Recruitment Costs,PDG - Director,Agenda Resource Management Ltd,98827188,153.91,Recruitment Costs
BEIS,UKRI - BBSRC,07/10/2020,Recruitment Costs,PDG - Director,Onefix Recruitment Ltd,98829787,234.00,Recruitment Costs
BEIS,UKRI - BBSRC,07/10/2020,T&S Overseas - Flights,CE - IRU,Corporate Travel Management (North) Ltd,98830403,7.00,T&S Overseas - Flights
BEIS,UKRI - BBSRC,07/10/2020,T&S Overseas - Flights,CE - IRU,Corporate Travel Management (North) Ltd,98830403,381.54,T&S Overseas - Flights
BEIS,UKRI - BBSRC,07/10/2020,T&S Overseas - Flights,Science Group,Corporate Travel Management (North) Ltd,98830403,4.50,T&S Overseas - Flights
BEIS,UKRI - BBSRC,07/10/2020,T&S Overseas - Flights,Science Group,Corporate Travel Management (North) Ltd,98830403,264.00,T&S Overseas - Flights
BEIS,UKRI - BBSRC,07/10/2020,T&S UK - Accommodation,FG - Estates,Corporate Travel Management (North) Ltd,98830403,0.80,T&S UK - Accommodation
BEIS,UKRI - BBSRC,07/10/2020,T&S UK - Accommodation,FG - Estates,Corporate Travel Management (North) Ltd,98830403,116.00,T&S UK - Accommodation
BEIS,UKRI - BBSRC,07/10/2020,T&S UK - Accommodation,FG - Estates,Corporate Travel Management (North) Ltd,98830403,0.80,T&S UK - Accommodation
BEIS,UKRI - BBSRC,07/10/2020,T&S UK - Accommodation,FG - Estates,Corporate Travel Management (North) Ltd,98830403,78.00,T&S UK - Accommodation
BEIS,UKRI - BBSRC,07/10/2020,T&S UK - Accommodation,FG - Estates,Corporate Travel Management (North) Ltd,98830403,0.80,T&S UK - Accommodation
BEIS,UKRI - BBSRC,07/10/2020,T&S UK - Accommodation,FG - Estates,Corporate Travel Management (North) Ltd,98830403,78.00,T&S UK - Accommodation
BEIS,UKRI - BBSRC,07/10/2020,T&S UK - Accommodation,FG - Estates,Corporate Travel Management (North) Ltd,98830403,0.32,T&S UK - Accommodation
BEIS,UKRI - BBSRC,07/10/2020,T&S UK - Accommodation,FG - Estates,Corporate Travel Management (North) Ltd,98830403,0.16,T&S UK - Accommodation
BEIS,UKRI - BBSRC,07/10/2020,T&S UK - Public Transport,Science Group - Delivery Function,Unspecified,98830567,19.60,T&S UK - Public Transport
BEIS,UKRI - BBSRC,07/10/2020,Health & Safety (inc. Medicals & Opticians),CE - IRU,Unspecified,98830568,12.99,Health & Safety (inc. Medicals & Opticians)
BEIS,UKRI - BBSRC,08/10/2020,Recruitment Costs,PDG - Director,Warwick University Services Ltd,98830788,300.00,Recruitment Costs
BEIS,UKRI - BBSRC,08/10/2020,Health & Safety (inc. Medicals & Opticians),Science Group,Unspecified,98830907,13.99,Health & Safety (inc. Medicals & Opticians)
BEIS,UKRI - BBSRC,08/10/2020,Security Services,FG - Estates,Babraham Institute,98831417,8000.00,Security Services
BEIS,UKRI - BBSRC,09/10/2020,T&S UK - Mileage,Science Group,Unspecified,98832290,63.00,T&S UK - Mileage
BEIS,UKRI - BBSRC,09/10/2020,T&S UK - Other Charges,Science Group,Unspecified,98832290,95.00,T&S UK - Other Charges
BEIS,UKRI - BBSRC,09/10/2020,T&S UK - Public Transport,Science Group,Unspecified,98832290,20.50,T&S UK - Public Transport
BEIS,UKRI - BBSRC,09/10/2020,T&S UK - Public Transport,Science Group,Unspecified,98832290,54.00,T&S UK - Public Transport
BEIS,UKRI - BBSRC,09/10/2020,T&S UK - Subsistence,Science Group,Unspecified,98832290,5.00,T&S UK - Subsistence
BEIS,UKRI - BBSRC,09/10/2020,Unspecified,Innovation and Skills Group CDSU,Bioindustry Association (BIA),98833235,684.00,Legal & Professional Services
BEIS,UKRI - BBSRC,09/10/2020,Unspecified,Innovation and Skills Group CDSU,Bioindustry Association (BIA),98833235,-19.00,Legal & Professional Services
BEIS,UKRI - BBSRC,09/10/2020,Unspecified,Innovation and Skills Group CDSU,Bioindustry Association (BIA),98833235,-95.00,Legal & Professional Services
BEIS,UKRI - BBSRC,12/10/2020,Training Awards - Postgraduates,FG - Accounts & Business Planning,Royal Veterinary College,98826186,3904.16,Training Awards - Postgraduates
BEIS,UKRI - BBSRC,12/10/2020,Training Awards - Postgraduates,FG - Accounts & Business Planning,University College London,98826187,838601.25,Training Awards - Postgraduates
BEIS,UKRI - BBSRC,12/10/2020,Training Awards - Postgraduates,FG - Accounts & Business Planning,University of Nottingham,98826188,644407.50,Training Awards - Postgraduates
BEIS,UKRI - BBSRC,12/10/2020,Training Awards - Postgraduates,FG - Accounts & Business Planning,University of Cambridge,98826189,777101.25,Training Awards - Postgraduates
BEIS,UKRI - BBSRC,12/10/2020,Training Awards - Postgraduates,FG - Accounts & Business Planning,John Innes Centre,98826190,652407.50,Training Awards - Postgraduates
BEIS,UKRI - BBSRC,12/10/2020,Training Awards - Postgraduates,FG - Accounts & Business Planning,University of Warwick,98826191,663321.75,Training Awards - Postgraduates
BEIS,UKRI - BBSRC,12/10/2020,Training Awards - Postgraduates,FG - Accounts & Business Planning,University of Oxford,98826192,644407.50,Training Awards - Postgraduates
BEIS,UKRI - BBSRC,12/10/2020,Training Awards - Postgraduates,FG - Accounts & Business Planning,University of Leeds,98826193,587664.75,Training Awards - Postgraduates
BEIS,UKRI - BBSRC,12/10/2020,Training Awards - Postgraduates,FG - Accounts & Business Planning,University of Newcastle Upon Tyne,98826194,208497.75,Training Awards - Postgraduates
BEIS,UKRI - BBSRC,12/10/2020,Training Awards - Postgraduates,FG - Accounts & Business Planning,Imperial College London,98826195,429434.25,Training Awards - Postgraduates
BEIS,UKRI - BBSRC,12/10/2020,Training Awards - Postgraduates,FG - Accounts & Business Planning,The University of Manchester,98826196,379461.00,Training Awards - Postgraduates
BEIS,UKRI - BBSRC,12/10/2020,Training Awards - Postgraduates,FG - Accounts & Business Planning,University of Edinburgh,98826197,379020.00,Training Awards - Postgraduates
BEIS,UKRI - BBSRC,12/10/2020,Training Awards - Postgraduates,FG - Accounts & Business Planning,University of Bristol GRANT,98826198,397934.25,Training Awards - Postgraduates
BEIS,UKRI - BBSRC,12/10/2020,Training Awards - Postgraduates,FG - Accounts & Business Planning,King's College London,98826199,4953.94,Training Awards - Postgraduates
BEIS,UKRI - BBSRC,12/10/2020,Training Awards - Postgraduates,FG - Accounts & Business Planning,University of Oxford,98826200,5113.77,Training Awards - Postgraduates
BEIS,UKRI - BBSRC,12/10/2020,Training Awards - Postgraduates,FG - Accounts & Business Planning,The University of Manchester,98826201,6043.50,Training Awards - Postgraduates
BEIS,UKRI - BBSRC,12/10/2020,Training Awards - Postgraduates,FG - Accounts & Business Planning,University of Newcastle Upon Tyne,98826202,6043.50,Training Awards - Postgraduates
BEIS,UKRI - BBSRC,12/10/2020,Training Awards - Postgraduates,FG - Accounts & Business Planning,University of Leicester,98826203,6043.50,Training Awards - Postgraduates
BEIS,UKRI - BBSRC,12/10/2020,Training Awards - Postgraduates,FG - Accounts & Business Planning,University of Surrey,98826204,4532.61,Training Awards - Postgraduates
BEIS,UKRI - BBSRC,12/10/2020,Training Awards - Postgraduates,FG - Accounts & Business Planning,King's College London,98826205,6543.50,Training Awards - Postgraduates
BEIS,UKRI - BBSRC,12/10/2020,Training Awards - Postgraduates,FG - Accounts & Business Planning,University of Edinburgh,98826206,6043.50,Training Awards - Postgraduates
BEIS,UKRI - BBSRC,12/10/2020,Training Awards - Postgraduates,FG - Accounts & Business Planning,University of Nottingham,98826207,5578.61,Training Awards - Postgraduates
BEIS,UKRI - BBSRC,12/10/2020,Training Awards - Postgraduates,FG - Accounts & Business Planning,Imperial College London,98826208,6543.50,Training Awards - Postgraduates
BEIS,UKRI - BBSRC,12/10/2020,Training Awards - Postgraduates,FG - Accounts & Business Planning,University of Southampton GRANT,98826209,6043.50,Training Awards - Postgraduates
BEIS,UKRI - BBSRC,12/10/2020,Training Awards - Postgraduates,FG - Accounts & Business Planning,National Institute For Agricultural Botany (NIAB),98826210,4910.31,Training Awards - Postgraduates
BEIS,UKRI - BBSRC,12/10/2020,Training Awards - Postgraduates,FG - Accounts & Business Planning,University of Exeter,98826211,3453.42,Training Awards - Postgraduates
BEIS,UKRI - BBSRC,12/10/2020,Training Awards - Postgraduates,FG - Accounts & Business Planning,University of Newcastle Upon Tyne,98826212,6043.50,Training Awards - Postgraduates
BEIS,UKRI - BBSRC,12/10/2020,Training Awards - Postgraduates,FG - Accounts & Business Planning,University College London,98826930,5966.96,Training Awards - Postgraduates
BEIS,UKRI - BBSRC,12/10/2020,Training Awards - Postgraduates,FG - Accounts & Business Planning,University College London,98826931,6334.93,Training Awards - Postgraduates
BEIS,UKRI - BBSRC,12/10/2020,Training Awards - Postgraduates,FG - Accounts & Business Planning,University of Liverpool,98826932,3918.61,Training Awards - Postgraduates
BEIS,UKRI - BBSRC,12/10/2020,Training Awards - Postgraduates,FG - Accounts & Business Planning,University College London,98826933,5729.79,Training Awards - Postgraduates
BEIS,UKRI - BBSRC,12/10/2020,Training Awards - Postgraduates,FG - Accounts & Business Planning,University College London,98826934,5864.46,Training Awards - Postgraduates
BEIS,UKRI - BBSRC,12/10/2020,Training Awards - Postgraduates,FG - Accounts & Business Planning,University of Aberdeen,98826935,-1838.33,Training Awards - Postgraduates
BEIS,UKRI - BBSRC,12/10/2020,Training Awards - Postgraduates,FG - Accounts & Business Planning,Aberystwyth University,98826936,5774.57,Training Awards - Postgraduates
BEIS,UKRI - BBSRC,12/10/2020,Training Awards - Postgraduates,FG - Accounts & Business Planning,University of Kent,98826937,5940.20,Training Awards - Postgraduates
BEIS,UKRI - BBSRC,12/10/2020,Training Awards - Postgraduates,FG - Accounts & Business Planning,Harper Adams University College,98826938,3063.17,Training Awards - Postgraduates
BEIS,UKRI - BBSRC,12/10/2020,Training Awards - Postgraduates,FG - Accounts & Business Planning,University College London,98826939,590.79,Training Awards - Postgraduates
BEIS,UKRI - BBSRC,12/10/2020,Training Awards - Postgraduates,FG - Accounts & Business Planning,Imperial College London,98826940,6168.18,Training Awards - Postgraduates
BEIS,UKRI - BBSRC,12/10/2020,Training Awards - Postgraduates,FG - Accounts & Business Planning,Natural History Museum,98826941,47320.40,Training Awards - Postgraduates
BEIS,UKRI - BBSRC,12/10/2020,Training Awards - Postgraduates,FG - Accounts & Business Planning,University of Cambridge,98826942,2332.38,Training Awards - Postgraduates
BEIS,UKRI - BBSRC,12/10/2020,Training Awards - Postgraduates,FG - Accounts & Business Planning,"Royal Holloway, University of London",98826943,920.87,Training Awards - Postgraduates
BEIS,UKRI - BBSRC,12/10/2020,Training Awards - Postgraduates,FG - Accounts & Business Planning,John Innes Centre,98826944,12349.43,Training Awards - Postgraduates
BEIS,UKRI - BBSRC,12/10/2020,Training Awards - Postgraduates,FG - Accounts & Business Planning,University of Cambridge,98827213,6043.50,Training Awards - Postgraduates
BEIS,UKRI - BBSRC,12/10/2020,Training Awards - Postgraduates,FG - Accounts & Business Planning,University of Oxford,98827214,6043.50,Training Awards - Postgraduates
BEIS,UKRI - BBSRC,12/10/2020,Training Awards - Postgraduates,FG - Accounts & Business Planning,University of Southampton GRANT,98827215,6043.50,Training Awards - Postgraduates
BEIS,UKRI - BBSRC,12/10/2020,Training Awards - Postgraduates,FG - Accounts & Business Planning,University of Reading,98827216,5288.06,Training Awards - Postgraduates
BEIS,UKRI - BBSRC,12/10/2020,Training Awards - Postgraduates,FG - Accounts & Business Planning,University of Leeds,98827217,6043.50,Training Awards - Postgraduates
BEIS,UKRI - BBSRC,12/10/2020,Training Awards - Postgraduates,FG - Accounts & Business Planning,University of Oxford,98827218,5688.01,Training Awards - Postgraduates
BEIS,UKRI - BBSRC,12/10/2020,Training Awards - Postgraduates,FG - Accounts & Business Planning,University of Cambridge,98827219,6043.50,Training Awards - Postgraduates
BEIS,UKRI - BBSRC,12/10/2020,Training Awards - Postgraduates,FG - Accounts & Business Planning,Cardiff University,98827220,6138.25,Training Awards - Postgraduates
BEIS,UKRI - BBSRC,12/10/2020,Training Awards - Postgraduates,FG - Accounts & Business Planning,The University of Manchester,98827221,6138.25,Training Awards - Postgraduates
BEIS,UKRI - BBSRC,12/10/2020,Training Awards - Postgraduates,FG - Accounts & Business Planning,University of York,98827222,5699.80,Training Awards - Postgraduates
BEIS,UKRI - BBSRC,12/10/2020,Training Awards - Postgraduates,FG - Accounts & Business Planning,University of Surrey,98827223,6138.25,Training Awards - Postgraduates
BEIS,UKRI - BBSRC,12/10/2020,Training Awards - Postgraduates,FG - Accounts & Business Planning,King's College London,98827224,6669.50,Training Awards - Postgraduates
BEIS,UKRI - BBSRC,12/10/2020,Training Awards - Postgraduates,FG - Accounts & Business Planning,University of Reading,98827225,6138.25,Training Awards - Postgraduates
BEIS,UKRI - BBSRC,12/10/2020,Training Awards - Postgraduates,FG - Accounts & Business Planning,University of Oxford,98827226,6043.50,Training Awards - Postgraduates
BEIS,UKRI - BBSRC,12/10/2020,Training Awards - Postgraduates,FG - Accounts & Business Planning,Quadram Institute Bioscience,98827227,6138.25,Training Awards - Postgraduates
BEIS,UKRI - BBSRC,12/10/2020,Training Awards - Postgraduates,FG - Accounts & Business Planning,University of Warwick,98827228,6138.25,Training Awards - Postgraduates
BEIS,UKRI - BBSRC,12/10/2020,Training Awards - Postgraduates,FG - Accounts & Business Planning,Lancaster University,98827229,5319.81,Training Awards - Postgraduates
BEIS,UKRI - BBSRC,12/10/2020,Training Awards - Postgraduates,FG - Accounts & Business Planning,The University of Manchester,98827230,6138.25,Training Awards - Postgraduates
BEIS,UKRI - BBSRC,12/10/2020,Training Awards - Postgraduates,FG - Accounts & Business Planning,University of Exeter,98827231,6138.25,Training Awards - Postgraduates
BEIS,UKRI - BBSRC,12/10/2020,Training Awards - Postgraduates,FG - Accounts & Business Planning,University of Edinburgh,98827232,6138.25,Training Awards - Postgraduates
BEIS,UKRI - BBSRC,12/10/2020,Training Awards - Postgraduates,FG - Accounts & Business Planning,Heriot Watt University,98827233,6138.25,Training Awards - Postgraduates
BEIS,UKRI - BBSRC,12/10/2020,Training Awards - Postgraduates,FG - Accounts & Business Planning,Abertay University,98827234,6138.25,Training Awards - Postgraduates
BEIS,UKRI - BBSRC,12/10/2020,Training Awards - Postgraduates,FG - Accounts & Business Planning,The University of Manchester,98827235,3069.13,Training Awards - Postgraduates
BEIS,UKRI - BBSRC,12/10/2020,Training Awards - Postgraduates,FG - Accounts & Business Planning,National Institute For Agricultural Botany (NIAB),98827236,6138.25,Training Awards - Postgraduates
BEIS,UKRI - BBSRC,12/10/2020,Training Awards - Postgraduates,FG - Accounts & Business Planning,Imperial College London,98827237,6638.25,Training Awards - Postgraduates
BEIS,UKRI - BBSRC,12/10/2020,Training Awards - Postgraduates,FG - Accounts & Business Planning,University of Cambridge,98827238,6138.25,Training Awards - Postgraduates
BEIS,UKRI - BBSRC,12/10/2020,Training Awards - Postgraduates,FG - Accounts & Business Planning,National Institute For Agricultural Botany (NIAB),98827239,6138.25,Training Awards - Postgraduates
BEIS,UKRI - BBSRC,12/10/2020,Training Awards - Postgraduates,FG - Accounts & Business Planning,University of Birmingham GRANT,98827240,6138.25,Training Awards - Postgraduates
BEIS,UKRI - BBSRC,12/10/2020,Training Awards - Postgraduates,FG - Accounts & Business Planning,University of Exeter,98827241,6138.25,Training Awards - Postgraduates
BEIS,UKRI - BBSRC,12/10/2020,Training Awards - Postgraduates,FG - Accounts & Business Planning,Queen Mary University of London,98827242,6638.25,Training Awards - Postgraduates
BEIS,UKRI - BBSRC,12/10/2020,Training Awards - Postgraduates,FG - Accounts & Business Planning,University of Southampton GRANT,98827243,6043.50,Training Awards - Postgraduates
BEIS,UKRI - BBSRC,12/10/2020,Training Awards - Postgraduates,FG - Accounts & Business Planning,University of Warwick,98827244,4910.61,Training Awards - Postgraduates
BEIS,UKRI - BBSRC,12/10/2020,Training Awards - Postgraduates,FG - Accounts & Business Planning,University of Cambridge,98827245,6138.25,Training Awards - Postgraduates
BEIS,UKRI - BBSRC,12/10/2020,Training Awards - Postgraduates,FG - Accounts & Business Planning,University of Cambridge,98827246,6138.25,Training Awards - Postgraduates
BEIS,UKRI - BBSRC,12/10/2020,Training Awards - Postgraduates,FG - Accounts & Business Planning,University of Glasgow,98827247,6138.25,Training Awards - Postgraduates
BEIS,UKRI - BBSRC,12/10/2020,Training Awards - Postgraduates,FG - Accounts & Business Planning,University of Exeter,98827248,6138.25,Training Awards - Postgraduates
BEIS,UKRI - BBSRC,12/10/2020,Training Awards - Postgraduates,FG - Accounts & Business Planning,University of Cambridge,98827249,6138.25,Training Awards - Postgraduates
BEIS,UKRI - BBSRC,12/10/2020,Training Awards - Postgraduates,FG - Accounts & Business Planning,University of Reading,98827250,6138.25,Training Awards - Postgraduates
BEIS,UKRI - BBSRC,12/10/2020,Training Awards - Postgraduates,FG - Accounts & Business Planning,University of Southampton GRANT,98827251,6138.25,Training Awards - Postgraduates
BEIS,UKRI - BBSRC,12/10/2020,Training Awards - Postgraduates,FG - Accounts & Business Planning,Lancaster University,98827252,6138.25,Training Awards - Postgraduates
BEIS,UKRI - BBSRC,12/10/2020,Training Awards - Postgraduates,FG - Accounts & Business Planning,University of Sheffield,98827253,6138.25,Training Awards - Postgraduates
BEIS,UKRI - BBSRC,12/10/2020,Training Awards - Postgraduates,FG - Accounts & Business Planning,University of Liverpool,98827254,6138.25,Training Awards - Postgraduates
BEIS,UKRI - BBSRC,12/10/2020,Training Awards - Postgraduates,FG - Accounts & Business Planning,University of Liverpool,98827255,6138.25,Training Awards - Postgraduates
BEIS,UKRI - BBSRC,12/10/2020,Training Awards - Postgraduates,FG - Accounts & Business Planning,Queen Mary University of London,98827256,6638.25,Training Awards - Postgraduates
BEIS,UKRI - BBSRC,12/10/2020,Training Awards - Postgraduates,FG - Accounts & Business Planning,University of Leeds,98827257,5193.90,Training Awards - Postgraduates
BEIS,UKRI - BBSRC,12/10/2020,Training Awards - Postgraduates,FG - Accounts & Business Planning,University of Southampton GRANT,98827258,6138.25,Training Awards - Postgraduates
BEIS,UKRI - BBSRC,12/10/2020,Training Awards - Postgraduates,FG - Accounts & Business Planning,University of St Andrews,98827259,6138.25,Training Awards - Postgraduates
BEIS,UKRI - BBSRC,12/10/2020,Training Awards - Postgraduates,FG - Accounts & Business Planning,University of Leeds,98827260,6138.25,Training Awards - Postgraduates
BEIS,UKRI - BBSRC,12/10/2020,Training Awards - Postgraduates,FG - Accounts & Business Planning,University of Edinburgh,98827261,6138.25,Training Awards - Postgraduates
BEIS,UKRI - BBSRC,12/10/2020,Training Awards - Postgraduates,FG - Accounts & Business Planning,University of Edinburgh,98827262,6138.25,Training Awards - Postgraduates
BEIS,UKRI - BBSRC,12/10/2020,Training Awards - Postgraduates,FG - Accounts & Business Planning,University of Cambridge,98827263,6138.25,Training Awards - Postgraduates
BEIS,UKRI - BBSRC,12/10/2020,Training Awards - Postgraduates,FG - Accounts & Business Planning,University of Aberdeen,98827264,6138.25,Training Awards - Postgraduates
BEIS,UKRI - BBSRC,12/10/2020,Training Awards - Postgraduates,FG - Accounts & Business Planning,John Innes Centre,98827265,6138.25,Training Awards - Postgraduates
BEIS,UKRI - BBSRC,12/10/2020,Training Awards - Postgraduates,FG - Accounts & Business Planning,University of Newcastle Upon Tyne,98827266,6138.25,Training Awards - Postgraduates
BEIS,UKRI - BBSRC,12/10/2020,Training Awards - Postgraduates,FG - Accounts & Business Planning,University of Bristol GRANT,98827267,6138.25,Training Awards - Postgraduates
BEIS,UKRI - BBSRC,12/10/2020,Training Awards - Postgraduates,FG - Accounts & Business Planning,University of Bath,98827268,6138.25,Training Awards - Postgraduates
BEIS,UKRI - BBSRC,12/10/2020,Training Awards - Postgraduates,FG - Accounts & Business Planning,National Institute For Agricultural Botany (NIAB),98827269,4983.99,Training Awards - Postgraduates
BEIS,UKRI - BBSRC,12/10/2020,Training Awards - Postgraduates,FG - Accounts & Business Planning,National Institute For Agricultural Botany (NIAB),98827270,6138.25,Training Awards - Postgraduates
BEIS,UKRI - BBSRC,12/10/2020,Training Awards - Postgraduates,FG - Accounts & Business Planning,Imperial College London,98827271,6638.25,Training Awards - Postgraduates
BEIS,UKRI - BBSRC,12/10/2020,Training Awards - Postgraduates,FG - Accounts & Business Planning,Imperial College London,98827272,6638.25,Training Awards - Postgraduates
BEIS,UKRI - BBSRC,12/10/2020,Training Awards - Postgraduates,FG - Accounts & Business Planning,The University of Manchester,98827273,6138.25,Training Awards - Postgraduates
BEIS,UKRI - BBSRC,12/10/2020,Training Awards - Postgraduates,FG - Accounts & Business Planning,Imperial College London,98827274,6638.25,Training Awards - Postgraduates
BEIS,UKRI - BBSRC,12/10/2020,Training Awards - Postgraduates,FG - Accounts & Business Planning,University of Sheffield,98827275,6138.25,Training Awards - Postgraduates
BEIS,UKRI - BBSRC,12/10/2020,Training Awards - Postgraduates,FG - Accounts & Business Planning,University of Edinburgh,98827276,6138.25,Training Awards - Postgraduates
BEIS,UKRI - BBSRC,12/10/2020,Training Awards - Postgraduates,FG - Accounts & Business Planning,University of Cambridge,98827277,6138.25,Training Awards - Postgraduates
BEIS,UKRI - BBSRC,12/10/2020,Training Awards - Postgraduates,FG - Accounts & Business Planning,University of Edinburgh,98827278,6138.25,Training Awards - Postgraduates
BEIS,UKRI - BBSRC,12/10/2020,Training Awards - Postgraduates,FG - Accounts & Business Planning,Imperial College London,98827279,6638.25,Training Awards - Postgraduates
BEIS,UKRI - BBSRC,12/10/2020,Training Awards - Postgraduates,FG - Accounts & Business Planning,"Royal Holloway, University of London",98827280,6638.25,Training Awards - Postgraduates
BEIS,UKRI - BBSRC,12/10/2020,Training Awards - Postgraduates,FG - Accounts & Business Planning,"Royal Holloway, University of London",98827281,6638.25,Training Awards - Postgraduates
BEIS,UKRI - BBSRC,12/10/2020,Training Awards - Postgraduates,FG - Accounts & Business Planning,Imperial College London,98827282,6638.25,Training Awards - Postgraduates
BEIS,UKRI - BBSRC,12/10/2020,Training Awards - Postgraduates,FG - Accounts & Business Planning,Imperial College London,98827283,6263.25,Training Awards - Postgraduates
BEIS,UKRI - BBSRC,12/10/2020,Training Awards - Postgraduates,FG - Accounts & Business Planning,Imperial College London,98827284,6638.25,Training Awards - Postgraduates
BEIS,UKRI - BBSRC,12/10/2020,Training Awards - Postgraduates,FG - Accounts & Business Planning,Imperial College London,98827285,6638.25,Training Awards - Postgraduates
BEIS,UKRI - BBSRC,12/10/2020,Training Awards - Postgraduates,FG - Accounts & Business Planning,Imperial College London,98827286,6638.25,Training Awards - Postgraduates
BEIS,UKRI - BBSRC,12/10/2020,Training Awards - Postgraduates,FG - Accounts & Business Planning,Imperial College London,98827287,6638.25,Training Awards - Postgraduates
BEIS,UKRI - BBSRC,12/10/2020,Training Awards - Postgraduates,FG - Accounts & Business Planning,The University of Manchester,98827288,6138.25,Training Awards - Postgraduates
BEIS,UKRI - BBSRC,12/10/2020,Training Awards - Postgraduates,FG - Accounts & Business Planning,University of Warwick,98827289,6138.25,Training Awards - Postgraduates
BEIS,UKRI - BBSRC,12/10/2020,Training Awards - Postgraduates,FG - Accounts & Business Planning,University of Sheffield,98827290,6138.25,Training Awards - Postgraduates
BEIS,UKRI - BBSRC,12/10/2020,Training Awards - Postgraduates,FG - Accounts & Business Planning,University of Sheffield,98827291,6138.25,Training Awards - Postgraduates
BEIS,UKRI - BBSRC,12/10/2020,Training Awards - Postgraduates,FG - Accounts & Business Planning,University of Newcastle Upon Tyne,98827292,6138.25,Training Awards - Postgraduates
BEIS,UKRI - BBSRC,12/10/2020,Training Awards - Postgraduates,FG - Accounts & Business Planning,University of Sheffield,98827293,6138.25,Training Awards - Postgraduates
BEIS,UKRI - BBSRC,12/10/2020,Training Awards - Postgraduates,FG - Accounts & Business Planning,The University of Manchester,98827294,6138.25,Training Awards - Postgraduates
BEIS,UKRI - BBSRC,12/10/2020,Training Awards - Postgraduates,FG - Accounts & Business Planning,The University of Manchester,98827295,6138.25,Training Awards - Postgraduates
BEIS,UKRI - BBSRC,12/10/2020,Training Awards - Postgraduates,FG - Accounts & Business Planning,The University of Manchester,98827296,6138.25,Training Awards - Postgraduates
BEIS,UKRI - BBSRC,12/10/2020,Training Awards - Postgraduates,FG - Accounts & Business Planning,The University of Manchester,98827297,6138.25,Training Awards - Postgraduates
BEIS,UKRI - BBSRC,12/10/2020,Training Awards - Postgraduates,FG - Accounts & Business Planning,The University of Manchester,98827298,6138.25,Training Awards - Postgraduates
BEIS,UKRI - BBSRC,12/10/2020,Training Awards - Postgraduates,FG - Accounts & Business Planning,The University of Manchester,98827299,6138.25,Training Awards - Postgraduates
BEIS,UKRI - BBSRC,12/10/2020,Training Awards - Postgraduates,FG - Accounts & Business Planning,The University of Manchester,98827300,6138.25,Training Awards - Postgraduates
BEIS,UKRI - BBSRC,12/10/2020,Training Awards - Postgraduates,FG - Accounts & Business Planning,The University of Manchester,98827301,6138.25,Training Awards - Postgraduates
BEIS,UKRI - BBSRC,12/10/2020,Training Awards - Postgraduates,FG - Accounts & Business Planning,University of Oxford,98827302,6138.25,Training Awards - Postgraduates
BEIS,UKRI - BBSRC,12/10/2020,Training Awards - Postgraduates,FG - Accounts & Business Planning,The Pirbright Institute,98827303,6138.25,Training Awards - Postgraduates
BEIS,UKRI - BBSRC,12/10/2020,Training Awards - Postgraduates,FG - Accounts & Business Planning,University of Oxford,98827304,6138.25,Training Awards - Postgraduates
BEIS,UKRI - BBSRC,12/10/2020,Training Awards - Postgraduates,FG - Accounts & Business Planning,University of Cambridge,98827305,6138.25,Training Awards - Postgraduates
BEIS,UKRI - BBSRC,12/10/2020,Training Awards - Postgraduates,FG - Accounts & Business Planning,University College London,98827306,6638.25,Training Awards - Postgraduates
BEIS,UKRI - BBSRC,12/10/2020,Training Awards - Postgraduates,FG - Accounts & Business Planning,University College London,98827307,6638.25,Training Awards - Postgraduates
BEIS,UKRI - BBSRC,12/10/2020,Training Awards - Postgraduates,FG - Accounts & Business Planning,Queen Mary University of London,98827308,6638.25,Training Awards - Postgraduates
BEIS,UKRI - BBSRC,12/10/2020,Training Awards - Postgraduates,FG - Accounts & Business Planning,University College London,98827309,6638.25,Training Awards - Postgraduates
BEIS,UKRI - BBSRC,12/10/2020,Training Awards - Postgraduates,FG - Accounts & Business Planning,University of Reading,98827310,5729.04,Training Awards - Postgraduates
BEIS,UKRI - BBSRC,12/10/2020,Training Awards - Postgraduates,FG - Accounts & Business Planning,John Innes Centre,98827311,6138.25,Training Awards - Postgraduates
BEIS,UKRI - BBSRC,12/10/2020,Training Awards - Postgraduates,FG - Accounts & Business Planning,John Innes Centre,98827312,6138.25,Training Awards - Postgraduates
BEIS,UKRI - BBSRC,12/10/2020,Training Awards - Postgraduates,FG - Accounts & Business Planning,University of East Anglia,98827313,6138.25,Training Awards - Postgraduates
BEIS,UKRI - BBSRC,12/10/2020,Training Awards - Postgraduates,FG - Accounts & Business Planning,University of Leeds,98827314,6138.25,Training Awards - Postgraduates
BEIS,UKRI - BBSRC,12/10/2020,Training Awards - Postgraduates,FG - Accounts & Business Planning,University of Leeds,98827315,6138.25,Training Awards - Postgraduates
BEIS,UKRI - BBSRC,12/10/2020,Training Awards - Postgraduates,FG - Accounts & Business Planning,Royal Veterinary College,98827316,6638.25,Training Awards - Postgraduates
BEIS,UKRI - BBSRC,12/10/2020,Training Awards - Postgraduates,FG - Accounts & Business Planning,University of Sheffield,98827317,6138.25,Training Awards - Postgraduates
BEIS,UKRI - BBSRC,12/10/2020,Training Awards - Postgraduates,FG - Accounts & Business Planning,University of East Anglia,98827318,6138.25,Training Awards - Postgraduates
BEIS,UKRI - BBSRC,12/10/2020,Training Awards - Postgraduates,FG - Accounts & Business Planning,Oxford Brookes University,98827319,6138.25,Training Awards - Postgraduates
BEIS,UKRI - BBSRC,12/10/2020,Training Awards - Postgraduates,FG - Accounts & Business Planning,Quadram Institute Bioscience,98827320,6138.25,Training Awards - Postgraduates
BEIS,UKRI - BBSRC,12/10/2020,Training Awards - Postgraduates,FG - Accounts & Business Planning,University of Birmingham GRANT,98827321,6138.25,Training Awards - Postgraduates
BEIS,UKRI - BBSRC,12/10/2020,Training Awards - Postgraduates,FG - Accounts & Business Planning,University of Edinburgh,98827322,6138.25,Training Awards - Postgraduates
BEIS,UKRI - BBSRC,12/10/2020,Training Awards - Postgraduates,FG - Accounts & Business Planning,University of Edinburgh,98827323,6138.25,Training Awards - Postgraduates
BEIS,UKRI - BBSRC,12/10/2020,Training Awards - Postgraduates,FG - Accounts & Business Planning,University of Edinburgh,98827324,6138.25,Training Awards - Postgraduates
BEIS,UKRI - BBSRC,12/10/2020,Training Awards - Postgraduates,FG - Accounts & Business Planning,University of Birmingham GRANT,98827325,6138.25,Training Awards - Postgraduates
BEIS,UKRI - BBSRC,12/10/2020,Training Awards - Postgraduates,FG - Accounts & Business Planning,University of Warwick,98827326,6138.25,Training Awards - Postgraduates
BEIS,UKRI - BBSRC,12/10/2020,Training Awards - Postgraduates,FG - Accounts & Business Planning,University College London,98827327,6638.25,Training Awards - Postgraduates
BEIS,UKRI - BBSRC,12/10/2020,Training Awards - Postgraduates,FG - Accounts & Business Planning,University College London,98827328,6638.25,Training Awards - Postgraduates
BEIS,UKRI - BBSRC,12/10/2020,Training Awards - Postgraduates,FG - Accounts & Business Planning,University College London,98827329,6638.25,Training Awards - Postgraduates
BEIS,UKRI - BBSRC,12/10/2020,Training Awards - Postgraduates,FG - Accounts & Business Planning,The University of Manchester,98827330,6138.25,Training Awards - Postgraduates
BEIS,UKRI - BBSRC,12/10/2020,Training Awards - Postgraduates,FG - Accounts & Business Planning,University of Liverpool,98827331,6138.25,Training Awards - Postgraduates
BEIS,UKRI - BBSRC,12/10/2020,Training Awards - Postgraduates,FG - Accounts & Business Planning,University of Bristol GRANT,98827332,6138.25,Training Awards - Postgraduates
BEIS,UKRI - BBSRC,12/10/2020,Training Awards - Postgraduates,FG - Accounts & Business Planning,University of Nottingham,98827333,6138.25,Training Awards - Postgraduates
BEIS,UKRI - BBSRC,12/10/2020,Training Awards - Postgraduates,FG - Accounts & Business Planning,University of Nottingham,98827334,6138.25,Training Awards - Postgraduates
BEIS,UKRI - BBSRC,12/10/2020,Training Awards - Postgraduates,FG - Accounts & Business Planning,University of Nottingham,98827335,6138.25,Training Awards - Postgraduates
BEIS,UKRI - BBSRC,12/10/2020,Training Awards - Postgraduates,FG - Accounts & Business Planning,University of Durham,98827336,6138.25,Training Awards - Postgraduates
BEIS,UKRI - BBSRC,12/10/2020,Training Awards - Postgraduates,FG - Accounts & Business Planning,University of Nottingham,98827337,6138.25,Training Awards - Postgraduates
BEIS,UKRI - BBSRC,12/10/2020,Training Awards - Postgraduates,FG - Accounts & Business Planning,University of Nottingham,98827338,6138.25,Training Awards - Postgraduates
BEIS,UKRI - BBSRC,12/10/2020,Training Awards - Postgraduates,FG - Accounts & Business Planning,University of Nottingham,98827339,6138.25,Training Awards - Postgraduates
BEIS,UKRI - BBSRC,12/10/2020,Training Awards - Postgraduates,FG - Accounts & Business Planning,University of Durham,98827340,6138.25,Training Awards - Postgraduates
BEIS,UKRI - BBSRC,12/10/2020,Training Awards - Postgraduates,FG - Accounts & Business Planning,University of Leeds,98827341,6138.25,Training Awards - Postgraduates
BEIS,UKRI - BBSRC,12/10/2020,Training Awards - Postgraduates,FG - Accounts & Business Planning,University of Newcastle Upon Tyne,98827342,6138.25,Training Awards - Postgraduates
BEIS,UKRI - BBSRC,12/10/2020,Training Awards - Postgraduates,FG - Accounts & Business Planning,University of Liverpool,98827343,6138.25,Training Awards - Postgraduates
BEIS,UKRI - BBSRC,12/10/2020,Training Awards - Postgraduates,FG - Accounts & Business Planning,University of York,98827344,6138.25,Training Awards - Postgraduates
BEIS,UKRI - BBSRC,12/10/2020,Training Awards - Postgraduates,FG - Accounts & Business Planning,University of York,98827345,6138.25,Training Awards - Postgraduates
BEIS,UKRI - BBSRC,12/10/2020,Training Awards - Postgraduates,FG - Accounts & Business Planning,University of Nottingham,98827346,6138.25,Training Awards - Postgraduates
BEIS,UKRI - BBSRC,12/10/2020,Training Awards - Postgraduates,FG - Accounts & Business Planning,University of York,98827347,6138.25,Training Awards - Postgraduates
BEIS,UKRI - BBSRC,12/10/2020,Training Awards - Postgraduates,FG - Accounts & Business Planning,University of York,98827348,6138.25,Training Awards - Postgraduates
BEIS,UKRI - BBSRC,12/10/2020,Training Awards - Postgraduates,FG - Accounts & Business Planning,University of Oxford,98827349,6138.25,Training Awards - Postgraduates
BEIS,UKRI - BBSRC,12/10/2020,Training Awards - Postgraduates,FG - Accounts & Business Planning,University of Oxford,98827350,6138.25,Training Awards - Postgraduates
BEIS,UKRI - BBSRC,12/10/2020,Training Awards - Postgraduates,FG - Accounts & Business Planning,University of Nottingham,98827351,6138.25,Training Awards - Postgraduates
BEIS,UKRI - BBSRC,12/10/2020,Training Awards - Postgraduates,FG - Accounts & Business Planning,The Pirbright Institute,98827352,6138.25,Training Awards - Postgraduates
BEIS,UKRI - BBSRC,12/10/2020,Training Awards - Postgraduates,FG - Accounts & Business Planning,National Institute For Agricultural Botany (NIAB),98827353,6138.25,Training Awards - Postgraduates
BEIS,UKRI - BBSRC,12/10/2020,Training Awards - Postgraduates,FG - Accounts & Business Planning,University of Oxford,98827354,6138.25,Training Awards - Postgraduates
BEIS,UKRI - BBSRC,12/10/2020,Training Awards - Postgraduates,FG - Accounts & Business Planning,King's College London,98827355,6638.25,Training Awards - Postgraduates
BEIS,UKRI - BBSRC,12/10/2020,Training Awards - Postgraduates,FG - Accounts & Business Planning,University of Oxford,98827356,6138.25,Training Awards - Postgraduates
BEIS,UKRI - BBSRC,12/10/2020,Training Awards - Postgraduates,FG - Accounts & Business Planning,University of Sheffield,98827357,1334.29,Training Awards - Postgraduates
BEIS,UKRI - BBSRC,12/10/2020,Training Awards - Postgraduates,FG - Accounts & Business Planning,University of Glasgow,98827358,7799.00,Training Awards - Postgraduates
BEIS,UKRI - BBSRC,12/10/2020,Training Awards - Postgraduates,FG - Accounts & Business Planning,University of Edinburgh,98827359,5000.60,Training Awards - Postgraduates
BEIS,UKRI - BBSRC,12/10/2020,Training Awards - Postgraduates,FG - Accounts & Business Planning,University of Leeds,98827360,6189.63,Training Awards - Postgraduates
BEIS,UKRI - BBSRC,12/10/2020,Training Awards - Postgraduates,FG - Accounts & Business Planning,Imperial College London,98827361,6689.63,Training Awards - Postgraduates
BEIS,UKRI - BBSRC,12/10/2020,Training Awards - Postgraduates,FG - Accounts & Business Planning,University of Newcastle Upon Tyne,98827362,6189.63,Training Awards - Postgraduates
BEIS,UKRI - BBSRC,12/10/2020,Training Awards - Postgraduates,FG - Accounts & Business Planning,University of Southampton GRANT,98827363,6189.63,Training Awards - Postgraduates
BEIS,UKRI - BBSRC,12/10/2020,Training Awards - Postgraduates,FG - Accounts & Business Planning,University of Leeds,98827364,6189.63,Training Awards - Postgraduates
BEIS,UKRI - BBSRC,12/10/2020,Training Awards - Postgraduates,FG - Accounts & Business Planning,University of Bristol GRANT,98827365,6189.63,Training Awards - Postgraduates
BEIS,UKRI - BBSRC,12/10/2020,Training Awards - Postgraduates,FG - Accounts & Business Planning,University College London,98827366,6689.63,Training Awards - Postgraduates
BEIS,UKRI - BBSRC,12/10/2020,Training Awards - Postgraduates,FG - Accounts & Business Planning,University of Edinburgh,98827367,6189.63,Training Awards - Postgraduates
BEIS,UKRI - BBSRC,12/10/2020,Training Awards - Postgraduates,FG - Accounts & Business Planning,King's College London,98827368,6689.63,Training Awards - Postgraduates
BEIS,UKRI - BBSRC,12/10/2020,Training Awards - Postgraduates,FG - Accounts & Business Planning,University of Liverpool,98827369,6189.63,Training Awards - Postgraduates
BEIS,UKRI - BBSRC,12/10/2020,Training Awards - Postgraduates,FG - Accounts & Business Planning,University of Aberdeen,98827370,6189.63,Training Awards - Postgraduates
BEIS,UKRI - BBSRC,12/10/2020,Training Awards - Postgraduates,FG - Accounts & Business Planning,University of Nottingham,98827371,6189.63,Training Awards - Postgraduates
BEIS,UKRI - BBSRC,12/10/2020,Training Awards - Postgraduates,FG - Accounts & Business Planning,University of Glasgow,98827372,6189.63,Training Awards - Postgraduates
BEIS,UKRI - BBSRC,12/10/2020,Training Awards - Postgraduates,FG - Accounts & Business Planning,University of Edinburgh,98827373,6189.63,Training Awards - Postgraduates
BEIS,UKRI - BBSRC,12/10/2020,Training Awards - Postgraduates,FG - Accounts & Business Planning,Robert Gordon University,98827374,6189.63,Training Awards - Postgraduates
BEIS,UKRI - BBSRC,12/10/2020,Training Awards - Postgraduates,FG - Accounts & Business Planning,University of St Andrews,98827375,6189.63,Training Awards - Postgraduates
BEIS,UKRI - BBSRC,12/10/2020,Training Awards - Postgraduates,FG - Accounts & Business Planning,National Institute For Agricultural Botany (NIAB),98827376,6189.63,Training Awards - Postgraduates
BEIS,UKRI - BBSRC,12/10/2020,Training Awards - Postgraduates,FG - Accounts & Business Planning,Sheffield Hallam University,98827377,6189.63,Training Awards - Postgraduates
BEIS,UKRI - BBSRC,12/10/2020,Training Awards - Postgraduates,FG - Accounts & Business Planning,Imperial College London,98827378,6689.63,Training Awards - Postgraduates
BEIS,UKRI - BBSRC,12/10/2020,Training Awards - Postgraduates,FG - Accounts & Business Planning,University of Kent,98827379,6189.63,Training Awards - Postgraduates
BEIS,UKRI - BBSRC,12/10/2020,Training Awards - Postgraduates,FG - Accounts & Business Planning,Cardiff University,98827380,6189.63,Training Awards - Postgraduates
BEIS,UKRI - BBSRC,12/10/2020,Training Awards - Postgraduates,FG - Accounts & Business Planning,Cardiff University,98827381,6189.63,Training Awards - Postgraduates
BEIS,UKRI - BBSRC,12/10/2020,Training Awards - Postgraduates,FG - Accounts & Business Planning,University of Oxford,98827382,6189.63,Training Awards - Postgraduates
BEIS,UKRI - BBSRC,12/10/2020,Training Awards - Postgraduates,FG - Accounts & Business Planning,University of Oxford,98827383,6189.63,Training Awards - Postgraduates
BEIS,UKRI - BBSRC,12/10/2020,Training Awards - Postgraduates,FG - Accounts & Business Planning,University of Nottingham,98827384,6189.63,Training Awards - Postgraduates
BEIS,UKRI - BBSRC,12/10/2020,Training Awards - Postgraduates,FG - Accounts & Business Planning,University of Newcastle Upon Tyne,98827385,6189.63,Training Awards - Postgraduates
BEIS,UKRI - BBSRC,12/10/2020,Training Awards - Postgraduates,FG - Accounts & Business Planning,The University of Manchester,98827386,6189.63,Training Awards - Postgraduates
BEIS,UKRI - BBSRC,12/10/2020,Training Awards - Postgraduates,FG - Accounts & Business Planning,University of Leicester,98827387,6189.63,Training Awards - Postgraduates
BEIS,UKRI - BBSRC,12/10/2020,Training Awards - Postgraduates,FG - Accounts & Business Planning,University of Birmingham GRANT,98827388,6189.63,Training Awards - Postgraduates
BEIS,UKRI - BBSRC,12/10/2020,Training Awards - Postgraduates,FG - Accounts & Business Planning,University of Exeter,98827389,6189.63,Training Awards - Postgraduates
BEIS,UKRI - BBSRC,12/10/2020,Training Awards - Postgraduates,FG - Accounts & Business Planning,University of York,98827390,6189.63,Training Awards - Postgraduates
BEIS,UKRI - BBSRC,12/10/2020,Training Awards - Postgraduates,FG - Accounts & Business Planning,University of Surrey,98827391,6189.63,Training Awards - Postgraduates
BEIS,UKRI - BBSRC,12/10/2020,Training Awards - Postgraduates,FG - Accounts & Business Planning,University of Strathclyde,98827392,6189.63,Training Awards - Postgraduates
BEIS,UKRI - BBSRC,12/10/2020,Training Awards - Postgraduates,FG - Accounts & Business Planning,University of Strathclyde,98827393,6189.63,Training Awards - Postgraduates
BEIS,UKRI - BBSRC,12/10/2020,Training Awards - Postgraduates,FG - Accounts & Business Planning,University of Sheffield,98827394,6189.63,Training Awards - Postgraduates
BEIS,UKRI - BBSRC,12/10/2020,Training Awards - Postgraduates,FG - Accounts & Business Planning,Heriot Watt University,98827395,6189.63,Training Awards - Postgraduates
BEIS,UKRI - BBSRC,12/10/2020,Training Awards - Postgraduates,FG - Accounts & Business Planning,National Institute For Agricultural Botany (NIAB),98827396,6189.63,Training Awards - Postgraduates
BEIS,UKRI - BBSRC,12/10/2020,Training Awards - Postgraduates,FG - Accounts & Business Planning,National Institute For Agricultural Botany (NIAB),98827397,6189.63,Training Awards - Postgraduates
BEIS,UKRI - BBSRC,12/10/2020,Training Awards - Postgraduates,FG - Accounts & Business Planning,University of Warwick,98827398,6189.63,Training Awards - Postgraduates
BEIS,UKRI - BBSRC,12/10/2020,Training Awards - Postgraduates,FG - Accounts & Business Planning,Lancaster University,98827399,6189.63,Training Awards - Postgraduates
BEIS,UKRI - BBSRC,12/10/2020,Training Awards - Postgraduates,FG - Accounts & Business Planning,University of Nottingham,98827400,6189.63,Training Awards - Postgraduates
BEIS,UKRI - BBSRC,12/10/2020,Training Awards - Postgraduates,FG - Accounts & Business Planning,University of Glasgow,98827401,6189.63,Training Awards - Postgraduates
BEIS,UKRI - BBSRC,12/10/2020,Training Awards - Postgraduates,FG - Accounts & Business Planning,University of Birmingham GRANT,98827402,6189.63,Training Awards - Postgraduates
BEIS,UKRI - BBSRC,12/10/2020,Training Awards - Postgraduates,FG - Accounts & Business Planning,University of Reading,98827403,6189.63,Training Awards - Postgraduates
BEIS,UKRI - BBSRC,12/10/2020,Training Awards - Postgraduates,FG - Accounts & Business Planning,The University of Manchester,98827404,4285.12,Training Awards - Postgraduates
BEIS,UKRI - BBSRC,12/10/2020,Training Awards - Postgraduates,FG - Accounts & Business Planning,University of Leeds,98827405,6189.63,Training Awards - Postgraduates
BEIS,UKRI - BBSRC,12/10/2020,Training Awards - Postgraduates,FG - Accounts & Business Planning,University of Cambridge,98827406,5501.89,Training Awards - Postgraduates
BEIS,UKRI - BBSRC,12/10/2020,Training Awards - Postgraduates,FG - Accounts & Business Planning,University of Reading,98827407,6189.63,Training Awards - Postgraduates
BEIS,UKRI - BBSRC,12/10/2020,Training Awards - Postgraduates,FG - Accounts & Business Planning,University of Bristol GRANT,98827408,6189.63,Training Awards - Postgraduates
BEIS,UKRI - BBSRC,12/10/2020,Training Awards - Postgraduates,FG - Accounts & Business Planning,Imperial College London,98827409,6689.63,Training Awards - Postgraduates
BEIS,UKRI - BBSRC,12/10/2020,Training Awards - Postgraduates,FG - Accounts & Business Planning,University of Sheffield,98827410,6189.63,Training Awards - Postgraduates
BEIS,UKRI - BBSRC,12/10/2020,Training Awards - Postgraduates,FG - Accounts & Business Planning,University of Warwick,98827411,6189.63,Training Awards - Postgraduates
BEIS,UKRI - BBSRC,12/10/2020,Training Awards - Postgraduates,FG - Accounts & Business Planning,University of Aberdeen,98827412,6189.63,Training Awards - Postgraduates
BEIS,UKRI - BBSRC,12/10/2020,Training Awards - Postgraduates,FG - Accounts & Business Planning,University of Edinburgh,98827413,6189.63,Training Awards - Postgraduates
BEIS,UKRI - BBSRC,12/10/2020,Training Awards - Postgraduates,FG - Accounts & Business Planning,University of East Anglia,98827414,6189.63,Training Awards - Postgraduates
BEIS,UKRI - BBSRC,12/10/2020,Training Awards - Postgraduates,FG - Accounts & Business Planning,University of Leicester,98827415,6138.25,Training Awards - Postgraduates
BEIS,UKRI - BBSRC,12/10/2020,Training Awards - Postgraduates,FG - Accounts & Business Planning,University of Nottingham,98827416,6189.63,Training Awards - Postgraduates
BEIS,UKRI - BBSRC,12/10/2020,Training Awards - Postgraduates,FG - Accounts & Business Planning,University of Aberdeen,98827417,6189.63,Training Awards - Postgraduates
BEIS,UKRI - BBSRC,12/10/2020,Training Awards - Postgraduates,FG - Accounts & Business Planning,University of Edinburgh,98827418,6189.63,Training Awards - Postgraduates
BEIS,UKRI - BBSRC,12/10/2020,Training Awards - Postgraduates,FG - Accounts & Business Planning,University of Edinburgh,98827419,6189.63,Training Awards - Postgraduates
BEIS,UKRI - BBSRC,12/10/2020,Training Awards - Postgraduates,FG - Accounts & Business Planning,University of York,98827420,6189.63,Training Awards - Postgraduates
BEIS,UKRI - BBSRC,12/10/2020,Training Awards - Postgraduates,FG - Accounts & Business Planning,Earlham Institute,98827421,6189.63,Training Awards - Postgraduates
BEIS,UKRI - BBSRC,12/10/2020,Training Awards - Postgraduates,FG - Accounts & Business Planning,University of Exeter,98827422,6189.63,Training Awards - Postgraduates
BEIS,UKRI - BBSRC,12/10/2020,Training Awards - Postgraduates,FG - Accounts & Business Planning,Earlham Institute,98827423,6189.63,Training Awards - Postgraduates
BEIS,UKRI - BBSRC,12/10/2020,Training Awards - Postgraduates,FG - Accounts & Business Planning,National Institute For Agricultural Botany (NIAB),98827424,6189.63,Training Awards - Postgraduates
BEIS,UKRI - BBSRC,12/10/2020,Training Awards - Postgraduates,FG - Accounts & Business Planning,John Innes Centre,98827425,6189.63,Training Awards - Postgraduates
BEIS,UKRI - BBSRC,12/10/2020,Training Awards - Postgraduates,FG - Accounts & Business Planning,University of Bath,98827426,6189.63,Training Awards - Postgraduates
BEIS,UKRI - BBSRC,12/10/2020,Training Awards - Postgraduates,FG - Accounts & Business Planning,King's College London,98827427,6689.63,Training Awards - Postgraduates
BEIS,UKRI - BBSRC,12/10/2020,Training Awards - Postgraduates,FG - Accounts & Business Planning,University College London,98827428,6689.63,Training Awards - Postgraduates
BEIS,UKRI - BBSRC,12/10/2020,Training Awards - Postgraduates,FG - Accounts & Business Planning,King's College London,98827429,8919.51,Training Awards - Postgraduates
BEIS,UKRI - BBSRC,12/10/2020,Training Awards - Postgraduates,FG - Accounts & Business Planning,University of Leeds,98827430,6189.63,Training Awards - Postgraduates
BEIS,UKRI - BBSRC,12/10/2020,Training Awards - Postgraduates,FG - Accounts & Business Planning,University College London,98827431,6689.63,Training Awards - Postgraduates
BEIS,UKRI - BBSRC,12/10/2020,Training Awards - Postgraduates,FG - Accounts & Business Planning,London School of Hygiene & Tropical Medicine,98827432,6689.63,Training Awards - Postgraduates
BEIS,UKRI - BBSRC,12/10/2020,Training Awards - Postgraduates,FG - Accounts & Business Planning,Queen Mary University of London,98827433,6243.66,Training Awards - Postgraduates
BEIS,UKRI - BBSRC,12/10/2020,Training Awards - Postgraduates,FG - Accounts & Business Planning,University of Cambridge,98827434,6189.63,Training Awards - Postgraduates
BEIS,UKRI - BBSRC,12/10/2020,Training Awards - Postgraduates,FG - Accounts & Business Planning,University of Cambridge,98827435,6189.63,Training Awards - Postgraduates
BEIS,UKRI - BBSRC,12/10/2020,Training Awards - Postgraduates,FG - Accounts & Business Planning,University of Oxford,98827436,6189.63,Training Awards - Postgraduates
BEIS,UKRI - BBSRC,12/10/2020,Training Awards - Postgraduates,FG - Accounts & Business Planning,University of Oxford,98827437,6189.63,Training Awards - Postgraduates
BEIS,UKRI - BBSRC,12/10/2020,Training Awards - Postgraduates,FG - Accounts & Business Planning,University of Oxford,98827438,6189.63,Training Awards - Postgraduates
BEIS,UKRI - BBSRC,12/10/2020,Training Awards - Postgraduates,FG - Accounts & Business Planning,University of Oxford,98827439,6189.63,Training Awards - Postgraduates
BEIS,UKRI - BBSRC,12/10/2020,Training Awards - Postgraduates,FG - Accounts & Business Planning,University of Cambridge,98827440,6189.63,Training Awards - Postgraduates
BEIS,UKRI - BBSRC,12/10/2020,Training Awards - Postgraduates,FG - Accounts & Business Planning,National Institute For Agricultural Botany (NIAB),98827441,6189.63,Training Awards - Postgraduates
BEIS,UKRI - BBSRC,12/10/2020,Training Awards - Postgraduates,FG - Accounts & Business Planning,University of Edinburgh,98827442,8252.85,Training Awards - Postgraduates
BEIS,UKRI - BBSRC,12/10/2020,Training Awards - Postgraduates,FG - Accounts & Business Planning,Babraham Institute,98827443,6267.44,Training Awards - Postgraduates
BEIS,UKRI - BBSRC,12/10/2020,Training Awards - Postgraduates,FG - Accounts & Business Planning,The University of Manchester,98827444,6267.44,Training Awards - Postgraduates
BEIS,UKRI - BBSRC,12/10/2020,Training Awards - Postgraduates,FG - Accounts & Business Planning,University of Nottingham,98827445,6267.44,Training Awards - Postgraduates
BEIS,UKRI - BBSRC,12/10/2020,Training Awards - Postgraduates,FG - Accounts & Business Planning,University of Newcastle Upon Tyne,98827446,6267.44,Training Awards - Postgraduates
BEIS,UKRI - BBSRC,12/10/2020,Training Awards - Postgraduates,FG - Accounts & Business Planning,University of Newcastle Upon Tyne,98827446,6267.44,Training Awards - Postgraduates
BEIS,UKRI - BBSRC,12/10/2020,Training Awards - Postgraduates,FG - Accounts & Business Planning,University of Newcastle Upon Tyne,98827446,6267.44,Training Awards - Postgraduates
BEIS,UKRI - BBSRC,12/10/2020,Training Awards - Postgraduates,FG - Accounts & Business Planning,University of Newcastle Upon Tyne,98827446,6267.44,Training Awards - Postgraduates
BEIS,UKRI - BBSRC,12/10/2020,Training Awards - Postgraduates,FG - Accounts & Business Planning,University of Newcastle Upon Tyne,98827446,6267.44,Training Awards - Postgraduates
BEIS,UKRI - BBSRC,12/10/2020,Training Awards - Postgraduates,FG - Accounts & Business Planning,University of Birmingham GRANT,98827447,6267.44,Training Awards - Postgraduates
BEIS,UKRI - BBSRC,12/10/2020,Training Awards - Postgraduates,FG - Accounts & Business Planning,Imperial College London,98827448,6767.44,Training Awards - Postgraduates
BEIS,UKRI - BBSRC,12/10/2020,Training Awards - Postgraduates,FG - Accounts & Business Planning,University of Edinburgh,98827449,6267.44,Training Awards - Postgraduates
BEIS,UKRI - BBSRC,12/10/2020,Training Awards - Postgraduates,FG - Accounts & Business Planning,Keele University,98827450,6267.44,Training Awards - Postgraduates
BEIS,UKRI - BBSRC,12/10/2020,Training Awards - Postgraduates,FG - Accounts & Business Planning,Imperial College London,98827451,6767.44,Training Awards - Postgraduates
BEIS,UKRI - BBSRC,12/10/2020,Training Awards - Postgraduates,FG - Accounts & Business Planning,University of Sheffield,98827452,6267.44,Training Awards - Postgraduates
BEIS,UKRI - BBSRC,12/10/2020,Training Awards - Postgraduates,FG - Accounts & Business Planning,University of York,98827453,6267.44,Training Awards - Postgraduates
BEIS,UKRI - BBSRC,12/10/2020,Training Awards - Postgraduates,FG - Accounts & Business Planning,University of Bristol GRANT,98827454,6267.44,Training Awards - Postgraduates
BEIS,UKRI - BBSRC,12/10/2020,Training Awards - Postgraduates,FG - Accounts & Business Planning,Rothamsted Research Ltd,98827455,6267.44,Training Awards - Postgraduates
BEIS,UKRI - BBSRC,12/10/2020,Training Awards - Postgraduates,FG - Accounts & Business Planning,University of Cambridge,98827456,6267.44,Training Awards - Postgraduates
BEIS,UKRI - BBSRC,12/10/2020,Training Awards - Postgraduates,FG - Accounts & Business Planning,University of Nottingham,98827457,6267.44,Training Awards - Postgraduates
BEIS,UKRI - BBSRC,12/10/2020,Training Awards - Postgraduates,FG - Accounts & Business Planning,The University of Manchester,98827458,6267.44,Training Awards - Postgraduates
BEIS,UKRI - BBSRC,12/10/2020,Training Awards - Postgraduates,FG - Accounts & Business Planning,University of Hertfordshire,98827459,6267.44,Training Awards - Postgraduates
BEIS,UKRI - BBSRC,12/10/2020,Training Awards - Postgraduates,FG - Accounts & Business Planning,University of Liverpool,98827460,6267.44,Training Awards - Postgraduates
BEIS,UKRI - BBSRC,12/10/2020,Training Awards - Postgraduates,FG - Accounts & Business Planning,King's College London,98827461,6767.44,Training Awards - Postgraduates
BEIS,UKRI - BBSRC,12/10/2020,Training Awards - Postgraduates,FG - Accounts & Business Planning,King's College London,98827461,6767.44,Training Awards - Postgraduates
BEIS,UKRI - BBSRC,12/10/2020,Training Awards - Postgraduates,FG - Accounts & Business Planning,King's College London,98827461,6767.44,Training Awards - Postgraduates
BEIS,UKRI - BBSRC,12/10/2020,Training Awards - Postgraduates,FG - Accounts & Business Planning,King's College London,98827461,6767.44,Training Awards - Postgraduates
BEIS,UKRI - BBSRC,12/10/2020,Training Awards - Postgraduates,FG - Accounts & Business Planning,King's College London,98827461,6767.44,Training Awards - Postgraduates
BEIS,UKRI - BBSRC,12/10/2020,Training Awards - Postgraduates,FG - Accounts & Business Planning,University of Durham,98827462,6267.44,Training Awards - Postgraduates
BEIS,UKRI - BBSRC,12/10/2020,Training Awards - Postgraduates,FG - Accounts & Business Planning,University of Leeds,98827463,6267.44,Training Awards - Postgraduates
BEIS,UKRI - BBSRC,12/10/2020,Training Awards - Postgraduates,FG - Accounts & Business Planning,University College London,98827464,6767.44,Training Awards - Postgraduates
BEIS,UKRI - BBSRC,12/10/2020,Training Awards - Postgraduates,FG - Accounts & Business Planning,University College London,98827465,6767.44,Training Awards - Postgraduates
BEIS,UKRI - BBSRC,12/10/2020,Training Awards - Postgraduates,FG - Accounts & Business Planning,University of Glasgow,98827466,6267.44,Training Awards - Postgraduates
BEIS,UKRI - BBSRC,12/10/2020,Training Awards - Postgraduates,FG - Accounts & Business Planning,The University of Manchester,98827467,6267.44,Training Awards - Postgraduates
BEIS,UKRI - BBSRC,12/10/2020,Training Awards - Postgraduates,FG - Accounts & Business Planning,University of Dundee,98827468,6267.44,Training Awards - Postgraduates
BEIS,UKRI - BBSRC,12/10/2020,Training Awards - Postgraduates,FG - Accounts & Business Planning,University of Dundee,98827468,6267.44,Training Awards - Postgraduates
BEIS,UKRI - BBSRC,12/10/2020,Training Awards - Postgraduates,FG - Accounts & Business Planning,University of Dundee,98827468,6267.44,Training Awards - Postgraduates
BEIS,UKRI - BBSRC,12/10/2020,Training Awards - Postgraduates,FG - Accounts & Business Planning,University of Dundee,98827468,6267.44,Training Awards - Postgraduates
BEIS,UKRI - BBSRC,12/10/2020,Training Awards - Postgraduates,FG - Accounts & Business Planning,University of Dundee,98827468,6267.44,Training Awards - Postgraduates
BEIS,UKRI - BBSRC,12/10/2020,Training Awards - Postgraduates,FG - Accounts & Business Planning,University of Cambridge,98827469,6267.44,Training Awards - Postgraduates
BEIS,UKRI - BBSRC,12/10/2020,Training Awards - Postgraduates,FG - Accounts & Business Planning,University of Southampton GRANT,98827470,6267.44,Training Awards - Postgraduates
BEIS,UKRI - BBSRC,12/10/2020,Training Awards - Postgraduates,FG - Accounts & Business Planning,Queen's University Belfast GRANT,98827471,6267.44,Training Awards - Postgraduates
BEIS,UKRI - BBSRC,12/10/2020,Training Awards - Postgraduates,FG - Accounts & Business Planning,University of Glasgow,98827472,6267.44,Training Awards - Postgraduates
BEIS,UKRI - BBSRC,12/10/2020,Training Awards - Postgraduates,FG - Accounts & Business Planning,European Bioinformatics Institute,98827473,6267.44,Training Awards - Postgraduates
BEIS,UKRI - BBSRC,12/10/2020,Training Awards - Postgraduates,FG - Accounts & Business Planning,University of Reading,98827474,6267.44,Training Awards - Postgraduates
BEIS,UKRI - BBSRC,12/10/2020,Training Awards - Postgraduates,FG - Accounts & Business Planning,University of Glasgow,98827475,6267.44,Training Awards - Postgraduates
BEIS,UKRI - BBSRC,12/10/2020,Training Awards - Postgraduates,FG - Accounts & Business Planning,University of Southampton GRANT,98827476,6267.44,Training Awards - Postgraduates
BEIS,UKRI - BBSRC,12/10/2020,Training Awards - Postgraduates,FG - Accounts & Business Planning,University of York,98827477,6267.44,Training Awards - Postgraduates
BEIS,UKRI - BBSRC,12/10/2020,Training Awards - Postgraduates,FG - Accounts & Business Planning,University of Exeter,98827478,6267.44,Training Awards - Postgraduates
BEIS,UKRI - BBSRC,12/10/2020,Training Awards - Postgraduates,FG - Accounts & Business Planning,Queen Mary University of London,98827479,6767.44,Training Awards - Postgraduates
BEIS,UKRI - BBSRC,12/10/2020,Training Awards - Postgraduates,FG - Accounts & Business Planning,University of Newcastle Upon Tyne,98827480,6267.44,Training Awards - Postgraduates
BEIS,UKRI - BBSRC,12/10/2020,Training Awards - Postgraduates,FG - Accounts & Business Planning,University of Newcastle Upon Tyne,98827480,6267.44,Training Awards - Postgraduates
BEIS,UKRI - BBSRC,12/10/2020,Training Awards - Postgraduates,FG - Accounts & Business Planning,University of Newcastle Upon Tyne,98827480,6267.44,Training Awards - Postgraduates
BEIS,UKRI - BBSRC,12/10/2020,Training Awards - Postgraduates,FG - Accounts & Business Planning,University of Newcastle Upon Tyne,98827480,6267.44,Training Awards - Postgraduates
BEIS,UKRI - BBSRC,12/10/2020,Training Awards - Postgraduates,FG - Accounts & Business Planning,University of Newcastle Upon Tyne,98827480,6267.44,Training Awards - Postgraduates
BEIS,UKRI - BBSRC,12/10/2020,Training Awards - Postgraduates,FG - Accounts & Business Planning,University of Birmingham GRANT,98827481,6267.44,Training Awards - Postgraduates
BEIS,UKRI - BBSRC,12/10/2020,Training Awards - Postgraduates,FG - Accounts & Business Planning,Cardiff University,98827482,6267.44,Training Awards - Postgraduates
BEIS,UKRI - BBSRC,12/10/2020,Training Awards - Postgraduates,FG - Accounts & Business Planning,University of Nottingham,98827483,6267.44,Training Awards - Postgraduates
BEIS,UKRI - BBSRC,12/10/2020,Training Awards - Postgraduates,FG - Accounts & Business Planning,The University of Manchester,98827484,6267.44,Training Awards - Postgraduates
BEIS,UKRI - BBSRC,12/10/2020,Training Awards - Postgraduates,FG - Accounts & Business Planning,University of Leeds,98827485,6267.44,Training Awards - Postgraduates
BEIS,UKRI - BBSRC,12/10/2020,Training Awards - Postgraduates,FG - Accounts & Business Planning,Sheffield Hallam University,98827486,6267.44,Training Awards - Postgraduates
BEIS,UKRI - BBSRC,12/10/2020,Training Awards - Postgraduates,FG - Accounts & Business Planning,King's College London,98827487,6767.44,Training Awards - Postgraduates
BEIS,UKRI - BBSRC,12/10/2020,Training Awards - Postgraduates,FG - Accounts & Business Planning,University of Edinburgh,98827488,6267.44,Training Awards - Postgraduates
BEIS,UKRI - BBSRC,12/10/2020,Training Awards - Postgraduates,FG - Accounts & Business Planning,University of Edinburgh,98827489,6267.44,Training Awards - Postgraduates
BEIS,UKRI - BBSRC,12/10/2020,Training Awards - Postgraduates,FG - Accounts & Business Planning,Lancaster University,98827490,6267.44,Training Awards - Postgraduates
BEIS,UKRI - BBSRC,12/10/2020,Training Awards - Postgraduates,FG - Accounts & Business Planning,University of Newcastle Upon Tyne,98827491,6267.44,Training Awards - Postgraduates
BEIS,UKRI - BBSRC,12/10/2020,Training Awards - Postgraduates,FG - Accounts & Business Planning,University of Strathclyde,98827492,6267.44,Training Awards - Postgraduates
BEIS,UKRI - BBSRC,12/10/2020,Training Awards - Postgraduates,FG - Accounts & Business Planning,The University of Manchester,98827493,6267.44,Training Awards - Postgraduates
BEIS,UKRI - BBSRC,12/10/2020,Training Awards - Postgraduates,FG - Accounts & Business Planning,The Scottish Association for Marine Science (SAMS Group),98827494,6267.44,Training Awards - Postgraduates
BEIS,UKRI - BBSRC,12/10/2020,Training Awards - Postgraduates,FG - Accounts & Business Planning,University of Sheffield,98827495,6267.44,Training Awards - Postgraduates
BEIS,UKRI - BBSRC,12/10/2020,Training Awards - Postgraduates,FG - Accounts & Business Planning,The University of Manchester,98827496,6267.44,Training Awards - Postgraduates
BEIS,UKRI - BBSRC,12/10/2020,Training Awards - Postgraduates,FG - Accounts & Business Planning,University of York,98827497,6267.44,Training Awards - Postgraduates
BEIS,UKRI - BBSRC,12/10/2020,Training Awards - Postgraduates,FG - Accounts & Business Planning,University of Cambridge,98827498,6267.44,Training Awards - Postgraduates
BEIS,UKRI - BBSRC,12/10/2020,Training Awards - Postgraduates,FG - Accounts & Business Planning,University of Edinburgh,98827499,6267.44,Training Awards - Postgraduates
BEIS,UKRI - BBSRC,12/10/2020,Training Awards - Postgraduates,FG - Accounts & Business Planning,University of Sheffield,98827500,6267.44,Training Awards - Postgraduates
BEIS,UKRI - BBSRC,12/10/2020,Training Awards - Postgraduates,FG - Accounts & Business Planning,University of Newcastle Upon Tyne,98827501,6267.44,Training Awards - Postgraduates
BEIS,UKRI - BBSRC,12/10/2020,Training Awards - Postgraduates,FG - Accounts & Business Planning,King's College London,98827502,6767.44,Training Awards - Postgraduates
BEIS,UKRI - BBSRC,12/10/2020,Training Awards - Postgraduates,FG - Accounts & Business Planning,Lancaster University,98827503,6267.44,Training Awards - Postgraduates
BEIS,UKRI - BBSRC,12/10/2020,Training Awards - Postgraduates,FG - Accounts & Business Planning,Lancaster University,98827504,6267.44,Training Awards - Postgraduates
BEIS,UKRI - BBSRC,12/10/2020,Training Awards - Postgraduates,FG - Accounts & Business Planning,Lancaster University,98827505,6267.44,Training Awards - Postgraduates
BEIS,UKRI - BBSRC,12/10/2020,Training Awards - Postgraduates,FG - Accounts & Business Planning,University of Strathclyde,98827506,6267.44,Training Awards - Postgraduates
BEIS,UKRI - BBSRC,12/10/2020,Training Awards - Postgraduates,FG - Accounts & Business Planning,University of Liverpool,98827507,6267.44,Training Awards - Postgraduates
BEIS,UKRI - BBSRC,12/10/2020,Training Awards - Postgraduates,FG - Accounts & Business Planning,"Royal Holloway, University of London",98827508,6767.44,Training Awards - Postgraduates
BEIS,UKRI - BBSRC,12/10/2020,Training Awards - Postgraduates,FG - Accounts & Business Planning,University of Reading,98827509,6267.44,Training Awards - Postgraduates
BEIS,UKRI - BBSRC,12/10/2020,Training Awards - Postgraduates,FG - Accounts & Business Planning,University of Exeter,98827510,6267.44,Training Awards - Postgraduates
BEIS,UKRI - BBSRC,12/10/2020,Training Awards - Postgraduates,FG - Accounts & Business Planning,University of Liverpool,98827511,6267.44,Training Awards - Postgraduates
BEIS,UKRI - BBSRC,12/10/2020,Training Awards - Postgraduates,FG - Accounts & Business Planning,Lancaster University,98827512,6267.44,Training Awards - Postgraduates
BEIS,UKRI - BBSRC,12/10/2020,Training Awards - Postgraduates,FG - Accounts & Business Planning,University of Reading,98827513,6267.44,Training Awards - Postgraduates
BEIS,UKRI - BBSRC,12/10/2020,Training Awards - Postgraduates,FG - Accounts & Business Planning,University of Nottingham,98827514,6267.44,Training Awards - Postgraduates
BEIS,UKRI - BBSRC,12/10/2020,Training Awards - Postgraduates,FG - Accounts & Business Planning,Lancaster University,98827515,6267.44,Training Awards - Postgraduates
BEIS,UKRI - BBSRC,12/10/2020,Training Awards - Postgraduates,FG - Accounts & Business Planning,National Institute For Agricultural Botany (NIAB),98827516,6267.44,Training Awards - Postgraduates
BEIS,UKRI - BBSRC,12/10/2020,Training Awards - Postgraduates,FG - Accounts & Business Planning,National Institute For Agricultural Botany (NIAB),98827517,6267.44,Training Awards - Postgraduates
BEIS,UKRI - BBSRC,12/10/2020,Training Awards - Postgraduates,FG - Accounts & Business Planning,National Institute For Agricultural Botany (NIAB),98827518,6267.44,Training Awards - Postgraduates
BEIS,UKRI - BBSRC,12/10/2020,Training Awards - Postgraduates,FG - Accounts & Business Planning,National Institute For Agricultural Botany (NIAB),98827519,6267.44,Training Awards - Postgraduates
BEIS,UKRI - BBSRC,12/10/2020,Training Awards - Postgraduates,FG - Accounts & Business Planning,National Institute For Agricultural Botany (NIAB),98827520,6267.44,Training Awards - Postgraduates
BEIS,UKRI - BBSRC,12/10/2020,Training Awards - Postgraduates,FG - Accounts & Business Planning,University of Edinburgh,98827521,6224.53,Training Awards - Postgraduates
BEIS,UKRI - BBSRC,12/10/2020,Training Awards - Postgraduates,FG - Accounts & Business Planning,National Institute For Agricultural Botany (NIAB),98827522,6267.44,Training Awards - Postgraduates
BEIS,UKRI - BBSRC,12/10/2020,Training Awards - Postgraduates,FG - Accounts & Business Planning,University of Nottingham,98827523,6267.44,Training Awards - Postgraduates
BEIS,UKRI - BBSRC,12/10/2020,Training Awards - Postgraduates,FG - Accounts & Business Planning,University of Warwick,98827524,6267.44,Training Awards - Postgraduates
BEIS,UKRI - BBSRC,12/10/2020,Training Awards - Postgraduates,FG - Accounts & Business Planning,University of Cambridge,98827525,6267.44,Training Awards - Postgraduates
BEIS,UKRI - BBSRC,12/10/2020,Training Awards - Postgraduates,FG - Accounts & Business Planning,University of Durham,98827526,6267.44,Training Awards - Postgraduates
BEIS,UKRI - BBSRC,12/10/2020,Training Awards - Postgraduates,FG - Accounts & Business Planning,University of Nottingham,98827527,6267.44,Training Awards - Postgraduates
BEIS,UKRI - BBSRC,12/10/2020,Training Awards - Postgraduates,FG - Accounts & Business Planning,The University of Manchester,98827528,6267.44,Training Awards - Postgraduates
BEIS,UKRI - BBSRC,12/10/2020,Training Awards - Postgraduates,FG - Accounts & Business Planning,The University of Manchester,98827529,6267.44,Training Awards - Postgraduates
BEIS,UKRI - BBSRC,12/10/2020,Training Awards - Postgraduates,FG - Accounts & Business Planning,The University of Manchester,98827529,6267.44,Training Awards - Postgraduates
BEIS,UKRI - BBSRC,12/10/2020,Training Awards - Postgraduates,FG - Accounts & Business Planning,Imperial College London,98827530,23712.50,Training Awards - Postgraduates
BEIS,UKRI - BBSRC,12/10/2020,Training Awards - Postgraduates,FG - Accounts & Business Planning,Imperial College London,98827530,23712.50,Training Awards - Postgraduates
BEIS,UKRI - BBSRC,12/10/2020,Training Awards - Postgraduates,FG - Accounts & Business Planning,Royal Veterinary College,98827531,24975.00,Training Awards - Postgraduates
BEIS,UKRI - BBSRC,12/10/2020,Training Awards - Postgraduates,FG - Accounts & Business Planning,Royal Veterinary College,98827531,24975.00,Training Awards - Postgraduates
BEIS,UKRI - BBSRC,12/10/2020,Training Awards - Postgraduates,FG - Accounts & Business Planning,Royal Veterinary College,98827531,24975.00,Training Awards - Postgraduates
BEIS,UKRI - BBSRC,12/10/2020,Training Awards - Postgraduates,FG - Accounts & Business Planning,University of Newcastle Upon Tyne,98827532,24896.00,Training Awards - Postgraduates
BEIS,UKRI - BBSRC,12/10/2020,Training Awards - Postgraduates,FG - Accounts & Business Planning,University of Leicester,98827533,7615.00,Training Awards - Postgraduates
BEIS,UKRI - BBSRC,12/10/2020,Training Awards - Postgraduates,FG - Accounts & Business Planning,University of Leicester,98827533,7615.00,Training Awards - Postgraduates
BEIS,UKRI - BBSRC,12/10/2020,Training Awards - Postgraduates,FG - Accounts & Business Planning,University of Leeds,98827534,24905.00,Training Awards - Postgraduates
BEIS,UKRI - BBSRC,12/10/2020,Training Awards - Postgraduates,FG - Accounts & Business Planning,University of Leeds,98827535,24651.00,Training Awards - Postgraduates
BEIS,UKRI - BBSRC,12/10/2020,Training Awards - Postgraduates,FG - Accounts & Business Planning,University of Leeds,98827535,24651.00,Training Awards - Postgraduates
BEIS,UKRI - BBSRC,12/10/2020,Training Awards - Postgraduates,FG - Accounts & Business Planning,Rothamsted Research Ltd,98827536,19351.25,Training Awards - Postgraduates
BEIS,UKRI - BBSRC,12/10/2020,Training Awards - Postgraduates,FG - Accounts & Business Planning,University of Reading,98827537,2584.00,Training Awards - Postgraduates
BEIS,UKRI - BBSRC,12/10/2020,Training Awards - Postgraduates,FG - Accounts & Business Planning,University of Reading,98827537,2584.00,Training Awards - Postgraduates
BEIS,UKRI - BBSRC,12/10/2020,Training Awards - Postgraduates,FG - Accounts & Business Planning,Rothamsted Research Ltd,98827540,19008.40,Training Awards - Postgraduates
BEIS,UKRI - BBSRC,12/10/2020,Fees (Including College Members),Innovation and Skills Group CDSU,Unspecified,98833508,170.00,Fees (Including College Members)
BEIS,UKRI - BBSRC,12/10/2020,Fees (Including College Members),Innovation and Skills Group CDSU,Unspecified,98833509,340.00,Fees (Including College Members)
BEIS,UKRI - BBSRC,12/10/2020,Fees (Including College Members),Innovation and Skills Group CDSU,Unspecified,98833510,170.00,Fees (Including College Members)
BEIS,UKRI - BBSRC,12/10/2020,Fees (Including College Members),Innovation and Skills Group CDSU,Unspecified,98833511,340.00,Fees (Including College Members)
BEIS,UKRI - BBSRC,12/10/2020,Fees (Including College Members),Innovation and Skills Group CDSU,Unspecified,98833512,230.00,Fees (Including College Members)
BEIS,UKRI - BBSRC,12/10/2020,Fees (Including College Members),Innovation and Skills Group CDSU,Unspecified,98833513,340.00,Fees (Including College Members)
BEIS,UKRI - BBSRC,12/10/2020,Fees (Including College Members),Innovation and Skills Group CDSU,Unspecified,98833514,460.00,Fees (Including College Members)
BEIS,UKRI - BBSRC,12/10/2020,Fees (Including College Members),Innovation and Skills Group CDSU,Unspecified,98833515,340.00,Fees (Including College Members)
BEIS,UKRI - BBSRC,12/10/2020,Fees (Including College Members),Innovation and Skills Group CDSU,Unspecified,98833516,170.00,Fees (Including College Members)
BEIS,UKRI - BBSRC,12/10/2020,Fees (Including College Members),Innovation and Skills Group CDSU,Unspecified,98833517,340.00,Fees (Including College Members)
BEIS,UKRI - BBSRC,12/10/2020,Fees (Including College Members),Innovation and Skills Group CDSU,Unspecified,98833518,230.00,Fees (Including College Members)
BEIS,UKRI - BBSRC,12/10/2020,Fees (Including College Members),Innovation and Skills Group CDSU,Unspecified,98833519,460.00,Fees (Including College Members)
BEIS,UKRI - BBSRC,12/10/2020,Fees (Including College Members),Innovation and Skills Group CDSU,Unspecified,98833520,170.00,Fees (Including College Members)
BEIS,UKRI - BBSRC,12/10/2020,Fees (Including College Members),Innovation and Skills Group CDSU,Unspecified,98833521,340.00,Fees (Including College Members)
BEIS,UKRI - BBSRC,12/10/2020,Fees (Including College Members),Innovation and Skills Group CDSU,Unspecified,98833522,460.00,Fees (Including College Members)
BEIS,UKRI - BBSRC,12/10/2020,Fees (Including College Members),Innovation and Skills Group CDSU,Unspecified,98833523,340.00,Fees (Including College Members)
BEIS,UKRI - BBSRC,12/10/2020,Fees (Including College Members),Innovation and Skills Group CDSU,Unspecified,98833524,340.00,Fees (Including College Members)
BEIS,UKRI - BBSRC,12/10/2020,Fees (Including College Members),Innovation and Skills Group CDSU,Unspecified,98833525,170.00,Fees (Including College Members)
BEIS,UKRI - BBSRC,12/10/2020,Fees (Including College Members),Innovation and Skills Group CDSU,Unspecified,98833526,460.00,Fees (Including College Members)
BEIS,UKRI - BBSRC,12/10/2020,Fees (Including College Members),Innovation and Skills Group CDSU,Unspecified,98833527,340.00,Fees (Including College Members)
BEIS,UKRI - BBSRC,12/10/2020,Fees (Including College Members),Innovation and Skills Group CDSU,Unspecified,98833528,170.00,Fees (Including College Members)
BEIS,UKRI - BBSRC,12/10/2020,Fees (Including College Members),Innovation and Skills Group CDSU,Unspecified,98833529,170.00,Fees (Including College Members)
BEIS,UKRI - BBSRC,12/10/2020,Fees (Including College Members),Innovation and Skills Group CDSU,Unspecified,98833530,170.00,Fees (Including College Members)
BEIS,UKRI - BBSRC,12/10/2020,Fees (Including College Members),Innovation and Skills Group CDSU,Unspecified,98833531,340.00,Fees (Including College Members)
BEIS,UKRI - BBSRC,12/10/2020,Fees (Including College Members),Innovation and Skills Group CDSU,Unspecified,98833532,170.00,Fees (Including College Members)
BEIS,UKRI - BBSRC,12/10/2020,Fees (Including College Members),Science Group - Delivery Function,Unspecified,98833533,170.00,Fees (Including College Members)
BEIS,UKRI - BBSRC,12/10/2020,Fees (Including College Members),Science Group – Admin Function,Unspecified,98833534,340.00,Fees (Including College Members)
BEIS,UKRI - BBSRC,12/10/2020,Fees (Including College Members),Science Group – Admin Function,Unspecified,98833535,340.00,Fees (Including College Members)
BEIS,UKRI - BBSRC,12/10/2020,Fees (Including College Members),Science Group – Admin Function,Unspecified,98833536,630.00,Fees (Including College Members)
BEIS,UKRI - BBSRC,12/10/2020,Fees (Including College Members),Innovation and Skills Group CDSU,Unspecified,98833537,170.00,Fees (Including College Members)
BEIS,UKRI - BBSRC,12/10/2020,Fees (Including College Members),Science Group – Admin Function,Unspecified,98833538,340.00,Fees (Including College Members)
BEIS,UKRI - BBSRC,12/10/2020,Fees (Including College Members),Science Group – Admin Function,Unspecified,98833539,170.00,Fees (Including College Members)
BEIS,UKRI - BBSRC,12/10/2020,Fees (Including College Members),Innovation and Skills Group CDSU,Unspecified,98833540,170.00,Fees (Including College Members)
BEIS,UKRI - BBSRC,12/10/2020,Fees (Including College Members),Science Group – Admin Function,Unspecified,98833541,170.00,Fees (Including College Members)
BEIS,UKRI - BBSRC,13/10/2020,Compensation Payments,FG - Accounts & Business Planning,JSS Pensions Administration,98824939,1267.18,Compensation Payments
BEIS,UKRI - BBSRC,13/10/2020,Recruitment Costs,PDG - Director,Onefix Recruitment Ltd,98827942,450.00,Recruitment Costs
BEIS,UKRI - BBSRC,13/10/2020,Recruitment Costs,PDG - Director,Onefix Recruitment Ltd,98827943,450.00,Recruitment Costs
BEIS,UKRI - BBSRC,13/10/2020,Compensation Payments,FG - Accounts & Business Planning,JSS Pensions Administration,98830372,46281.09,Compensation Payments
BEIS,UKRI - BBSRC,13/10/2020,Research Grant Expenditure,Science Group,UKRI - Engineering & Physical Sciences Research Council,98830700,596006.13,Research Grant Expenditure
BEIS,UKRI - BBSRC,13/10/2020,Recruitment Costs,PDG - Director,Warwick University Services Ltd,98830789,600.00,Recruitment Costs
BEIS,UKRI - BBSRC,13/10/2020,Recruitment Costs,PDG - Director,Onefix Recruitment Ltd,98831501,83.26,Recruitment Costs
BEIS,UKRI - BBSRC,13/10/2020,Research Grant Expenditure,Research: Responsive,UKRI - Medical Research Council,98832653,112198.08,Research Grant Expenditure
BEIS,UKRI - BBSRC,13/10/2020,Research Grant Expenditure,Research: Responsive,UKRI - Medical Research Council,98832653,4805.20,Research Grant Expenditure
BEIS,UKRI - BBSRC,13/10/2020,Unspecified,FG - Estates,Womble Bond Dickinson LLP,98834335,372.60,Legal & Professional Services
BEIS,UKRI - BBSRC,14/10/2020,Unspecified,Balance Sheet,HM Revenue & Customs,98825612,1887.06,PAYE Payable Salaries
BEIS,UKRI - BBSRC,14/10/2020,Unspecified,Balance Sheet,HM Revenue & Customs,98825613,13.98,NI Payable Salaries
BEIS,UKRI - BBSRC,14/10/2020,Unspecified,FG - Accounts & Business Planning,HM Revenue & Customs,98825614,29.00,Apprenticeship Levy
BEIS,UKRI - BBSRC,14/10/2020,Unspecified,Balance Sheet,HM Revenue & Customs,98825631,64698.20,PAYE Payable Salaries
BEIS,UKRI - BBSRC,14/10/2020,Unspecified,Balance Sheet,HM Revenue & Customs,98825632,4560.00,Student Loans
BEIS,UKRI - BBSRC,14/10/2020,Unspecified,Balance Sheet,HM Revenue & Customs,98825633,89500.31,NI Payable Salaries
BEIS,UKRI - BBSRC,14/10/2020,Unspecified,FG - Accounts & Business Planning,HM Revenue & Customs,98825634,2292.00,Apprenticeship Levy
BEIS,UKRI - BBSRC,14/10/2020,Research Institutes - Capital Grants: Minor Works,Rothamsted Research,Rothamsted Research Ltd,98832157,47008.74,Research Institutes - Capital Grants: Minor Works
BEIS,UKRI - BBSRC,14/10/2020,T&S UK - Other Charges,Innovation and Skills Group CDSU,Unspecified,98833026,68.97,T&S UK - Other Charges
BEIS,UKRI - BBSRC,14/10/2020,Research Institutes - Capital Grants: Minor Works,Rothamsted Research,Rothamsted Research Ltd,98834258,126822.96,Research Institutes - Capital Grants: Minor Works
BEIS,UKRI - BBSRC,14/10/2020,Research Institutes - Capital Grants: Minor Works,Estates - Projects,EMBL (European Molecular Biology Laboratory),98834580,66639.00,Research Institutes - Capital Grants: Minor Works
BEIS,UKRI - BBSRC,14/10/2020,Research Grant Expenditure,Science Group,UKRI - Engineering & Physical Sciences Research Council,98834747,-7994.44,Research Grant Expenditure
BEIS,UKRI - BBSRC,15/10/2020,Voluntary Deductions,Balance Sheet,St Elizabeth’s Centre,98825615,570.83,Voluntary Deductions
BEIS,UKRI - BBSRC,15/10/2020,Union Deductions,Balance Sheet,PCS Union,98825635,44.34,Union Deductions
BEIS,UKRI - BBSRC,15/10/2020,Unspecified,Balance Sheet,Unspecified,98825637,21113.57,Ees Pension Deductions - JSS
BEIS,UKRI - BBSRC,15/10/2020,Unspecified,Balance Sheet,Unspecified,98825638,90809.16,Ers Pension Deductions - JSS
BEIS,UKRI - BBSRC,15/10/2020,Unspecified,Balance Sheet,Scottish Widows Life Assurance,98825639,10.00,Other Pension Deductions
BEIS,UKRI - BBSRC,15/10/2020,Unspecified,Balance Sheet,Cabinet Office RM Shared Services,98825640,16.24,Ers Pension Deductions - JSS
BEIS,UKRI - BBSRC,15/10/2020,Unspecified,Balance Sheet,Cabinet Office RM Shared Services,98825641,6558.13,Ees Pension Deductions - MyCSP
BEIS,UKRI - BBSRC,15/10/2020,Unspecified,Balance Sheet,Cabinet Office RM Shared Services,98825642,31691.96,Ers Pension Deductions - MyCSP
BEIS,UKRI - BBSRC,15/10/2020,Nursery Deductions,Balance Sheet,UKRI - Engineering & Physical Sciences Research Council,98825643,1628.00,Nursery Deductions
BEIS,UKRI - BBSRC,15/10/2020,Unspecified,FG - Estates,Womble Bond Dickinson LLP,98833182,420.00,Legal & Professional Services
BEIS,UKRI - BBSRC,15/10/2020,Unspecified,FG - Estates,Womble Bond Dickinson LLP,98833183,2400.00,Legal & Professional Services
BEIS,UKRI - BBSRC,15/10/2020,Staff Training,Science Group,Partnership Media Group T/A GovNet Communications,98833189,390.00,Staff Training
BEIS,UKRI - BBSRC,15/10/2020,Fees (Including College Members),Innovation and Skills Group CDSU,Unspecified,98835272,170.00,Fees (Including College Members)
BEIS,UKRI - BBSRC,15/10/2020,Fees (Including College Members),Science Group – Admin Function,Unspecified,98835273,460.00,Fees (Including College Members)
BEIS,UKRI - BBSRC,15/10/2020,Fees (Including College Members),Science Group – Admin Function,Unspecified,98835274,340.00,Fees (Including College Members)
BEIS,UKRI - BBSRC,15/10/2020,Fees (Including College Members),Science Group – Admin Function,Unspecified,98835275,340.00,Fees (Including College Members)
BEIS,UKRI - BBSRC,15/10/2020,Fees (Including College Members),Science Group – Admin Function,Unspecified,98835276,340.00,Fees (Including College Members)
BEIS,UKRI - BBSRC,15/10/2020,Fees (Including College Members),Science Group – Admin Function,Unspecified,98835277,460.00,Fees (Including College Members)
BEIS,UKRI - BBSRC,15/10/2020,Fees (Including College Members),Innovation and Skills Group CDSU,Unspecified,98835278,170.00,Fees (Including College Members)
BEIS,UKRI - BBSRC,15/10/2020,Health & Safety (inc. Medicals & Opticians),CE - CPS,Unspecified,98835361,12.99,Health & Safety (inc. Medicals & Opticians)
BEIS,UKRI - BBSRC,15/10/2020,T&S UK - Other Charges,Innovation and Skills Group CDSU,Unspecified,98835362,214.92,T&S UK - Other Charges
BEIS,UKRI - BBSRC,16/10/2020,Research Institutes - Capital Grants: Minor Works,JIC,John Innes Centre,98834992,48420.00,Research Institutes - Capital Grants: Minor Works
BEIS,UKRI - BBSRC,16/10/2020,Research Institutes - Capital Grants: Minor Works,JIC,John Innes Centre,98835432,31386.56,Research Institutes - Capital Grants: Minor Works
BEIS,UKRI - BBSRC,16/10/2020,Fees (Including College Members),Innovation and Skills Group CDSU,Unspecified,98835457,170.00,Fees (Including College Members)
BEIS,UKRI - BBSRC,19/10/2020,Unspecified,FG - Estates,Womble Bond Dickinson LLP,98834329,526.57,Legal & Professional Services
BEIS,UKRI - BBSRC,19/10/2020,Unspecified,FG - Estates,Womble Bond Dickinson LLP,98834338,2462.28,Legal & Professional Services
BEIS,UKRI - BBSRC,19/10/2020,Research Institutes - Capital Grants: Minor Works,Babraham Institute,Babraham Institute,98835074,10068.00,Research Institutes - Capital Grants: Minor Works
BEIS,UKRI - BBSRC,19/10/2020,Research Institutes - Capital Grants: Minor Works,Babraham Institute,Babraham Institute,98835080,12323.00,Research Institutes - Capital Grants: Minor Works
BEIS,UKRI - BBSRC,19/10/2020,Research Institutes - Capital Grants: Minor Works,Babraham Institute,Babraham Institute,98835082,48147.00,Research Institutes - Capital Grants: Minor Works
BEIS,UKRI - BBSRC,19/10/2020,Research Institutes - Capital Grants: Minor Works,Babraham Institute,Babraham Institute,98835088,5239.00,Research Institutes - Capital Grants: Minor Works
BEIS,UKRI - BBSRC,19/10/2020,Fees (Including College Members),Innovation and Skills Group CDSU,Unspecified,98835800,230.00,Fees (Including College Members)
BEIS,UKRI - BBSRC,19/10/2020,Research Institutes - Capital Grants: Minor Works,JIC,John Innes Centre,98836010,21147.60,Research Institutes - Capital Grants: Minor Works
BEIS,UKRI - BBSRC,19/10/2020,Research Institutes - Capital Grants: Minor Works,JIC,John Innes Centre,98836020,29517.22,Research Institutes - Capital Grants: Minor Works
BEIS,UKRI - BBSRC,19/10/2020,Research Institutes - Capital Grants: Minor Works,JIC,John Innes Centre,98836021,5000.01,Research Institutes - Capital Grants: Minor Works
BEIS,UKRI - BBSRC,19/10/2020,Research Institutes - Capital Grants: Minor Works,JIC,John Innes Centre,98836432,36350.00,Research Institutes - Capital Grants: Minor Works
BEIS,UKRI - BBSRC,19/10/2020,T&S UK - Parking Tolls Congestion Charges,CE - Chief Executive,Unspecified,98836457,6.70,T&S UK - Parking Tolls Congestion Charges
BEIS,UKRI - BBSRC,19/10/2020,T&S UK - Public Transport,CE - Chief Executive,Unspecified,98836457,45.48,T&S UK - Public Transport
BEIS,UKRI - BBSRC,19/10/2020,T&S UK - Subsistence,CE - Chief Executive,Unspecified,98836457,8.05,T&S UK - Subsistence
BEIS,UKRI - BBSRC,19/10/2020,T&S UK - Subsistence,CE - Chief Executive,Unspecified,98836457,16.90,T&S UK - Subsistence
BEIS,UKRI - BBSRC,19/10/2020,T&S UK - Subsistence,CE - Chief Executive,Unspecified,98836457,11.85,T&S UK - Subsistence
BEIS,UKRI - BBSRC,19/10/2020,T&S UK - Subsistence,CE - Chief Executive,Unspecified,98836457,4.25,T&S UK - Subsistence
BEIS,UKRI - BBSRC,19/10/2020,T&S UK - Other Charges,CIMG - Information Management,Unspecified,98836458,197.96,T&S UK - Other Charges
BEIS,UKRI - BBSRC,20/10/2020,Recruitment Costs,PDG - Director,Agenda Resource Management Ltd,98836026,153.91,Recruitment Costs
BEIS,UKRI - BBSRC,20/10/2020,Recruitment Costs,PDG - Director,Agenda Resource Management Ltd,98836028,153.91,Recruitment Costs
BEIS,UKRI - BBSRC,20/10/2020,Recruitment Costs,PDG - Director,Agenda Resource Management Ltd,98836029,153.91,Recruitment Costs
BEIS,UKRI - BBSRC,20/10/2020,Recruitment Costs,PDG - Director,Agenda Resource Management Ltd,98836032,153.91,Recruitment Costs
BEIS,UKRI - BBSRC,20/10/2020,Doctoral Training Accounts,FG - Accounts & Business Planning,UKRI - Engineering & Physical Sciences Research Council,98837486,50569.29,Doctoral Training Accounts
BEIS,UKRI - BBSRC,20/10/2020,Health & Safety (inc. Medicals & Opticians),CE - CPS,Unspecified,98837533,35.00,Health & Safety (inc. Medicals & Opticians)
BEIS,UKRI - BBSRC,21/10/2020,Other Programme Costs,FG - Accounts & Business Planning,Rothamsted Research Ltd,98826074,50000.00,Other Programme Costs
BEIS,UKRI - BBSRC,21/10/2020,Institute Grant Expenditure,Rothamsted Research,Rothamsted Research Ltd,98826078,49250.00,Institute Grant Expenditure
BEIS,UKRI - BBSRC,21/10/2020,Research Institutes - Competitive Strategic Grant,Babraham Institute,Babraham Institute,98826102,352459.91,Research Institutes - Competitive Strategic Grant
BEIS,UKRI - BBSRC,21/10/2020,Research Institutes - Competitive Strategic Grant,Babraham Institute,Babraham Institute,98826102,48750.01,Research Institutes - Competitive Strategic Grant
BEIS,UKRI - BBSRC,21/10/2020,Research Institutes - Competitive Strategic Grant,Babraham Institute,Babraham Institute,98826102,395666.75,Research Institutes - Competitive Strategic Grant
BEIS,UKRI - BBSRC,21/10/2020,Research Institutes - Competitive Strategic Grant,Babraham Institute,Babraham Institute,98826102,5833.33,Research Institutes - Competitive Strategic Grant
BEIS,UKRI - BBSRC,21/10/2020,Research Institutes - Competitive Strategic Grant,Rothamsted Research,Rothamsted Research Ltd,98826103,111253.33,Research Institutes - Competitive Strategic Grant
BEIS,UKRI - BBSRC,21/10/2020,Research Institutes - Competitive Strategic Grant,Rothamsted Research,Rothamsted Research Ltd,98826103,418416.67,Research Institutes - Competitive Strategic Grant
BEIS,UKRI - BBSRC,21/10/2020,Research Institutes - Competitive Strategic Grant,Rothamsted Research,Rothamsted Research Ltd,98826103,64666.67,Research Institutes - Competitive Strategic Grant
BEIS,UKRI - BBSRC,21/10/2020,Research Institutes - Competitive Strategic Grant,Rothamsted Research,Rothamsted Research Ltd,98826103,197000.00,Research Institutes - Competitive Strategic Grant
BEIS,UKRI - BBSRC,21/10/2020,Research Institutes - Competitive Strategic Grant,Rothamsted Research,Rothamsted Research Ltd,98826103,7083.33,Research Institutes - Competitive Strategic Grant
BEIS,UKRI - BBSRC,21/10/2020,Research Institutes - Competitive Strategic Grant,TGAC,Earlham Institute,98826104,167391.10,Research Institutes - Competitive Strategic Grant
BEIS,UKRI - BBSRC,21/10/2020,Research Institutes - Competitive Strategic Grant,TGAC,Earlham Institute,98826104,78204.31,Research Institutes - Competitive Strategic Grant
BEIS,UKRI - BBSRC,21/10/2020,Research Institutes - Competitive Strategic Grant,TGAC,Earlham Institute,98826104,41254.65,Research Institutes - Competitive Strategic Grant
BEIS,UKRI - BBSRC,21/10/2020,Research Institutes - Competitive Strategic Grant,TGAC,Earlham Institute,98826104,33337.09,Research Institutes - Competitive Strategic Grant
BEIS,UKRI - BBSRC,21/10/2020,Research Institutes - Competitive Strategic Grant,TGAC,Earlham Institute,98826104,117778.85,Research Institutes - Competitive Strategic Grant
BEIS,UKRI - BBSRC,21/10/2020,Research Institutes - Competitive Strategic Grant,TGAC,Earlham Institute,98826104,2917.00,Research Institutes - Competitive Strategic Grant
BEIS,UKRI - BBSRC,21/10/2020,Research Institutes - Competitive Strategic Grant,JIC,John Innes Centre,98826106,21499.99,Research Institutes - Competitive Strategic Grant
BEIS,UKRI - BBSRC,21/10/2020,Research Institutes - Competitive Strategic Grant,JIC,John Innes Centre,98826106,499916.52,Research Institutes - Competitive Strategic Grant
BEIS,UKRI - BBSRC,21/10/2020,Research Institutes - Competitive Strategic Grant,JIC,John Innes Centre,98826106,65333.31,Research Institutes - Competitive Strategic Grant
BEIS,UKRI - BBSRC,21/10/2020,Research Institutes - Competitive Strategic Grant,JIC,John Innes Centre,98826106,513249.85,Research Institutes - Competitive Strategic Grant
BEIS,UKRI - BBSRC,21/10/2020,Research Institutes - Competitive Strategic Grant,JIC,John Innes Centre,98826106,7083.33,Research Institutes - Competitive Strategic Grant
BEIS,UKRI - BBSRC,21/10/2020,Research Institutes - Competitive Strategic Grant,IFR,Quadram Institute Bioscience,98826108,23130.89,Research Institutes - Competitive Strategic Grant
BEIS,UKRI - BBSRC,21/10/2020,Research Institutes - Competitive Strategic Grant,IFR,Quadram Institute Bioscience,98826108,344143.33,Research Institutes - Competitive Strategic Grant
BEIS,UKRI - BBSRC,21/10/2020,Research Institutes - Competitive Strategic Grant,IFR,Quadram Institute Bioscience,98826108,46083.29,Research Institutes - Competitive Strategic Grant
BEIS,UKRI - BBSRC,21/10/2020,Research Institutes - Competitive Strategic Grant,IFR,Quadram Institute Bioscience,98826108,265775.16,Research Institutes - Competitive Strategic Grant
BEIS,UKRI - BBSRC,21/10/2020,Research Institutes - Competitive Strategic Grant,IFR,Quadram Institute Bioscience,98826108,5833.33,Research Institutes - Competitive Strategic Grant
BEIS,UKRI - BBSRC,21/10/2020,Research Institutes - Capital Grants: Major Works,IFR,Quadram Institute Bioscience,98826843,121433.25,Research Institutes - Capital Grants: Major Works
BEIS,UKRI - BBSRC,21/10/2020,Research Institutes - Competitive Strategic Grant,Pirbright,The Pirbright Institute,98830871,816143.92,Research Institutes - Competitive Strategic Grant
BEIS,UKRI - BBSRC,21/10/2020,Research Institutes - Competitive Strategic Grant,Pirbright,The Pirbright Institute,98830871,233969.59,Research Institutes - Competitive Strategic Grant
BEIS,UKRI - BBSRC,21/10/2020,Research Institutes - Competitive Strategic Grant,Pirbright,The Pirbright Institute,98830871,33329.00,Research Institutes - Competitive Strategic Grant
BEIS,UKRI - BBSRC,21/10/2020,Research Institutes - Competitive Strategic Grant,Pirbright,The Pirbright Institute,98830871,199807.36,Research Institutes - Competitive Strategic Grant
BEIS,UKRI - BBSRC,21/10/2020,Research Institutes - Competitive Strategic Grant,Pirbright,The Pirbright Institute,98830871,4166.13,Research Institutes - Competitive Strategic Grant
BEIS,UKRI - BBSRC,21/10/2020,Research Institutes - Competitive Strategic Grant,EBRC (Roslin),University of Edinburgh,98830873,277179.92,Research Institutes - Competitive Strategic Grant
BEIS,UKRI - BBSRC,21/10/2020,Research Institutes - Competitive Strategic Grant,EBRC (Roslin),University of Edinburgh,98830873,206087.50,Research Institutes - Competitive Strategic Grant
BEIS,UKRI - BBSRC,21/10/2020,Research Institutes - Competitive Strategic Grant,EBRC (Roslin),University of Edinburgh,98830873,5833.33,Research Institutes - Competitive Strategic Grant
BEIS,UKRI - BBSRC,21/10/2020,Research Institutes - Capital Grants: Major Works,EBRC (Roslin),University of Edinburgh,98830874,50000.00,Research Institutes - Capital Grants: Major Works
BEIS,UKRI - BBSRC,21/10/2020,Research Institutes - Competitive Strategic Grant,IBERS,Aberystwyth University,98833570,86360.99,Research Institutes - Competitive Strategic Grant
BEIS,UKRI - BBSRC,21/10/2020,Research Institutes - Competitive Strategic Grant,IBERS,Aberystwyth University,98833570,46980.67,Research Institutes - Competitive Strategic Grant
BEIS,UKRI - BBSRC,21/10/2020,Research Institutes - Competitive Strategic Grant,IBERS,Aberystwyth University,98833570,2916.67,Research Institutes - Competitive Strategic Grant
BEIS,UKRI - BBSRC,21/10/2020,Research Institutes - Capital Grants: Minor Works,Pirbright,The Pirbright Institute,98837137,61548.00,Research Institutes - Capital Grants: Minor Works
BEIS,UKRI - BBSRC,21/10/2020,Research Institutes - Capital Grants: Minor Works,Pirbright,The Pirbright Institute,98837139,70638.04,Research Institutes - Capital Grants: Minor Works
BEIS,UKRI - BBSRC,21/10/2020,Research Institutes - Capital Grants: Minor Works,Pirbright,The Pirbright Institute,98837142,198612.59,Research Institutes - Capital Grants: Minor Works
BEIS,UKRI - BBSRC,21/10/2020,Research Grant Expenditure,FG - Accounts & Business Planning,University of Oxford,98837677,4524.56,Research Grant Expenditure
BEIS,UKRI - BBSRC,21/10/2020,Health & Safety (inc. Medicals & Opticians),Science Group,Unspecified,98837828,12.99,Health & Safety (inc. Medicals & Opticians)
BEIS,UKRI - BBSRC,22/10/2020,Research Institutes - Capital Grants: Minor Works,Pirbright,The Pirbright Institute,98837924,60456.82,Research Institutes - Capital Grants: Minor Works
BEIS,UKRI - BBSRC,22/10/2020,Other Programme Costs,Innovation and Skills Group CDSU,NNFCC Ltd,98837949,5702.40,Other Programme Costs
BEIS,UKRI - BBSRC,22/10/2020,Fees (Including College Members),Innovation and Skills Group CDSU,Unspecified,98837952,170.00,Fees (Including College Members)
BEIS,UKRI - BBSRC,22/10/2020,Fees (Including College Members),Innovation and Skills Group CDSU,Unspecified,98837953,170.00,Fees (Including College Members)
BEIS,UKRI - BBSRC,22/10/2020,Fees (Including College Members),Innovation and Skills Group CDSU,Unspecified,98837954,170.00,Fees (Including College Members)
BEIS,UKRI - BBSRC,22/10/2020,Fees (Including College Members),Innovation and Skills Group CDSU,Unspecified,98837955,170.00,Fees (Including College Members)
BEIS,UKRI - BBSRC,22/10/2020,Fees (Including College Members),Innovation and Skills Group CDSU,Unspecified,98837956,340.00,Fees (Including College Members)
BEIS,UKRI - BBSRC,22/10/2020,Fees (Including College Members),Innovation and Skills Group CDSU,Unspecified,98837957,170.00,Fees (Including College Members)
BEIS,UKRI - BBSRC,22/10/2020,Fees (Including College Members),Innovation and Skills Group CDSU,Unspecified,98837958,170.00,Fees (Including College Members)
BEIS,UKRI - BBSRC,22/10/2020,Fees (Including College Members),Innovation and Skills Group CDSU,Unspecified,98837959,340.00,Fees (Including College Members)
BEIS,UKRI - BBSRC,22/10/2020,Fees (Including College Members),Innovation and Skills Group CDSU,Unspecified,98837960,340.00,Fees (Including College Members)
BEIS,UKRI - BBSRC,22/10/2020,Fees (Including College Members),Innovation and Skills Group CDSU,Unspecified,98837961,170.00,Fees (Including College Members)
BEIS,UKRI - BBSRC,22/10/2020,Fees (Including College Members),Innovation and Skills Group CDSU,Unspecified,98837962,170.00,Fees (Including College Members)
BEIS,UKRI - BBSRC,22/10/2020,Fees (Including College Members),Innovation and Skills Group CDSU,Unspecified,98837963,340.00,Fees (Including College Members)
BEIS,UKRI - BBSRC,22/10/2020,Fees (Including College Members),Innovation and Skills Group CDSU,Unspecified,98837964,230.00,Fees (Including College Members)
BEIS,UKRI - BBSRC,22/10/2020,Fees (Including College Members),Innovation and Skills Group CDSU,Unspecified,98837965,170.00,Fees (Including College Members)
BEIS,UKRI - BBSRC,22/10/2020,Fees (Including College Members),Innovation and Skills Group CDSU,Unspecified,98837966,170.00,Fees (Including College Members)
BEIS,UKRI - BBSRC,22/10/2020,Fees (Including College Members),Innovation and Skills Group CDSU,Unspecified,98837967,170.00,Fees (Including College Members)
BEIS,UKRI - BBSRC,22/10/2020,Fees (Including College Members),Innovation and Skills Group CDSU,Unspecified,98837968,340.00,Fees (Including College Members)
BEIS,UKRI - BBSRC,22/10/2020,Research Institutes - Capital Grants: Minor Works,Rothamsted Research,Rothamsted Research Ltd,98838102,109200.00,Research Institutes - Capital Grants: Minor Works
BEIS,UKRI - BBSRC,22/10/2020,Research Institutes - Capital Grants: Minor Works,Pirbright,The Pirbright Institute,98838363,234811.72,Research Institutes - Capital Grants: Minor Works
BEIS,UKRI - BBSRC,22/10/2020,T&S UK - Other Charges,CIMG - Programme Office,Unspecified,98838517,135.98,T&S UK - Other Charges
BEIS,UKRI - BBSRC,23/10/2020,Research Institutes - Capital Grants: Major Works,Estates - Projects,EMBL (European Molecular Biology Laboratory),98822999,425400.83,Research Institutes - Capital Grants: Major Works
BEIS,UKRI - BBSRC,23/10/2020,T&S UK - Vehicle Hire,FG - Estates,Enterprise Rent-A-Car UK Ltd,98830398,45.57,T&S UK - Vehicle Hire
BEIS,UKRI - BBSRC,23/10/2020,T&S UK - Vehicle Hire,FG - Estates,Enterprise Rent-A-Car UK Ltd,98830398,111.03,T&S UK - Vehicle Hire
BEIS,UKRI - BBSRC,23/10/2020,T&S UK - Vehicle Hire,FG - Estates,Enterprise Rent-A-Car UK Ltd,98830398,116.81,T&S UK - Vehicle Hire
BEIS,UKRI - BBSRC,23/10/2020,Research Grant Expenditure,SPF W1 EMBL EBI,EMBL (European Molecular Biology Laboratory),98832838,11458.20,Research Grant Expenditure
BEIS,UKRI - BBSRC,23/10/2020,Research Grant Expenditure,SPF W1 EMBL EBI,EMBL (European Molecular Biology Laboratory),98834118,399983.92,Research Grant Expenditure
BEIS,UKRI - BBSRC,23/10/2020,Unspecified,Innovation and Skills Group CDSU,Bioindustry Association (BIA),98835312,1800.00,Legal & Professional Services
BEIS,UKRI - BBSRC,23/10/2020,Research Grant Expenditure,SPF W1 EMBL EBI,EMBL (European Molecular Biology Laboratory),98835327,149850.00,Research Grant Expenditure
BEIS,UKRI - BBSRC,23/10/2020,Other Programme Costs,Science Group,Earlham Institute,98835660,300000.00,Other Programme Costs
BEIS,UKRI - BBSRC,23/10/2020,Research Grant Expenditure,SPF W1 EMBL EBI,EMBL (European Molecular Biology Laboratory),98835852,2914.00,Research Grant Expenditure
BEIS,UKRI - BBSRC,23/10/2020,Research Institutes - Capital Grants: Major Works,Pirbright,The Pirbright Institute,98836512,2062578.71,Research Institutes - Capital Grants: Major Works
BEIS,UKRI - BBSRC,23/10/2020,Research Grant Expenditure,SPF W1 EMBL EBI,EMBL (European Molecular Biology Laboratory),98836635,299960.22,Research Grant Expenditure
BEIS,UKRI - BBSRC,23/10/2020,Research Institutes - Capital Grants: Major Works,JIC,John Innes Centre,98838193,9072.00,Research Institutes - Capital Grants: Major Works
BEIS,UKRI - BBSRC,23/10/2020,Recruitment Costs,PDG - Director,Agenda Resource Management Ltd,98838492,153.91,Recruitment Costs
BEIS,UKRI - BBSRC,23/10/2020,Research Institutes - Capital Grants: Minor Works,TGAC,Earlham Institute,98838638,5000.01,Research Institutes - Capital Grants: Minor Works
BEIS,UKRI - BBSRC,23/10/2020,Fees (Including College Members),Innovation and Skills Group CDSU,Unspecified,98838653,170.00,Fees (Including College Members)
BEIS,UKRI - BBSRC,23/10/2020,Fees (Including College Members),Innovation and Skills Group CDSU,Unspecified,98838654,170.00,Fees (Including College Members)
BEIS,UKRI - BBSRC,23/10/2020,Fees (Including College Members),Innovation and Skills Group CDSU,Unspecified,98838655,170.00,Fees (Including College Members)
BEIS,UKRI - BBSRC,23/10/2020,Fees (Including College Members),Innovation and Skills Group CDSU,Unspecified,98838656,340.00,Fees (Including College Members)
BEIS,UKRI - BBSRC,26/10/2020,Voluntary Deductions,Balance Sheet,Swindon Office Sports and Social Club,98825636,50.00,Voluntary Deductions
BEIS,UKRI - BBSRC,26/10/2020,T&S UK - Other Charges,Science Group,Unspecified,98839751,211.15,T&S UK - Other Charges
BEIS,UKRI - BBSRC,27/10/2020,Research Grant Expenditure,FG - Accounts & Business Planning,King's College London,98838135,546.67,Research Grant Expenditure
BEIS,UKRI - BBSRC,27/10/2020,Recruitment Costs,PDG - Director,Onefix Recruitment Ltd,98838147,450.00,Recruitment Costs
BEIS,UKRI - BBSRC,27/10/2020,Fees (Including College Members),Innovation and Skills Group CDSU,Unspecified,98840030,170.00,Fees (Including College Members)
BEIS,UKRI - BBSRC,27/10/2020,Fees (Including College Members),Innovation and Skills Group CDSU,Unspecified,98840031,340.00,Fees (Including College Members)
BEIS,UKRI - BBSRC,27/10/2020,Fees (Including College Members),Innovation and Skills Group CDSU,Unspecified,98840032,340.00,Fees (Including College Members)
BEIS,UKRI - BBSRC,27/10/2020,Fees (Including College Members),Innovation and Skills Group CDSU,Unspecified,98840033,340.00,Fees (Including College Members)
BEIS,UKRI - BBSRC,27/10/2020,Fees (Including College Members),Innovation and Skills Group CDSU,Unspecified,98840034,170.00,Fees (Including College Members)
BEIS,UKRI - BBSRC,27/10/2020,Health & Safety (inc. Medicals & Opticians),Science Group,Unspecified,98840132,12.99,Health & Safety (inc. Medicals & Opticians)
BEIS,UKRI - BBSRC,27/10/2020,Rates,JBOS - Maintenance,Swindon Borough Council,98840515,64000.00,Rates
BEIS,UKRI - BBSRC,28/10/2020,Fees (Including College Members),Science Group,Unspecified,98840572,170.00,Fees (Including College Members)
BEIS,UKRI - BBSRC,28/10/2020,Research Institutes - Capital Grants: Minor Works,Babraham Institute,Babraham Institute,98840587,17037.00,Research Institutes - Capital Grants: Minor Works
BEIS,UKRI - BBSRC,28/10/2020,Research Institutes - Capital Grants: Minor Works,Babraham Institute,Babraham Institute,98840604,215148.00,Research Institutes - Capital Grants: Minor Works
BEIS,UKRI - BBSRC,28/10/2020,Research Institutes - Capital Grants: Minor Works,Babraham Institute,Babraham Institute,98840610,297621.00,Research Institutes - Capital Grants: Minor Works
BEIS,UKRI - BBSRC,28/10/2020,Research Institutes - Capital Grants: Minor Works,Babraham Institute,Babraham Institute,98840614,7429.00,Research Institutes - Capital Grants: Minor Works
BEIS,UKRI - BBSRC,28/10/2020,Research Institutes - Capital Grants: Minor Works,Babraham Institute,Babraham Institute,98840617,81796.00,Research Institutes - Capital Grants: Minor Works
BEIS,UKRI - BBSRC,28/10/2020,Research Institutes - Capital Grants: Minor Works,Pirbright,The Pirbright Institute,98840637,19623.00,Research Institutes - Capital Grants: Minor Works
BEIS,UKRI - BBSRC,28/10/2020,Research Institutes - Capital Grants: Minor Works,Pirbright,The Pirbright Institute,98840638,5040.00,Research Institutes - Capital Grants: Minor Works
BEIS,UKRI - BBSRC,28/10/2020,Research Institutes - Capital Grants: Minor Works,Pirbright,The Pirbright Institute,98840650,286518.34,Research Institutes - Capital Grants: Minor Works
BEIS,UKRI - BBSRC,28/10/2020,Research Institutes - Capital Grants: Minor Works,Pirbright,The Pirbright Institute,98840662,172064.29,Research Institutes - Capital Grants: Minor Works
BEIS,UKRI - BBSRC,28/10/2020,Research Institutes - Capital Grants: Minor Works,JIC,John Innes Centre,98840682,32069.17,Research Institutes - Capital Grants: Minor Works
BEIS,UKRI - BBSRC,28/10/2020,Recruitment Costs,PDG - Director,Warwick University Services Ltd,98841349,300.00,Recruitment Costs
BEIS,UKRI - BBSRC,28/10/2020,Research Institutes - Capital Grants: Major Works,Pirbright,The Pirbright Institute,98841363,14329.15,Research Institutes - Capital Grants: Major Works
BEIS,UKRI - BBSRC,28/10/2020,Research Institutes - Capital Grants: Major Works,Pirbright,The Pirbright Institute,98841365,16015.20,Research Institutes - Capital Grants: Major Works
BEIS,UKRI - BBSRC,28/10/2020,T&S UK - Other Charges,Innovation and Skills Group CDSU,Unspecified,98841416,305.97,T&S UK - Other Charges
BEIS,UKRI - BBSRC,29/10/2020,Health & Safety (inc. Medicals & Opticians),Innovation and Skills Group CDSU,Unspecified,98841714,8.00,Health & Safety (inc. Medicals & Opticians)
BEIS,UKRI - BBSRC,29/10/2020,T&S UK - Other Charges,Innovation and Skills Group CDSU,Unspecified,98841715,12.18,T&S UK - Other Charges
BEIS,UKRI - BBSRC,30/10/2020,T&S UK - Other Charges,Innovation and Skills Group CDSU,Unspecified,98841130,9.49,T&S UK - Other Charges
BEIS,UKRI - BBSRC,30/10/2020,T&S UK - Other Charges,Science Group,Unspecified,98841131,108.15,T&S UK - Other Charges
BEIS,UKRI - BBSRC,30/10/2020,Recruitment Costs,PDG - Director,Onefix Recruitment Ltd,98841242,552.00,Recruitment Costs
BEIS,UKRI - BBSRC,30/10/2020,Unspecified,FG - Estates,Perfect Circle JV Ltd,98841931,3239.42,Legal & Professional Services
BEIS,UKRI - UKRI,01/10/2020,Computer Software Licences,UKRI - Digital Data and Technology BAU Costs,Billigence Europe Ltd t/a Billigence,98792216,54534.32,Computer Software Licences
BEIS,UKRI - UKRI,01/10/2020,Computer Software Licences,UKRI - Digital Data and Technology BAU Costs,Billigence Europe Ltd t/a Billigence,98816832,104706.00,Computer Software Licences
BEIS,UKRI - UKRI,01/10/2020,IT / Computing Support Services,UKRI - Funding Service,BJSS Ltd,98818256,360802.50,IT / Computing Support Services
BEIS,UKRI - UKRI,01/10/2020,T&S UK - Other Charges,UKRI - Digital Data and Technology BAU Costs,Unspecified,98822716,300.48,T&S UK - Other Charges
BEIS,UKRI - UKRI,01/10/2020,Recruitment Costs,UKRI People and Organisation Development,Onefix Recruitment Ltd,98822940,798.00,Recruitment Costs
BEIS,UKRI - UKRI,01/10/2020,Recruitment Costs,UKRI People and Organisation Development,Onefix Recruitment Ltd,98822941,510.00,Recruitment Costs
BEIS,UKRI - UKRI,01/10/2020,Recruitment Costs,UKRI People and Organisation Development,Onefix Recruitment Ltd,98822950,150.00,Recruitment Costs
BEIS,UKRI - UKRI,01/10/2020,Recruitment Costs,UKRI People and Organisation Development,Onefix Recruitment Ltd,98822950,670.80,Recruitment Costs
BEIS,UKRI - EPSRC,01/10/2020,Recruitment Costs,EPSRC Corporate Services,Onefix Recruitment Ltd,98822951,300.00,Recruitment Costs
BEIS,UKRI - UKRI,01/10/2020,Purchase of non capital equipment,UKRI - JRS,Premier Farnell UK Ltd T/A Farnell Onecall,98823529,387.00,Purchase of non capital equipment
BEIS,UKRI - Research England,01/10/2020,Recruitment Costs,RE - Operations and Private Office,Warwick University Services Ltd,98824977,250.00,Recruitment Costs
BEIS,UKRI - Research England,01/10/2020,Recruitment Costs,RE - Operations and Private Office,Warwick University Services Ltd,98824981,250.00,Recruitment Costs
BEIS,UKRI - EPSRC,01/10/2020,Other Programme Costs,NC Physical Sciences,University of Southampton,98825101,203334.89,Other Programme Costs
BEIS,UKRI - UKRI,01/10/2020,Overseas - Professional Memberships & Subscriptions,UKRI - Funding Assurance,Professional HE Services Ltd,98825131,300.00,Overseas - Professional Memberships & Subscriptions
BEIS,UKRI - EPSRC,01/10/2020,Fees (Including College Members),Business Improvement,Unspecified,98825717,320.00,Fees (Including College Members)
BEIS,UKRI - EPSRC,01/10/2020,Fees (Including College Members),Business Improvement,Unspecified,98825718,320.00,Fees (Including College Members)
BEIS,UKRI - EPSRC,01/10/2020,Fees (Including College Members),Business Improvement,Unspecified,98825719,320.00,Fees (Including College Members)
BEIS,UKRI - EPSRC,01/10/2020,Fees (Including College Members),Business Improvement,Unspecified,98825720,320.00,Fees (Including College Members)
BEIS,UKRI - UKRI,01/10/2020,Purchase of non capital equipment,UKRI - Estates,Senator International Ltd,98825805,3037.20,Purchase of non capital equipment
BEIS,UKRI - UKRI,01/10/2020,Consumables,UKRI - JRS,Signgeer Ltd,98825823,93.23,Consumables
BEIS,UKRI - UKRI,01/10/2020,Fees (Including College Members),UKRI - GCRF Delivery,Unspecified,98826308,160.00,Fees (Including College Members)
BEIS,UKRI - UKRI,01/10/2020,Non-staff travel and subsistance,UKRI - UKRO,Unspecified,98826309,979.91,Non-staff travel and subsistance
BEIS,UKRI - UKRI,01/10/2020,Fees (Including College Members),UKRI - GCRF Delivery,Unspecified,98826336,160.00,Fees (Including College Members)
BEIS,UKRI - UKRI,01/10/2020,Fees (Including College Members),UKRI - GCRF Delivery,Unspecified,98826337,160.00,Fees (Including College Members)
BEIS,UKRI - UKRI,01/10/2020,Staff Relocation,UKRI - UKRO,Top Removals Ltd,98826370,972.00,Staff Relocation
BEIS,UKRI - UKRI,01/10/2020,T&S UK - Other Charges,UKRI - International,Unspecified,98826415,24.94,T&S UK - Other Charges
BEIS,UKRI - EPSRC,01/10/2020,Health & Safety (inc. Medicals & Opticians),Programme Delivery Maths,Unspecified,98826416,25.00,Health & Safety (inc. Medicals & Opticians)
BEIS,UKRI - UKRI,01/10/2020,Health & Safety (inc. Medicals & Opticians),UKRI - Private Office,Unspecified,98826417,13.99,Health & Safety (inc. Medicals & Opticians)
BEIS,UKRI - UKRI,01/10/2020,T&S UK - Parking Tolls Congestion Charges,UKRI - Communication and Engagement,Unspecified,98826418,12.60,T&S UK - Parking Tolls Congestion Charges
BEIS,UKRI - UKRI,01/10/2020,T&S UK - Other Charges,UKRI - Communications Themes and Partnerships,Unspecified,98826419,27.54,T&S UK - Other Charges
BEIS,UKRI - UKRI,01/10/2020,Health & Safety (inc. Medicals & Opticians),UKRI Strategic HR Business Partners,Unspecified,98826420,100.00,Health & Safety (inc. Medicals & Opticians)
BEIS,UKRI - Research England,01/10/2020,T&S UK - Subsistence,RE - Knowledge Exchange,Unspecified,98826421,4.99,T&S UK - Subsistence
BEIS,UKRI - UKRI,01/10/2020,T&S UK - Mileage,UKRI Strategic HR Business Partners,Unspecified,98826422,56.25,T&S UK - Mileage
BEIS,UKRI - UKRI,01/10/2020,Education Fees & Study Materials,UKRI People and Organisation Development,Unspecified,98826423,41.46,Education Fees & Study Materials
BEIS,UKRI - UKRI,01/10/2020,T&S UK - Other Charges,UKRI Strategic HR Business Partners,Unspecified,98826424,76.95,T&S UK - Other Charges
BEIS,UKRI - EPSRC,01/10/2020,T&S UK - Other Charges,Programme Delivery Energy,Unspecified,98826426,129.99,T&S UK - Other Charges
BEIS,UKRI - EPSRC,01/10/2020,Health & Safety (inc. Medicals & Opticians),Programme Delivery Engineering,Unspecified,98826428,11.99,Health & Safety (inc. Medicals & Opticians)
BEIS,UKRI - UKRI,01/10/2020,UK - Professional Memberships & Subscriptions,UKRI Strategic HR Business Partners,Unspecified,98826429,163.00,UK - Professional Memberships & Subscriptions
BEIS,UKRI - UKRI,02/10/2020,Hardware/Software Maintenance,UKRI - Digital Data and Technology Recharges,British Telecom Plc (BT),98798824,2404.37,Hardware/Software Maintenance
BEIS,UKRI - UKRI,02/10/2020,Unspecified,UKRI - Funding Service,Public Digital Ltd,98800900,42000.00,Legal & Professional Services
BEIS,UKRI - UKRI,02/10/2020,Computer Software Licences,UKRI - Information Governance,Fivium Ltd,98807336,180.00,Computer Software Licences
BEIS,UKRI - UKRI,02/10/2020,Computer Software Licences,UKRI - Information Governance,Fivium Ltd,98807336,3360.00,Computer Software Licences
BEIS,UKRI - UKRI,02/10/2020,Electricity,UKRI - JBOS,EDF Energy,98811158,29283.27,Electricity
BEIS,UKRI - UKRI,02/10/2020,Electricity,UKRI - JBOS,EDF Energy,98811165,-25499.02,Electricity
BEIS,UKRI - UKRI,02/10/2020,Electricity,UKRI - JBOS,EDF Energy,98811165,-5096.21,Electricity
BEIS,UKRI - UKRI,02/10/2020,Electricity,UKRI - JBOS,EDF Energy,98815806,30513.26,Electricity
BEIS,UKRI - UKRI,02/10/2020,Unspecified,UKRI - Digital Data and Technology BAU Costs,Capita Business Services Ltd,98821482,145500.00,IT Cloud Services
BEIS,UKRI - UKRI,02/10/2020,Recruitment Costs,UKRI People and Organisation Development,Onefix Recruitment Ltd,98822936,150.00,Recruitment Costs
BEIS,UKRI - UKRI,02/10/2020,Recruitment Costs,UKRI People and Organisation Development,Onefix Recruitment Ltd,98822945,150.00,Recruitment Costs
BEIS,UKRI - UKRI,02/10/2020,Advertising & Promotion,UKRI - Communications Content,CG Shortcuts Ltd,98823420,1200.00,Advertising & Promotion
BEIS,UKRI - EPSRC,02/10/2020,T&S UK - Other Charges,Programme Delivery Maths,Unspecified,98825391,42.00,T&S UK - Other Charges
BEIS,UKRI - EPSRC,02/10/2020,Research Grant Expenditure,National Quantum Computing Centre - NQCC,Hays Specialist Recruitment Ltd,98825932,153327.38,Research Grant Expenditure
BEIS,UKRI - UKRI,02/10/2020,Staff Training,UKRI - Project Management Office,Corinium Human Resource Management Ltd,98825938,600.00,Staff Training
BEIS,UKRI - UKRI,02/10/2020,Unspecified,UKRI - Strategic Finance Business Partners,Hays Specialist Recruitment Ltd,98825940,7295.04,Agency Staff
BEIS,UKRI - UKRI,02/10/2020,Unspecified,UKRI - Management Reporting,Hays Specialist Recruitment Ltd,98825950,5886.34,Agency Staff
BEIS,UKRI - UKRI,02/10/2020,Recruitment Costs,UKRI People and Organisation Development,Onefix Recruitment Ltd,98825955,510.00,Recruitment Costs
BEIS,UKRI - UKRI,02/10/2020,Unspecified,UKRI - Financial Accounting,Hays Specialist Recruitment Ltd,98825958,9537.60,Agency Staff
BEIS,UKRI - EPSRC,02/10/2020,Fees (Including College Members),Business Improvement,Unspecified,98826026,240.00,Fees (Including College Members)
BEIS,UKRI - EPSRC,02/10/2020,Fees (Including College Members),Business Improvement,Unspecified,98826027,80.00,Fees (Including College Members)
BEIS,UKRI - EPSRC,02/10/2020,Fees (Including College Members),Business Improvement,Unspecified,98826028,80.00,Fees (Including College Members)
BEIS,UKRI - EPSRC,02/10/2020,Fees (Including College Members),Business Improvement,Unspecified,98826029,80.00,Fees (Including College Members)
BEIS,UKRI - Research England,02/10/2020,IT / Computing Support Services,RE - Research Excellence Framework (REF),Connect Internet Solutions Ltd,98826087,5760.00,IT / Computing Support Services
BEIS,UKRI - Research England,02/10/2020,IT / Computing Support Services,RE - Research Excellence Framework (REF),Connect Internet Solutions Ltd,98826089,3000.00,IT / Computing Support Services
BEIS,UKRI - Research England,02/10/2020,IT / Computing Support Services,RE - Research Excellence Framework (REF),Connect Internet Solutions Ltd,98826090,2160.00,IT / Computing Support Services
BEIS,UKRI - UKRI,02/10/2020,T&S UK - Other Charges,UKRI - Information Governance,Unspecified,98826109,100.00,T&S UK - Other Charges
BEIS,UKRI - UKRI,02/10/2020,T&S UK - Other Charges,UKRI - Funding Assurance,Unspecified,98826111,19.89,T&S UK - Other Charges
BEIS,UKRI - UKRI,02/10/2020,T&S UK - Other Charges,UKRI - Communications Web and Intranet Service,Unspecified,98826112,188.10,T&S UK - Other Charges
BEIS,UKRI - UKRI,02/10/2020,T&S UK - Other Charges,UKRI - PSU IT Costs/BAU,Unspecified,98826113,232.44,T&S UK - Other Charges
BEIS,UKRI - Research England,02/10/2020,T&S UK - Other Charges,RE - Research,Unspecified,98826114,10.94,T&S UK - Other Charges
BEIS,UKRI - UKRI,02/10/2020,T&S UK - Other Charges,UKRI - Research Funding Support,Unspecified,98826115,320.40,T&S UK - Other Charges
BEIS,UKRI - UKRI,02/10/2020,T&S UK - Other Charges,"UKRI - Data Policy, Governance and MI",Unspecified,98826116,205.51,T&S UK - Other Charges
BEIS,UKRI - UKRI,02/10/2020,Recruitment Costs,UKRI People and Organisation Development,Agenda Resource Management Ltd,98826455,56.11,Recruitment Costs
BEIS,UKRI - UKRI,02/10/2020,Recruitment Costs,UKRI People and Organisation Development,Agenda Resource Management Ltd,98826466,56.11,Recruitment Costs
BEIS,UKRI - UKRI,02/10/2020,Recruitment Costs,UKRI People and Organisation Development,Agenda Resource Management Ltd,98826467,56.11,Recruitment Costs
BEIS,UKRI - UKRI,02/10/2020,Recruitment Costs,UKRI People and Organisation Development,Agenda Resource Management Ltd,98826474,56.11,Recruitment Costs
BEIS,UKRI - UKRI,02/10/2020,Mobile Phone Costs,UKRI - Digital Data and Technology BAU Costs,Telefonica UK Ltd (O2),98826488,14.40,Mobile Phone Costs
BEIS,UKRI - UKRI,02/10/2020,Unspecified,Sciencewise,3KQ Ltd,98826510,4584.00,Legal & Professional Services
BEIS,UKRI - UKRI,02/10/2020,Mobile Phone Costs,UKRI - Digital Data and Technology BAU Costs,Telefonica UK Ltd (O2),98826514,5069.94,Mobile Phone Costs
BEIS,UKRI - UKRI,02/10/2020,Mobile Phone Costs,UKRI - Digital Data and Technology BAU Costs,Telefonica UK Ltd (O2),98826516,144.16,Mobile Phone Costs
BEIS,UKRI - UKRI,02/10/2020,Mobile Phone Costs,UKRI - Digital Data and Technology BAU Costs,Telefonica UK Ltd (O2),98826520,991.97,Mobile Phone Costs
BEIS,UKRI - UKRI,02/10/2020,Computer Software Licences,UKRI - Information Governance,Fivium Ltd,98826532,180.00,Computer Software Licences
BEIS,UKRI - UKRI,02/10/2020,Computer Software Licences,UKRI - Information Governance,Fivium Ltd,98826532,3360.00,Computer Software Licences
BEIS,UKRI - UKRI,02/10/2020,Staff Training,"Corporate Strategy, Governance and Performance",Hazel Bees Consulting Ltd,98826755,1230.00,Staff Training
BEIS,UKRI - EPSRC,02/10/2020,Other Staff Benefits,EPSRC Corporate Services,Swindon Occupational Medical Services Ltd,98826797,1750.00,Other Staff Benefits
BEIS,UKRI - UKRI,02/10/2020,Unspecified,UKRI - Digital Data and Technology BAU Costs,Highplaces Consulting Ltd,98826798,14400.00,Contract Staff
BEIS,UKRI - UKRI,02/10/2020,Health & Safety (inc. Medicals & Opticians),UKRI Strategic HR Business Partners,Swindon Occupational Medical Services Ltd,98826854,3500.00,Health & Safety (inc. Medicals & Opticians)
BEIS,UKRI - UKRI,02/10/2020,Health & Safety (inc. Medicals & Opticians),UKRI Strategic HR Business Partners,Swindon Occupational Medical Services Ltd,98826858,6475.00,Health & Safety (inc. Medicals & Opticians)
BEIS,UKRI - UKRI,05/10/2020,Telecoms - Non Capital Hardware Costs,UKRI - Digital Data and Technology Recharges,Telefonica UK Ltd (O2),98820672,428.13,Telecoms - Non Capital Hardware Costs
BEIS,UKRI - UKRI,05/10/2020,Telecoms - Non Capital Hardware Costs,UKRI - Digital Data and Technology Recharges,Telefonica UK Ltd (O2),98820672,2.22,Telecoms - Non Capital Hardware Costs
BEIS,UKRI - UKRI,05/10/2020,Telecoms - Non Capital Hardware Costs,UKRI - Digital Data and Technology Recharges,Telefonica UK Ltd (O2),98820672,0.44,Telecoms - Non Capital Hardware Costs
BEIS,UKRI - UKRI,05/10/2020,Unspecified,UKRI - Digital Data and Technology BAU Costs,Hays Specialist Recruitment Ltd,98823832,6436.04,Contract Staff
BEIS,UKRI - UKRI,05/10/2020,Unspecified,UKRI - Digital Data and Technology BAU Costs,Hays Specialist Recruitment Ltd,98823837,5596.56,Contract Staff
BEIS,UKRI - UKRI,05/10/2020,Unspecified,UKRI - Digital Data and Technology BAU Costs,Hays Specialist Recruitment Ltd,98823849,5351.76,Contract Staff
BEIS,UKRI - UKRI,05/10/2020,Unspecified,UKRI - Digital Data and Technology BAU Costs,Hays Specialist Recruitment Ltd,98823856,5596.56,Contract Staff
BEIS,UKRI - UKRI,05/10/2020,Unspecified,UKRI - Digital Data and Technology BAU Costs,Hays Specialist Recruitment Ltd,98823859,5351.76,Contract Staff
BEIS,UKRI - UKRI,05/10/2020,Unspecified,UKRI - Digital Data and Technology BAU Costs,Hays Specialist Recruitment Ltd,98823865,5316.74,Contract Staff
BEIS,UKRI - UKRI,05/10/2020,Unspecified,UKRI - Digital Data and Technology Project Costs,Alexander Mann Solutions Ltd,98823973,3387.66,Contract Staff
BEIS,UKRI - UKRI,05/10/2020,Unspecified,UKRI - Digital Data and Technology BAU Costs,Alexander Mann Solutions Ltd,98823986,3508.34,Contract Staff
BEIS,UKRI - UKRI,05/10/2020,Unspecified,UKRI - Funding Service,Alexander Mann Solutions Ltd,98824025,3541.62,Contract Staff
BEIS,UKRI - UKRI,05/10/2020,Recruitment Costs,UKRI People and Organisation Development,Onefix Recruitment Ltd,98825954,510.00,Recruitment Costs
BEIS,UKRI - UKRI,05/10/2020,Unspecified,UKRI - Digital Data and Technology BAU Costs,Ecometrica Ltd,98826141,6018.00,IT Cloud Services
BEIS,UKRI - UKRI,05/10/2020,Unspecified,UKRI - JRS,Alexander Mann Solutions Ltd,98826151,1332.00,Contract Staff
BEIS,UKRI - UKRI,05/10/2020,Unspecified,UKRI - Funding Service,Alexander Mann Solutions Ltd,98826154,3911.16,Contract Staff
BEIS,UKRI - UKRI,05/10/2020,Unspecified,UKRI - JRS,Alexander Mann Solutions Ltd,98826157,3423.12,Contract Staff
BEIS,UKRI - UKRI,05/10/2020,Unspecified,UKRI - Financial Accounting,Alexander Mann Solutions Ltd,98826168,3695.58,Contract Staff
BEIS,UKRI - UKRI,05/10/2020,Unspecified,UKRI - Financial Accounting,Alexander Mann Solutions Ltd,98826179,2217.36,Contract Staff
BEIS,UKRI - UKRI,05/10/2020,Unspecified,"UKRI People, Policies and Management",Alexander Mann Solutions Ltd,98826184,9000.00,Agency Staff
BEIS,UKRI - UKRI,05/10/2020,Unspecified,UKRI - Digital Data and Technology BAU Costs,Alexander Mann Solutions Ltd,98826185,3508.34,Contract Staff
BEIS,UKRI - UKRI,05/10/2020,Recruitment Costs,UKRI People and Organisation Development,Agenda Resource Management Ltd,98826452,153.91,Recruitment Costs
BEIS,UKRI - UKRI,05/10/2020,Recruitment Costs,UKRI People and Organisation Development,Agenda Resource Management Ltd,98826453,153.91,Recruitment Costs
BEIS,UKRI - UKRI,05/10/2020,Recruitment Costs,UKRI People and Organisation Development,Agenda Resource Management Ltd,98826454,153.91,Recruitment Costs
BEIS,UKRI - UKRI,05/10/2020,Recruitment Costs,UKRI People and Organisation Development,Agenda Resource Management Ltd,98826456,153.91,Recruitment Costs
BEIS,UKRI - UKRI,05/10/2020,Recruitment Costs,UKRI People and Organisation Development,Agenda Resource Management Ltd,98826458,153.91,Recruitment Costs
BEIS,UKRI - UKRI,05/10/2020,Recruitment Costs,UKRI People and Organisation Development,Agenda Resource Management Ltd,98826459,153.91,Recruitment Costs
BEIS,UKRI - UKRI,05/10/2020,Recruitment Costs,Research Integrity Committee,Agenda Resource Management Ltd,98826460,153.91,Recruitment Costs
BEIS,UKRI - UKRI,05/10/2020,Recruitment Costs,UKRI - Procurement and Commercial,Agenda Resource Management Ltd,98826461,153.91,Recruitment Costs
BEIS,UKRI - UKRI,05/10/2020,Recruitment Costs,UKRI People and Organisation Development,Agenda Resource Management Ltd,98826462,153.91,Recruitment Costs
BEIS,UKRI - UKRI,05/10/2020,Recruitment Costs,UKRI People and Organisation Development,Agenda Resource Management Ltd,98826463,153.91,Recruitment Costs
BEIS,UKRI - UKRI,05/10/2020,Recruitment Costs,UKRI People and Organisation Development,Agenda Resource Management Ltd,98826464,153.91,Recruitment Costs
BEIS,UKRI - UKRI,05/10/2020,Recruitment Costs,UKRI People and Organisation Development,Agenda Resource Management Ltd,98826465,153.91,Recruitment Costs
BEIS,UKRI - UKRI,05/10/2020,Recruitment Costs,UKRI People and Organisation Development,Agenda Resource Management Ltd,98826468,92.80,Recruitment Costs
BEIS,UKRI - UKRI,05/10/2020,Recruitment Costs,UKRI People and Organisation Development,Agenda Resource Management Ltd,98826468,155.63,Recruitment Costs
BEIS,UKRI - UKRI,05/10/2020,Hardware/Software Maintenance,UKRI - Digital Data and Technology BAU Costs,Phoenix Software Ltd,98826471,2400.00,Hardware/Software Maintenance
BEIS,UKRI - UKRI,05/10/2020,Recruitment Costs,UKRI People and Organisation Development,Agenda Resource Management Ltd,98826472,153.91,Recruitment Costs
BEIS,UKRI - UKRI,05/10/2020,Recruitment Costs,UKRI People and Organisation Development,Agenda Resource Management Ltd,98826473,153.91,Recruitment Costs
BEIS,UKRI - UKRI,05/10/2020,Recruitment Costs,UKRI People and Organisation Development,Agenda Resource Management Ltd,98826475,153.91,Recruitment Costs
BEIS,UKRI - UKRI,05/10/2020,Recruitment Costs,UKRI People and Organisation Development,Agenda Resource Management Ltd,98826476,153.91,Recruitment Costs
BEIS,UKRI - UKRI,05/10/2020,Recruitment Costs,UKRI People and Organisation Development,Agenda Resource Management Ltd,98826477,153.91,Recruitment Costs
BEIS,UKRI - UKRI,05/10/2020,Consumables,UKRI - JRS,Antalis Ltd t/a Antalis Document Supplies,98826789,130.32,Consumables
BEIS,UKRI - EPSRC,05/10/2020,Other Programme Costs,Archer,University of Edinburgh,98826836,181339.19,Other Programme Costs
BEIS,UKRI - UKRI,05/10/2020,Purchase of non capital equipment,UKRI - JRS,Signgeer Ltd,98826857,540.00,Purchase of non capital equipment
BEIS,UKRI - UKRI,05/10/2020,Telecoms - Non Capital Hardware Costs,UKRI - Digital Data and Technology Recharges,Telefonica UK Ltd (O2),98826996,-292.80,Telecoms - Non Capital Hardware Costs
BEIS,UKRI - UKRI,05/10/2020,Telecoms - Non Capital Hardware Costs,UKRI - Digital Data and Technology Recharges,Telefonica UK Ltd (O2),98826997,-25.49,Telecoms - Non Capital Hardware Costs
BEIS,UKRI - UKRI,05/10/2020,Unspecified,Sciencewise,3KQ Ltd,98827036,3630.00,Legal & Professional Services
BEIS,UKRI - UKRI,05/10/2020,Advertising & Promotion,UKRI - Communications Content,FORTUIS MEDIA LTD,98827037,525.00,Advertising & Promotion
BEIS,UKRI - EPSRC,05/10/2020,Staff Training,Programme Delivery Engineering,Unspecified,98827116,450.00,Staff Training
BEIS,UKRI - UKRI,05/10/2020,Mobile Phone Costs,UKRI - Digital Data and Technology Recharges,Telefonica UK Ltd (O2),98827118,2438.11,Mobile Phone Costs
BEIS,UKRI - EPSRC,05/10/2020,Fees (Including College Members),Programme Delivery Engineering,Unspecified,98827121,160.00,Fees (Including College Members)
BEIS,UKRI - EPSRC,05/10/2020,Fees (Including College Members),Business Improvement,Unspecified,98827122,160.00,Fees (Including College Members)
BEIS,UKRI - EPSRC,05/10/2020,Fees (Including College Members),Business Improvement,Unspecified,98827123,160.00,Fees (Including College Members)
BEIS,UKRI - EPSRC,05/10/2020,Fees (Including College Members),Business Improvement,Unspecified,98827124,160.00,Fees (Including College Members)
BEIS,UKRI - UKRI,05/10/2020,Mobile Phone Costs,UKRI - Digital Data and Technology Recharges,Telefonica UK Ltd (O2),98827127,-444.78,Mobile Phone Costs
BEIS,UKRI - UKRI,05/10/2020,Fees (Including College Members),UKRI - GCRF Delivery,Unspecified,98827128,320.00,Fees (Including College Members)
BEIS,UKRI - UKRI,05/10/2020,Mobile Phone Costs,UKRI - Digital Data and Technology Recharges,Telefonica UK Ltd (O2),98827130,34.27,Mobile Phone Costs
BEIS,UKRI - UKRI,05/10/2020,Mobile Phone Costs,UKRI - Digital Data and Technology Recharges,Telefonica UK Ltd (O2),98827132,-3.67,Mobile Phone Costs
BEIS,UKRI - UKRI,05/10/2020,Mobile Phone Costs,UKRI - Digital Data and Technology Recharges,Telefonica UK Ltd (O2),98827135,46.55,Mobile Phone Costs
BEIS,UKRI - UKRI,05/10/2020,Recruitment Costs,UKRI People and Organisation Development,Alexander Mann Solutions Ltd,98827541,24144.46,Recruitment Costs
BEIS,UKRI - UKRI,05/10/2020,Unspecified,UKRI - Financial Accounting,Alexander Mann Solutions Ltd,98827553,2168.06,Agency Staff
BEIS,UKRI - UKRI,05/10/2020,Unspecified,UKRI - Digital Data and Technology Project Costs,Alexander Mann Solutions Ltd,98827561,2772.24,Contract Staff
BEIS,UKRI - UKRI,05/10/2020,Unspecified,UKRI - Digital Data and Technology Project Costs,TMI Systems Ltd,98827846,1401.60,Legal & Professional Services
BEIS,UKRI - UKRI,05/10/2020,Hardware/Software Maintenance,UKRI - JRS,Grenke Leasing Ltd,98827849,2040.01,Hardware/Software Maintenance
BEIS,UKRI - UKRI,05/10/2020,Mechanical & Electrical Maintenance,UKRI - Estates,AR Electrical (Swindon) Ltd,98827896,3078.00,Mechanical & Electrical Maintenance
BEIS,UKRI - UKRI,05/10/2020,Postage & Courier Services,UKRI - JBOS,Unspecified,98827954,71.90,Postage & Courier Services
BEIS,UKRI - UKRI,05/10/2020,Computer Software Licences,UKRI - Digital Data and Technology BAU Costs,SIGNAVIO UK LTD,98827995,9977.66,Computer Software Licences
BEIS,UKRI - UKRI,05/10/2020,Computer Software Licences,UKRI - Digital Data and Technology BAU Costs,SIGNAVIO UK LTD,98827996,10043.13,Computer Software Licences
BEIS,UKRI - UKRI,05/10/2020,Computer Software Licences,UKRI - Digital Data and Technology BAU Costs,SIGNAVIO UK LTD,98827998,35880.00,Computer Software Licences
BEIS,UKRI - UKRI,05/10/2020,Health & Safety (inc. Medicals & Opticians),UKRI - Digital Data and Technology BAU Costs,Unspecified,98828018,13.99,Health & Safety (inc. Medicals & Opticians)
BEIS,UKRI - UKRI,05/10/2020,T&S UK - Other Charges,UKRI - Research Funding Support,Unspecified,98828020,84.95,T&S UK - Other Charges
BEIS,UKRI - UKRI,05/10/2020,Conferences & Seminars,UKRI People and Organisation Development,Unspecified,98828021,138.00,Conferences & Seminars
BEIS,UKRI - UKRI,05/10/2020,Health & Safety (inc. Medicals & Opticians),UKRI - Communications Business Partners,Unspecified,98828022,13.99,Health & Safety (inc. Medicals & Opticians)
BEIS,UKRI - UKRI,05/10/2020,T&S UK - Other Charges,UKRI - Digital Data and Technology BAU Costs,Unspecified,98828023,105.00,T&S UK - Other Charges
BEIS,UKRI - UKRI,06/10/2020,Other Staff Benefits,"UKRI People, Policies and Management",EDENRED (UK GROUP) LTD,98790223,14708.61,Other Staff Benefits
BEIS,UKRI - UKRI,06/10/2020,Other Staff Benefits,"UKRI People, Policies and Management",EDENRED (UK GROUP) LTD,98790226,674.99,Other Staff Benefits
BEIS,UKRI - UKRI,06/10/2020,Other Staff Benefits,"UKRI People, Policies and Management",EDENRED (UK GROUP) LTD,98799030,-3255.11,Other Staff Benefits
BEIS,UKRI - UKRI,06/10/2020,Other Staff Benefits,"UKRI People, Policies and Management",EDENRED (UK GROUP) LTD,98801905,-1.20,Other Staff Benefits
BEIS,UKRI - UKRI,06/10/2020,Computer Software Licences,UKRI - Digital Data and Technology BAU Costs,"Canvas Solutions, Inc. DBA GoCanvas",98803608,4584.32,Computer Software Licences
BEIS,UKRI - UKRI,06/10/2020,Other Staff Benefits,"UKRI People, Policies and Management",EDENRED (UK GROUP) LTD,98805179,-3.60,Other Staff Benefits
BEIS,UKRI - UKRI,06/10/2020,Other Staff Benefits,"UKRI People, Policies and Management",EDENRED (UK GROUP) LTD,98805183,-8.40,Other Staff Benefits
BEIS,UKRI - UKRI,06/10/2020,Other Staff Benefits,"UKRI People, Policies and Management",EDENRED (UK GROUP) LTD,98805186,-1.20,Other Staff Benefits
BEIS,UKRI - UKRI,06/10/2020,Computer Software Licences,UKRI - Digital Data and Technology BAU Costs,ReQtest AB,98805685,312.72,Computer Software Licences
BEIS,UKRI - UKRI,06/10/2020,Other Staff Benefits,"UKRI People, Policies and Management",EDENRED (UK GROUP) LTD,98811058,-8.40,Other Staff Benefits
BEIS,UKRI - UKRI,06/10/2020,Telecoms - Non Capital Hardware Costs,UKRI - Digital Data and Technology Recharges,Telefonica UK Ltd (O2),98821347,427.39,Telecoms - Non Capital Hardware Costs
BEIS,UKRI - EPSRC,06/10/2020,Other Staff Benefits,EPSRC Corporate Services,EDENRED (UK GROUP) LTD,98821382,70.00,Other Staff Benefits
BEIS,UKRI - UKRI,06/10/2020,Computer Software Licences,UKRI - Digital Data and Technology BAU Costs,Mentimeter AB,98823141,3519.00,Computer Software Licences
BEIS,UKRI - UKRI,06/10/2020,Unspecified,UKRI - Management Reporting,Alexander Mann Solutions Ltd,98823955,1008.10,Agency Staff
BEIS,UKRI - UKRI,06/10/2020,Staff Training,UKRI - Information Governance,Combined Knowledge Ltd,98824550,1914.00,Staff Training
BEIS,UKRI - UKRI,06/10/2020,Recharges From Councils - Salary,UKRI - GCRF Challenge Leaders,UKRI - Medical Research Council,98824922,20577.00,Recharges From Councils - Salary
BEIS,UKRI - EPSRC,06/10/2020,Other Programme Costs,NC ICT,UKRI - Medical Research Council,98824932,57092.95,Other Programme Costs
BEIS,UKRI - UKRI,06/10/2020,Recharges From Councils - Salary,UKRI - GCRF Delivery,UKRI - Biotechnology and Biological Sciences Research Council (BBSRC),98825189,14437.50,Recharges From Councils - Salary
BEIS,UKRI - UKRI,06/10/2020,Recharges From Councils - Salary,UKRI - GCRF Delivery,UKRI - Biotechnology and Biological Sciences Research Council (BBSRC),98825192,4125.00,Recharges From Councils - Salary
BEIS,UKRI - UKRI,06/10/2020,Recharges From Councils - Salary,UKRI - GCRF Challenge Leaders,UKRI - Biotechnology and Biological Sciences Research Council (BBSRC),98825193,13089.06,Recharges From Councils - Salary
BEIS,UKRI - UKRI,06/10/2020,Recharges From Councils - Salary,UKRI - UK CDR,UKRI - Biotechnology and Biological Sciences Research Council (BBSRC),98825195,5083.86,Recharges From Councils - Salary
BEIS,UKRI - EPSRC,06/10/2020,Research Grant Expenditure,NC ICT,UKRI - Medical Research Council,98825197,41692.96,Research Grant Expenditure
BEIS,UKRI - UKRI,06/10/2020,Recharges From Councils - Salary,UKRI - GCRF Challenge Leaders,UKRI - Medical Research Council,98825668,-20577.00,Recharges From Councils - Salary
BEIS,UKRI - EPSRC,06/10/2020,Research Grant Expenditure,Healthcare Healthcare,UKRI - Medical Research Council,98825990,24995.54,Research Grant Expenditure
BEIS,UKRI - EPSRC,06/10/2020,Research Grant Expenditure,Healthcare Healthcare,UKRI - Medical Research Council,98825993,19928.81,Research Grant Expenditure
BEIS,UKRI - EPSRC,06/10/2020,Research Grant Expenditure,Healthcare Healthcare,UKRI - Medical Research Council,98825995,7140.68,Research Grant Expenditure
BEIS,UKRI - UKRI,06/10/2020,Recharges From Councils - Salary,UKRI - GCRF Delivery,UKRI - Medical Research Council,98826255,-15000.00,Recharges From Councils - Salary
BEIS,UKRI - UKRI,06/10/2020,Recharges From Councils - Salary,UKRI - GCRF Challenge Leaders,UKRI - Medical Research Council,98826257,-59000.00,Recharges From Councils - Salary
BEIS,UKRI - UKRI,06/10/2020,Recharges From Councils - Salary,UKRI - GCRF Delivery,UKRI - Medical Research Council,98826262,-6500.00,Recharges From Councils - Salary
BEIS,UKRI - UKRI,06/10/2020,Recharges From Councils - Salary,UKRI - GCRF Delivery,UKRI - Medical Research Council,98826265,-18500.00,Recharges From Councils - Salary
BEIS,UKRI - UKRI,06/10/2020,Non-staff travel and subsistance,UKRI - GCRF Delivery,Unspecified,98826321,22.14,Non-staff travel and subsistance
BEIS,UKRI - UKRI,06/10/2020,Fees (Including College Members),UKRI - GCRF Delivery,Unspecified,98826322,162.66,Fees (Including College Members)
BEIS,UKRI - UKRI,06/10/2020,Staff Training,UKRI - Information Governance,PDP Conferences,98826406,330.00,Staff Training
BEIS,UKRI - EPSRC,06/10/2020,Other Programme Costs,NC Infrastructure,UKRI - Science & Technology Facilities Council,98826527,559500.00,Other Programme Costs
BEIS,UKRI - EPSRC,06/10/2020,Research Grant Expenditure,Healthcare Healthcare,UKRI - Medical Research Council,98826740,8952.27,Research Grant Expenditure
BEIS,UKRI - EPSRC,06/10/2020,Research Grant Expenditure,NC ICT,UKRI - Medical Research Council,98826747,41692.96,Research Grant Expenditure
BEIS,UKRI - EPSRC,06/10/2020,Fellowships,NC Physical Sciences,UKRI - Biotechnology and Biological Sciences Research Council (BBSRC),98826946,120000.00,Fellowships
BEIS,UKRI - UKRI,06/10/2020,Marketing & PR,UKRI - Communications Themes and Partnerships,Big Voice Communications Ltd,98826970,1023.76,Marketing & PR
BEIS,UKRI - UKRI,06/10/2020,Consumables,UKRI - JRS,Antalis Ltd t/a Antalis Document Supplies,98827100,489.60,Consumables
BEIS,UKRI - UKRI,06/10/2020,Consumables,UKRI - JRS,Antalis Ltd t/a Antalis Document Supplies,98827100,0.01,Consumables
BEIS,UKRI - UKRI,06/10/2020,Marketing & PR,UKRI - Communications Projects and Services,Unspecified,98827156,1050.00,Marketing & PR
BEIS,UKRI - UKRI,06/10/2020,Unspecified,UKRI - Financial Accounting,Alexander Mann Solutions Ltd,98827549,2362.74,Agency Staff
BEIS,UKRI - UKRI,06/10/2020,Recruitment Costs,UKRI People and Organisation Development,Onefix Recruitment Ltd,98827935,150.00,Recruitment Costs
BEIS,UKRI - UKRI,06/10/2020,Recruitment Costs,UKRI People and Organisation Development,Onefix Recruitment Ltd,98827935,670.80,Recruitment Costs
BEIS,UKRI - UKRI,06/10/2020,Recruitment Costs,UKRI People and Organisation Development,Onefix Recruitment Ltd,98827937,150.00,Recruitment Costs
BEIS,UKRI - UKRI,06/10/2020,Recruitment Costs,UKRI People and Organisation Development,Onefix Recruitment Ltd,98827937,670.80,Recruitment Costs
BEIS,UKRI - UKRI,06/10/2020,Recruitment Costs,UKRI People and Organisation Development,Onefix Recruitment Ltd,98827938,150.00,Recruitment Costs
BEIS,UKRI - UKRI,06/10/2020,Recruitment Costs,UKRI People and Organisation Development,Onefix Recruitment Ltd,98827938,670.80,Recruitment Costs
BEIS,UKRI - UKRI,06/10/2020,Consumables,UKRI - JRS,Premier Paper Group Ltd,98828163,375.46,Consumables
BEIS,UKRI - UKRI,06/10/2020,Consumables,UKRI - JRS,Premier Paper Group Ltd,98828163,0.01,Consumables
BEIS,UKRI - EPSRC,06/10/2020,Fees (Including College Members),SPF - NICER OpEx,Unspecified,98828203,80.00,Fees (Including College Members)
BEIS,UKRI - EPSRC,06/10/2020,Fees (Including College Members),Circular Economy OpEx,Unspecified,98828204,80.00,Fees (Including College Members)
BEIS,UKRI - EPSRC,06/10/2020,Fees (Including College Members),Circular Economy OpEx,Unspecified,98828205,80.00,Fees (Including College Members)
BEIS,UKRI - EPSRC,06/10/2020,Fees (Including College Members),Business Improvement,Unspecified,98828206,320.00,Fees (Including College Members)
BEIS,UKRI - EPSRC,06/10/2020,Fees (Including College Members),Business Improvement,Unspecified,98828207,320.00,Fees (Including College Members)
BEIS,UKRI - EPSRC,06/10/2020,Fees (Including College Members),Circular Economy OpEx,Unspecified,98828208,80.00,Fees (Including College Members)
BEIS,UKRI - EPSRC,06/10/2020,Fees (Including College Members),SPF - NICER OpEx,Unspecified,98828209,80.00,Fees (Including College Members)
BEIS,UKRI - EPSRC,06/10/2020,Fees (Including College Members),Programme Delivery Energy,Unspecified,98828210,80.00,Fees (Including College Members)
BEIS,UKRI - EPSRC,06/10/2020,Fees (Including College Members),SPF - NICER OpEx,Unspecified,98828211,80.00,Fees (Including College Members)
BEIS,UKRI - EPSRC,06/10/2020,Fees (Including College Members),Business Improvement,Unspecified,98828212,320.00,Fees (Including College Members)
BEIS,UKRI - UKRI,06/10/2020,Recruitment Costs,UKRI People and Organisation Development,Agenda Resource Management Ltd,98828469,56.11,Recruitment Costs
BEIS,UKRI - UKRI,06/10/2020,Unspecified,UKRI - GCRF Delivery,University of Witwatersrand,98828503,12500.00,Secondments
BEIS,UKRI - Research England,06/10/2020,Council & Committee Honoraria,RE - Research Excellence Framework (REF),Heriot Watt University,98828513,250.00,Council & Committee Honoraria
BEIS,UKRI - UKRI,06/10/2020,Unspecified,UKRI - JRS,Artejano Limited,98828515,336.00,Patents/ Non Computer Licences
BEIS,UKRI - UKRI,06/10/2020,Non-staff travel and subsistance,UKRI - GCRF Delivery,Unspecified,98828555,19.96,Non-staff travel and subsistance
BEIS,UKRI - UKRI,06/10/2020,Fees (Including College Members),UKRI - GCRF Delivery,Unspecified,98828556,159.67,Fees (Including College Members)
BEIS,UKRI - UKRI,06/10/2020,Advertising & Promotion,UKRI - Communications Content,Spare Davies Creative Ltd,98828636,420.00,Advertising & Promotion
BEIS,UKRI - UKRI,06/10/2020,Health & Safety (inc. Medicals & Opticians),UKRI Strategic HR Business Partners,Unspecified,98828670,11.50,Health & Safety (inc. Medicals & Opticians)
BEIS,UKRI - EPSRC,06/10/2020,Health & Safety (inc. Medicals & Opticians),Governance and Planning,Unspecified,98828671,100.00,Health & Safety (inc. Medicals & Opticians)
BEIS,UKRI - UKRI,06/10/2020,T&S UK - Public Transport,UKRI - Communications Strategy and Planning,Unspecified,98828672,32.00,T&S UK - Public Transport
BEIS,UKRI - UKRI,06/10/2020,T&S UK - Public Transport,UKRI - Communications Strategy and Planning,Unspecified,98828672,190.40,T&S UK - Public Transport
BEIS,UKRI - UKRI,06/10/2020,T&S UK - Subsistence,UKRI - Communications Strategy and Planning,Unspecified,98828672,12.66,T&S UK - Subsistence
BEIS,UKRI - EPSRC,06/10/2020,Health & Safety (inc. Medicals & Opticians),Performance and Evaluation,Unspecified,98828676,13.99,Health & Safety (inc. Medicals & Opticians)
BEIS,UKRI - EPSRC,06/10/2020,T&S UK - Other Charges,Performance and Evaluation,Unspecified,98828676,208.80,T&S UK - Other Charges
BEIS,UKRI - EPSRC,06/10/2020,Fees (Including College Members),SPF - NICER OpEx,Unspecified,98829213,80.00,Fees (Including College Members)
BEIS,UKRI - EPSRC,06/10/2020,Fees (Including College Members),Programme Delivery Energy,Unspecified,98829214,80.00,Fees (Including College Members)
BEIS,UKRI - EPSRC,06/10/2020,Fees (Including College Members),Business Improvement,Unspecified,98829215,320.00,Fees (Including College Members)
BEIS,UKRI - EPSRC,06/10/2020,Fees (Including College Members),Business Improvement,Unspecified,98829216,160.00,Fees (Including College Members)
BEIS,UKRI - EPSRC,06/10/2020,Fees (Including College Members),Business Improvement,Unspecified,98829217,320.00,Fees (Including College Members)
BEIS,UKRI - EPSRC,06/10/2020,Fees (Including College Members),Business Improvement,Unspecified,98829218,320.00,Fees (Including College Members)
BEIS,UKRI - EPSRC,06/10/2020,Fees (Including College Members),Business Improvement,Unspecified,98829219,320.00,Fees (Including College Members)
BEIS,UKRI - EPSRC,06/10/2020,Fees (Including College Members),Business Improvement,Unspecified,98829220,320.00,Fees (Including College Members)
BEIS,UKRI - EPSRC,06/10/2020,Fees (Including College Members),Business Improvement,Unspecified,98829221,320.00,Fees (Including College Members)
BEIS,UKRI - EPSRC,06/10/2020,Fees (Including College Members),Business Improvement,Unspecified,98829222,320.00,Fees (Including College Members)
BEIS,UKRI - EPSRC,06/10/2020,Non-staff travel and subsistance,Programme Delivery ICT,Unspecified,98829224,203.50,Non-staff travel and subsistance
BEIS,UKRI - UKRI,06/10/2020,Staff Training,UKRI - GCRF Delivery,Chartered Institute of Internal Auditors Uk,98829442,4759.40,Staff Training
BEIS,UKRI - UKRI,06/10/2020,Staff Training,UKRI - GCRF Delivery,Chartered Institute of Internal Auditors Uk,98829443,200.00,Staff Training
BEIS,UKRI - UKRI,06/10/2020,Consumables,UKRI - JRS,Getty Images (UK) Ltd,98829489,180.00,Consumables
BEIS,UKRI - UKRI,06/10/2020,Consumables,UKRI - JRS,Getty Images (UK) Ltd,98829490,330.00,Consumables
BEIS,UKRI - UKRI,06/10/2020,Staff Training,"UKRI People, Policies and Management",ASK Europe PLC,98829513,1080.00,Staff Training
BEIS,UKRI - Research England,06/10/2020,Other Bought In Services,RE - Operations and Private Office,The Office for Students,98829517,108115.20,Other Bought In Services
BEIS,UKRI - UKRI,07/10/2020,Non-Capital Building Construction,UKRI - JBOS,Interior Design And Developments,98795597,5361.60,Non-Capital Building Construction
BEIS,UKRI - UKRI,07/10/2020,Safety Materials & Equipment,UKRI - Estates,Premier Farnell UK Ltd T/A Farnell Onecall,98815553,64.73,Safety Materials & Equipment
BEIS,UKRI - UKRI,07/10/2020,Safety Materials & Equipment,UKRI - Estates,RS Components,98815602,55.98,Safety Materials & Equipment
BEIS,UKRI - UKRI,07/10/2020,Safety Materials & Equipment,UKRI - Estates,RS Components,98815602,-16.00,Safety Materials & Equipment
BEIS,UKRI - EPSRC,07/10/2020,Other Programme Costs,NC ICT,De Montfort University,98818190,35605.93,Other Programme Costs
BEIS,UKRI - UKRI,07/10/2020,T&S UK - Other Charges,UKRI - Research Funding Support,Unspecified,98820816,169.99,T&S UK - Other Charges
